{"text_format":"1","workbook":"xlsx","n_sheets":11,"sheets":["Consignes","Données","Age (Année en cours)","Simulation Age","Age Ancienneté","Age Compétences","Simulation Compétences Métiers ","Population Modification CT","Population et santé - AT ARRET","Population et santé  BOETH ALD","Population Aménagement poste"],"not_rendered":{"charts":31,"images":2,"macros":1,"external_links":1,"defined_names":1,"comments":0,"pivot_tables":20},"unopened":[],"bounds":{"document_bytes":16777216,"sheet_cells":100000,"rows_first":2000,"rows_last":500,"rows_between":2000,"halvings":0,"cell_chars":16384,"cell_head_chars":4096},"cells_cut":0,"cells_raw":0,"read":"whole","date_system":"1900"}

{"sheet":"Consignes","index":0,"n_rows":26,"n_cols":3,"rows_kept":26,"cut":false,"hidden":false,"merged":[[17,1,20,1],[21,1,25,1],[28,1,28,2],[13,1,16,1]]}
[]
[]
[]
[]
[]
[]
[]
[]
[]
[]
[]
[]
[]
[null,"CARACTERISTIQUES POPULATION\n\nQui sont les salariés de votre entreprise ?"]
[null,null,"EFFECTIFS PAR AGE"]
[null,null,"PYRAMIDE D'AGES DANS 1, 2 ou X années "]
[null,null,"AGE ANCIENNETE"]
[null,"COMPETENCES CRITIQUES \nMETIER EN TENSION\n\nQui détient les compétences critiques ? \nLes compétences dites critiques sont définies comme « les compétences acquises par un individu au cours de son expérience, et qui font de lui quelqu’un d’irremplaçable dans certaines tâches » \n« le caractère critique d’une compétence ne se mesure pas seulement au caractère difficilement remplaçable de l’individu qui la possède mais aussi à la difficulté qu’il y a à l’acquérir »,\n\"des compétences critiques sont identifiées comme étant stratégoqies pour le fonctionnement de l'organisation\"\n\nQu'est ce qu'un métier en tension ?\nUn métier en tension correspond à des difficultés à recruter.","COMPETENCES CRITIQUES PAR AGE\n\nMETIER EN TENSION PAR AGE"]
[null,null,"PYRAMIDES D'AGES DES COMPETENCES CRITIQUES DANS 1, 2 ou X années."]
[null,null,"PYRAMIDES D'AGES DES METIERS EN TENSION DANS 1, 2 ou X années."]
[]
[null,"SANTE\nQuel lien avec des évolutions récentes sur les conditions de travail ?\nQui est exposé à quoi ? \nQuel est l'état de santé des salariés ?","MODIFICATIONS DES CONDITIONS DE TRAVAIL"]
[null,null,"ARRET DE TRAVAIL PAR AGE"]
[null,null,"ACCIDENTS DU TRAVAIL PAR AGE"]
[null,null,"ARRET DE TRAVAIL PAR ANCIENNETE AU POSTE"]
[null,null,"ACCIDENTS DU TRAVAIL PAR ANCIENNETE AU POSTE"]

{"sheet":"Données","index":1,"n_rows":57,"n_cols":28,"rows_kept":57,"cut":false,"hidden":false,"merged":[[2,4,2,7],[3,4,3,7],[5,25,5,27],[0,16,2,27],[5,19,5,21],[5,22,5,24],[5,8,5,12]]}
[null,null,null,null,null,null,null,null,null,null,null,null,null,null,null,null,"NE PAS TOUCHER LES CELLULES GRISES\nPRESENCE DE FORMULE"]
[]
[null,"Date",null,null,"SIMULER votre population en (choississez ci-dessous votre année ?)"]
[null,{"$f":"TODAY()","v":"2025-04-23"},{"$f":"YEAR(B4)","v":2025},null,2030,null,null,null,null,null,null,null,null,null,null,null,{"$f":"$E$4-$C$4","v":5},null,null,{"$f":"C4+1","v":2026},null,null,{"$f":"T4+1","v":2027}]
[]
[null,null,null,null,null,null,null,null,"REMPLIR LA CASE PAR la lettre X ou x si OUI",null,null,null,null,null,null,null,null,null,null,"A PLUS 1 ANS",null,null,"A PLUS 2 ANS",null,null,"Votre année de référence"]
[null,"Numéro","NOM","SEXE\n (F ou H)","ANNEE DE NAISSANCE","ANNEE EMBAUCHE ENTREPRISE","ANNEE ENTREE POSTE","METIER","COMPETENCES CRITIQUES ","METIER EN TENSION","MODIFICATION RECENTES DES CONDITIONS DE TRAVAIL  (Au cours des 2 dernières années)","ACCIDENT DE TRAVAIL DANS L'ANNEE ","ARRET DE TRAVAIL DANS L'ANNEE","BOETH connus de l'entrerpise","ALD connues de l'employeur","PROPOSITIONS D'AMENAGEMENT DE POSTE","Age","ANCIENNETE","ANCIENNETE POSTE","AGE 1","ANCIENNETE 1","ANCIENNETE POSTE 1","AGE2","ANCIENNETE 2","ANCIENNETE POSTE 2","AGE X","ANCIENNETE X","ANCIENNETE POSTE X"]
[null,1,"A","F",1978,2011,2011,"CM",null,"x","X",null,null,null,"X","X",{"$f":"IF(Tableau1[[#This Row],[ANNEE DE NAISSANCE]]=\"\", \"\", $C$4-Tableau1[[#This Row],[ANNEE DE NAISSANCE]])","v":47},{"$f":"IF(Tableau1[[#This Row],[ANNEE EMBAUCHE ENTREPRISE]]=\"\", \"\", $C$4-Tableau1[[#This Row],[ANNEE EMBAUCHE ENTREPRISE]])","v":14},{"$f":"IF(Tableau1[[#This Row],[ANNEE ENTREE POSTE]]=\"\", \"\", $C$4-Tableau1[[#This Row],[ANNEE ENTREE POSTE]])","v":14},{"$f":"IF(Tableau1[[#This Row],[ANNEE DE NAISSANCE]]=\"\", \"\", $T$4-Tableau1[[#This Row],[ANNEE DE NAISSANCE]])","v":48},{"$f":"IF(Tableau1[[#This Row],[ANNEE EMBAUCHE ENTREPRISE]]=\"\", \"\", $T$4-Tableau1[[#This Row],[ANNEE EMBAUCHE ENTREPRISE]])","v":15},{"$f":"IF(Tableau1[[#This Row],[ANNEE ENTREE POSTE]]=\"\", \"\", $T$4-Tableau1[[#This Row],[ANNEE ENTREE POSTE]])","v":15},{"$f":"IF(Tableau1[[#This Row],[ANNEE DE NAISSANCE]]=\"\", \"\", $W$4-Tableau1[[#This Row],[ANNEE DE NAISSANCE]])","v":49},{"$f":"IF(Tableau1[[#This Row],[ANNEE EMBAUCHE ENTREPRISE]]=\"\", \"\", $W$4-Tableau1[[#This Row],[ANNEE EMBAUCHE ENTREPRISE]])","v":16},{"$f":"IF(Tableau1[[#This Row],[ANNEE ENTREE POSTE]]=\"\", \"\", $W$4-Tableau1[[#This Row],[ANNEE ENTREE POSTE]])","v":16},{"$f":"IF(Tableau1[[#This Row],[ANNEE DE NAISSANCE]]=\"\", \"\", $E$4-Tableau1[[#This Row],[ANNEE DE NAISSANCE]])","v":52},{"$f":"IF(Tableau1[[#This Row],[ANNEE EMBAUCHE ENTREPRISE]]=\"\", \"\", $E$4-Tableau1[[#This Row],[ANNEE EMBAUCHE ENTREPRISE]])","v":19},{"$f":"IF(Tableau1[[#This Row],[ANNEE ENTREE POSTE]]=\"\", \"\", $E$4-Tableau1[[#This Row],[ANNEE ENTREE POSTE]])","v":19}]
[null,{"$f":"1+B8","v":2},"B","F",1959,1980,1990,"Secrétaire médical","x",null,null,null,null,"X",null,"X",{"$f":"IF(Tableau1[[#This Row],[ANNEE DE NAISSANCE]]=\"\", \"\", $C$4-Tableau1[[#This Row],[ANNEE DE NAISSANCE]])","v":66},{"$f":"IF(Tableau1[[#This Row],[ANNEE EMBAUCHE ENTREPRISE]]=\"\", \"\", $C$4-Tableau1[[#This Row],[ANNEE EMBAUCHE ENTREPRISE]])","v":45},{"$f":"IF(Tableau1[[#This Row],[ANNEE ENTREE POSTE]]=\"\", \"\", $C$4-Tableau1[[#This Row],[ANNEE ENTREE POSTE]])","v":35},{"$f":"IF(Tableau1[[#This Row],[ANNEE DE NAISSANCE]]=\"\", \"\", $T$4-Tableau1[[#This Row],[ANNEE DE NAISSANCE]])","v":67},{"$f":"IF(Tableau1[[#This Row],[ANNEE EMBAUCHE ENTREPRISE]]=\"\", \"\", $T$4-Tableau1[[#This Row],[ANNEE EMBAUCHE ENTREPRISE]])","v":46},{"$f":"IF(Tableau1[[#This Row],[ANNEE ENTREE POSTE]]=\"\", \"\", $T$4-Tableau1[[#This Row],[ANNEE ENTREE POSTE]])","v":36},{"$f":"IF(Tableau1[[#This Row],[ANNEE DE NAISSANCE]]=\"\", \"\", $W$4-Tableau1[[#This Row],[ANNEE DE NAISSANCE]])","v":68},{"$f":"IF(Tableau1[[#This Row],[ANNEE EMBAUCHE ENTREPRISE]]=\"\", \"\", $W$4-Tableau1[[#This Row],[ANNEE EMBAUCHE ENTREPRISE]])","v":47},{"$f":"IF(Tableau1[[#This Row],[ANNEE ENTREE POSTE]]=\"\", \"\", $W$4-Tableau1[[#This Row],[ANNEE ENTREE POSTE]])","v":37},{"$f":"IF(Tableau1[[#This Row],[ANNEE DE NAISSANCE]]=\"\", \"\", $E$4-Tableau1[[#This Row],[ANNEE DE NAISSANCE]])","v":71},{"$f":"IF(Tableau1[[#This Row],[ANNEE EMBAUCHE ENTREPRISE]]=\"\", \"\", $E$4-Tableau1[[#This Row],[ANNEE EMBAUCHE ENTREPRISE]])","v":50},{"$f":"IF(Tableau1[[#This Row],[ANNEE ENTREE POSTE]]=\"\", \"\", $E$4-Tableau1[[#This Row],[ANNEE ENTREE POSTE]])","v":40}]
[null,3,"A","F",1965,1990,1990,"Secrétaire médical","X",null,null,null,"X",null,null,"X",{"$f":"IF(Tableau1[[#This Row],[ANNEE DE NAISSANCE]]=\"\", \"\", $C$4-Tableau1[[#This Row],[ANNEE DE NAISSANCE]])","v":60},{"$f":"IF(Tableau1[[#This Row],[ANNEE EMBAUCHE ENTREPRISE]]=\"\", \"\", $C$4-Tableau1[[#This Row],[ANNEE EMBAUCHE ENTREPRISE]])","v":35},{"$f":"IF(Tableau1[[#This Row],[ANNEE ENTREE POSTE]]=\"\", \"\", $C$4-Tableau1[[#This Row],[ANNEE ENTREE POSTE]])","v":35},{"$f":"IF(Tableau1[[#This Row],[ANNEE DE NAISSANCE]]=\"\", \"\", $T$4-Tableau1[[#This Row],[ANNEE DE NAISSANCE]])","v":61},{"$f":"IF(Tableau1[[#This Row],[ANNEE EMBAUCHE ENTREPRISE]]=\"\", \"\", $T$4-Tableau1[[#This Row],[ANNEE EMBAUCHE ENTREPRISE]])","v":36},{"$f":"IF(Tableau1[[#This Row],[ANNEE ENTREE POSTE]]=\"\", \"\", $T$4-Tableau1[[#This Row],[ANNEE ENTREE POSTE]])","v":36},{"$f":"IF(Tableau1[[#This Row],[ANNEE DE NAISSANCE]]=\"\", \"\", $W$4-Tableau1[[#This Row],[ANNEE DE NAISSANCE]])","v":62},{"$f":"IF(Tableau1[[#This Row],[ANNEE EMBAUCHE ENTREPRISE]]=\"\", \"\", $W$4-Tableau1[[#This Row],[ANNEE EMBAUCHE ENTREPRISE]])","v":37},{"$f":"IF(Tableau1[[#This Row],[ANNEE ENTREE POSTE]]=\"\", \"\", $W$4-Tableau1[[#This Row],[ANNEE ENTREE POSTE]])","v":37},{"$f":"IF(Tableau1[[#This Row],[ANNEE DE NAISSANCE]]=\"\", \"\", $E$4-Tableau1[[#This Row],[ANNEE DE NAISSANCE]])","v":65},{"$f":"IF(Tableau1[[#This Row],[ANNEE EMBAUCHE ENTREPRISE]]=\"\", \"\", $E$4-Tableau1[[#This Row],[ANNEE EMBAUCHE ENTREPRISE]])","v":40},{"$f":"IF(Tableau1[[#This Row],[ANNEE ENTREE POSTE]]=\"\", \"\", $E$4-Tableau1[[#This Row],[ANNEE ENTREE POSTE]])","v":40}]
[null,4,"B","F",1962,2002,2002,"MDT",null,"x",null,"X",null,null,null,"X",{"$f":"IF(Tableau1[[#This Row],[ANNEE DE NAISSANCE]]=\"\", \"\", $C$4-Tableau1[[#This Row],[ANNEE DE NAISSANCE]])","v":63},{"$f":"IF(Tableau1[[#This Row],[ANNEE EMBAUCHE ENTREPRISE]]=\"\", \"\", $C$4-Tableau1[[#This Row],[ANNEE EMBAUCHE ENTREPRISE]])","v":23},{"$f":"IF(Tableau1[[#This Row],[ANNEE ENTREE POSTE]]=\"\", \"\", $C$4-Tableau1[[#This Row],[ANNEE ENTREE POSTE]])","v":23},{"$f":"IF(Tableau1[[#This Row],[ANNEE DE NAISSANCE]]=\"\", \"\", $T$4-Tableau1[[#This Row],[ANNEE DE NAISSANCE]])","v":64},{"$f":"IF(Tableau1[[#This Row],[ANNEE EMBAUCHE ENTREPRISE]]=\"\", \"\", $T$4-Tableau1[[#This Row],[ANNEE EMBAUCHE ENTREPRISE]])","v":24},{"$f":"IF(Tableau1[[#This Row],[ANNEE ENTREE POSTE]]=\"\", \"\", $T$4-Tableau1[[#This Row],[ANNEE ENTREE POSTE]])","v":24},{"$f":"IF(Tableau1[[#This Row],[ANNEE DE NAISSANCE]]=\"\", \"\", $W$4-Tableau1[[#This Row],[ANNEE DE NAISSANCE]])","v":65},{"$f":"IF(Tableau1[[#This Row],[ANNEE EMBAUCHE ENTREPRISE]]=\"\", \"\", $W$4-Tableau1[[#This Row],[ANNEE EMBAUCHE ENTREPRISE]])","v":25},{"$f":"IF(Tableau1[[#This Row],[ANNEE ENTREE POSTE]]=\"\", \"\", $W$4-Tableau1[[#This Row],[ANNEE ENTREE POSTE]])","v":25},{"$f":"IF(Tableau1[[#This Row],[ANNEE DE NAISSANCE]]=\"\", \"\", $E$4-Tableau1[[#This Row],[ANNEE DE NAISSANCE]])","v":68},{"$f":"IF(Tableau1[[#This Row],[ANNEE EMBAUCHE ENTREPRISE]]=\"\", \"\", $E$4-Tableau1[[#This Row],[ANNEE EMBAUCHE ENTREPRISE]])","v":28},{"$f":"IF(Tableau1[[#This Row],[ANNEE ENTREE POSTE]]=\"\", \"\", $E$4-Tableau1[[#This Row],[ANNEE ENTREE POSTE]])","v":28}]
[null,5,"A","F",1973,2018,2018,"Secrétaire médical",null,null,null,null,null,null,null,null,{"$f":"IF(Tableau1[[#This Row],[ANNEE DE NAISSANCE]]=\"\", \"\", $C$4-Tableau1[[#This Row],[ANNEE DE NAISSANCE]])","v":52},{"$f":"IF(Tableau1[[#This Row],[ANNEE EMBAUCHE ENTREPRISE]]=\"\", \"\", $C$4-Tableau1[[#This Row],[ANNEE EMBAUCHE ENTREPRISE]])","v":7},{"$f":"IF(Tableau1[[#This Row],[ANNEE ENTREE POSTE]]=\"\", \"\", $C$4-Tableau1[[#This Row],[ANNEE ENTREE POSTE]])","v":7},{"$f":"IF(Tableau1[[#This Row],[ANNEE DE NAISSANCE]]=\"\", \"\", $T$4-Tableau1[[#This Row],[ANNEE DE NAISSANCE]])","v":53},{"$f":"IF(Tableau1[[#This Row],[ANNEE EMBAUCHE ENTREPRISE]]=\"\", \"\", $T$4-Tableau1[[#This Row],[ANNEE EMBAUCHE ENTREPRISE]])","v":8},{"$f":"IF(Tableau1[[#This Row],[ANNEE ENTREE POSTE]]=\"\", \"\", $T$4-Tableau1[[#This Row],[ANNEE ENTREE POSTE]])","v":8},{"$f":"IF(Tableau1[[#This Row],[ANNEE DE NAISSANCE]]=\"\", \"\", $W$4-Tableau1[[#This Row],[ANNEE DE NAISSANCE]])","v":54},{"$f":"IF(Tableau1[[#This Row],[ANNEE EMBAUCHE ENTREPRISE]]=\"\", \"\", $W$4-Tableau1[[#This Row],[ANNEE EMBAUCHE ENTREPRISE]])","v":9},{"$f":"IF(Tableau1[[#This Row],[ANNEE ENTREE POSTE]]=\"\", \"\", $W$4-Tableau1[[#This Row],[ANNEE ENTREE POSTE]])","v":9},{"$f":"IF(Tableau1[[#This Row],[ANNEE DE NAISSANCE]]=\"\", \"\", $E$4-Tableau1[[#This Row],[ANNEE DE NAISSANCE]])","v":57},{"$f":"IF(Tableau1[[#This Row],[ANNEE EMBAUCHE ENTREPRISE]]=\"\", \"\", $E$4-Tableau1[[#This Row],[ANNEE EMBAUCHE ENTREPRISE]])","v":12},{"$f":"IF(Tableau1[[#This Row],[ANNEE ENTREE POSTE]]=\"\", \"\", $E$4-Tableau1[[#This Row],[ANNEE ENTREE POSTE]])","v":12}]
[null,6,"B","F",1978,2015,2015,"MDT",null,"x",null,null,null,null,null,null,{"$f":"IF(Tableau1[[#This Row],[ANNEE DE NAISSANCE]]=\"\", \"\", $C$4-Tableau1[[#This Row],[ANNEE DE NAISSANCE]])","v":47},{"$f":"IF(Tableau1[[#This Row],[ANNEE EMBAUCHE ENTREPRISE]]=\"\", \"\", $C$4-Tableau1[[#This Row],[ANNEE EMBAUCHE ENTREPRISE]])","v":10},{"$f":"IF(Tableau1[[#This Row],[ANNEE ENTREE POSTE]]=\"\", \"\", $C$4-Tableau1[[#This Row],[ANNEE ENTREE POSTE]])","v":10},{"$f":"IF(Tableau1[[#This Row],[ANNEE DE NAISSANCE]]=\"\", \"\", $T$4-Tableau1[[#This Row],[ANNEE DE NAISSANCE]])","v":48},{"$f":"IF(Tableau1[[#This Row],[ANNEE EMBAUCHE ENTREPRISE]]=\"\", \"\", $T$4-Tableau1[[#This Row],[ANNEE EMBAUCHE ENTREPRISE]])","v":11},{"$f":"IF(Tableau1[[#This Row],[ANNEE ENTREE POSTE]]=\"\", \"\", $T$4-Tableau1[[#This Row],[ANNEE ENTREE POSTE]])","v":11},{"$f":"IF(Tableau1[[#This Row],[ANNEE DE NAISSANCE]]=\"\", \"\", $W$4-Tableau1[[#This Row],[ANNEE DE NAISSANCE]])","v":49},{"$f":"IF(Tableau1[[#This Row],[ANNEE EMBAUCHE ENTREPRISE]]=\"\", \"\", $W$4-Tableau1[[#This Row],[ANNEE EMBAUCHE ENTREPRISE]])","v":12},{"$f":"IF(Tableau1[[#This Row],[ANNEE ENTREE POSTE]]=\"\", \"\", $W$4-Tableau1[[#This Row],[ANNEE ENTREE POSTE]])","v":12},{"$f":"IF(Tableau1[[#This Row],[ANNEE DE NAISSANCE]]=\"\", \"\", $E$4-Tableau1[[#This Row],[ANNEE DE NAISSANCE]])","v":52},{"$f":"IF(Tableau1[[#This Row],[ANNEE EMBAUCHE ENTREPRISE]]=\"\", \"\", $E$4-Tableau1[[#This Row],[ANNEE EMBAUCHE ENTREPRISE]])","v":15},{"$f":"IF(Tableau1[[#This Row],[ANNEE ENTREE POSTE]]=\"\", \"\", $E$4-Tableau1[[#This Row],[ANNEE ENTREE POSTE]])","v":15}]
[null,7,"A","H",1972,1998,1998,"ASST",null,null,null,null,null,null,null,null,{"$f":"IF(Tableau1[[#This Row],[ANNEE DE NAISSANCE]]=\"\", \"\", $C$4-Tableau1[[#This Row],[ANNEE DE NAISSANCE]])","v":53},{"$f":"IF(Tableau1[[#This Row],[ANNEE EMBAUCHE ENTREPRISE]]=\"\", \"\", $C$4-Tableau1[[#This Row],[ANNEE EMBAUCHE ENTREPRISE]])","v":27},{"$f":"IF(Tableau1[[#This Row],[ANNEE ENTREE POSTE]]=\"\", \"\", $C$4-Tableau1[[#This Row],[ANNEE ENTREE POSTE]])","v":27},{"$f":"IF(Tableau1[[#This Row],[ANNEE DE NAISSANCE]]=\"\", \"\", $T$4-Tableau1[[#This Row],[ANNEE DE NAISSANCE]])","v":54},{"$f":"IF(Tableau1[[#This Row],[ANNEE EMBAUCHE ENTREPRISE]]=\"\", \"\", $T$4-Tableau1[[#This Row],[ANNEE EMBAUCHE ENTREPRISE]])","v":28},{"$f":"IF(Tableau1[[#This Row],[ANNEE ENTREE POSTE]]=\"\", \"\", $T$4-Tableau1[[#This Row],[ANNEE ENTREE POSTE]])","v":28},{"$f":"IF(Tableau1[[#This Row],[ANNEE DE NAISSANCE]]=\"\", \"\", $W$4-Tableau1[[#This Row],[ANNEE DE NAISSANCE]])","v":55},{"$f":"IF(Tableau1[[#This Row],[ANNEE EMBAUCHE ENTREPRISE]]=\"\", \"\", $W$4-Tableau1[[#This Row],[ANNEE EMBAUCHE ENTREPRISE]])","v":29},{"$f":"IF(Tableau1[[#This Row],[ANNEE ENTREE POSTE]]=\"\", \"\", $W$4-Tableau1[[#This Row],[ANNEE ENTREE POSTE]])","v":29},{"$f":"IF(Tableau1[[#This Row],[ANNEE DE NAISSANCE]]=\"\", \"\", $E$4-Tableau1[[#This Row],[ANNEE DE NAISSANCE]])","v":58},{"$f":"IF(Tableau1[[#This Row],[ANNEE EMBAUCHE ENTREPRISE]]=\"\", \"\", $E$4-Tableau1[[#This Row],[ANNEE EMBAUCHE ENTREPRISE]])","v":32},{"$f":"IF(Tableau1[[#This Row],[ANNEE ENTREE POSTE]]=\"\", \"\", $E$4-Tableau1[[#This Row],[ANNEE ENTREE POSTE]])","v":32}]
[null,8,"B","F",1985,2018,2018,"IDEST","X","x",null,null,null,null,null,null,{"$f":"IF(Tableau1[[#This Row],[ANNEE DE NAISSANCE]]=\"\", \"\", $C$4-Tableau1[[#This Row],[ANNEE DE NAISSANCE]])","v":40},{"$f":"IF(Tableau1[[#This Row],[ANNEE EMBAUCHE ENTREPRISE]]=\"\", \"\", $C$4-Tableau1[[#This Row],[ANNEE EMBAUCHE ENTREPRISE]])","v":7},{"$f":"IF(Tableau1[[#This Row],[ANNEE ENTREE POSTE]]=\"\", \"\", $C$4-Tableau1[[#This Row],[ANNEE ENTREE POSTE]])","v":7},{"$f":"IF(Tableau1[[#This Row],[ANNEE DE NAISSANCE]]=\"\", \"\", $T$4-Tableau1[[#This Row],[ANNEE DE NAISSANCE]])","v":41},{"$f":"IF(Tableau1[[#This Row],[ANNEE EMBAUCHE ENTREPRISE]]=\"\", \"\", $T$4-Tableau1[[#This Row],[ANNEE EMBAUCHE ENTREPRISE]])","v":8},{"$f":"IF(Tableau1[[#This Row],[ANNEE ENTREE POSTE]]=\"\", \"\", $T$4-Tableau1[[#This Row],[ANNEE ENTREE POSTE]])","v":8},{"$f":"IF(Tableau1[[#This Row],[ANNEE DE NAISSANCE]]=\"\", \"\", $W$4-Tableau1[[#This Row],[ANNEE DE NAISSANCE]])","v":42},{"$f":"IF(Tableau1[[#This Row],[ANNEE EMBAUCHE ENTREPRISE]]=\"\", \"\", $W$4-Tableau1[[#This Row],[ANNEE EMBAUCHE ENTREPRISE]])","v":9},{"$f":"IF(Tableau1[[#This Row],[ANNEE ENTREE POSTE]]=\"\", \"\", $W$4-Tableau1[[#This Row],[ANNEE ENTREE POSTE]])","v":9},{"$f":"IF(Tableau1[[#This Row],[ANNEE DE NAISSANCE]]=\"\", \"\", $E$4-Tableau1[[#This Row],[ANNEE DE NAISSANCE]])","v":45},{"$f":"IF(Tableau1[[#This Row],[ANNEE EMBAUCHE ENTREPRISE]]=\"\", \"\", $E$4-Tableau1[[#This Row],[ANNEE EMBAUCHE ENTREPRISE]])","v":12},{"$f":"IF(Tableau1[[#This Row],[ANNEE ENTREE POSTE]]=\"\", \"\", $E$4-Tableau1[[#This Row],[ANNEE ENTREE POSTE]])","v":12}]
[null,9,"A","H",1990,2010,2010,"ASST",null,null,null,null,null,null,null,null,{"$f":"IF(Tableau1[[#This Row],[ANNEE DE NAISSANCE]]=\"\", \"\", $C$4-Tableau1[[#This Row],[ANNEE DE NAISSANCE]])","v":35},{"$f":"IF(Tableau1[[#This Row],[ANNEE EMBAUCHE ENTREPRISE]]=\"\", \"\", $C$4-Tableau1[[#This Row],[ANNEE EMBAUCHE ENTREPRISE]])","v":15},{"$f":"IF(Tableau1[[#This Row],[ANNEE ENTREE POSTE]]=\"\", \"\", $C$4-Tableau1[[#This Row],[ANNEE ENTREE POSTE]])","v":15},{"$f":"IF(Tableau1[[#This Row],[ANNEE DE NAISSANCE]]=\"\", \"\", $T$4-Tableau1[[#This Row],[ANNEE DE NAISSANCE]])","v":36},{"$f":"IF(Tableau1[[#This Row],[ANNEE EMBAUCHE ENTREPRISE]]=\"\", \"\", $T$4-Tableau1[[#This Row],[ANNEE EMBAUCHE ENTREPRISE]])","v":16},{"$f":"IF(Tableau1[[#This Row],[ANNEE ENTREE POSTE]]=\"\", \"\", $T$4-Tableau1[[#This Row],[ANNEE ENTREE POSTE]])","v":16},{"$f":"IF(Tableau1[[#This Row],[ANNEE DE NAISSANCE]]=\"\", \"\", $W$4-Tableau1[[#This Row],[ANNEE DE NAISSANCE]])","v":37},{"$f":"IF(Tableau1[[#This Row],[ANNEE EMBAUCHE ENTREPRISE]]=\"\", \"\", $W$4-Tableau1[[#This Row],[ANNEE EMBAUCHE ENTREPRISE]])","v":17},{"$f":"IF(Tableau1[[#This Row],[ANNEE ENTREE POSTE]]=\"\", \"\", $W$4-Tableau1[[#This Row],[ANNEE ENTREE POSTE]])","v":17},{"$f":"IF(Tableau1[[#This Row],[ANNEE DE NAISSANCE]]=\"\", \"\", $E$4-Tableau1[[#This Row],[ANNEE DE NAISSANCE]])","v":40},{"$f":"IF(Tableau1[[#This Row],[ANNEE EMBAUCHE ENTREPRISE]]=\"\", \"\", $E$4-Tableau1[[#This Row],[ANNEE EMBAUCHE ENTREPRISE]])","v":20},{"$f":"IF(Tableau1[[#This Row],[ANNEE ENTREE POSTE]]=\"\", \"\", $E$4-Tableau1[[#This Row],[ANNEE ENTREE POSTE]])","v":20}]
[null,10,"C","F",1975,2000,2000,"MDT","X",null,null,null,null,null,null,null,{"$f":"IF(Tableau1[[#This Row],[ANNEE DE NAISSANCE]]=\"\", \"\", $C$4-Tableau1[[#This Row],[ANNEE DE NAISSANCE]])","v":50},{"$f":"IF(Tableau1[[#This Row],[ANNEE EMBAUCHE ENTREPRISE]]=\"\", \"\", $C$4-Tableau1[[#This Row],[ANNEE EMBAUCHE ENTREPRISE]])","v":25},{"$f":"IF(Tableau1[[#This Row],[ANNEE ENTREE POSTE]]=\"\", \"\", $C$4-Tableau1[[#This Row],[ANNEE ENTREE POSTE]])","v":25},{"$f":"IF(Tableau1[[#This Row],[ANNEE DE NAISSANCE]]=\"\", \"\", $T$4-Tableau1[[#This Row],[ANNEE DE NAISSANCE]])","v":51},{"$f":"IF(Tableau1[[#This Row],[ANNEE EMBAUCHE ENTREPRISE]]=\"\", \"\", $T$4-Tableau1[[#This Row],[ANNEE EMBAUCHE ENTREPRISE]])","v":26},{"$f":"IF(Tableau1[[#This Row],[ANNEE ENTREE POSTE]]=\"\", \"\", $T$4-Tableau1[[#This Row],[ANNEE ENTREE POSTE]])","v":26},{"$f":"IF(Tableau1[[#This Row],[ANNEE DE NAISSANCE]]=\"\", \"\", $W$4-Tableau1[[#This Row],[ANNEE DE NAISSANCE]])","v":52},{"$f":"IF(Tableau1[[#This Row],[ANNEE EMBAUCHE ENTREPRISE]]=\"\", \"\", $W$4-Tableau1[[#This Row],[ANNEE EMBAUCHE ENTREPRISE]])","v":27},{"$f":"IF(Tableau1[[#This Row],[ANNEE ENTREE POSTE]]=\"\", \"\", $W$4-Tableau1[[#This Row],[ANNEE ENTREE POSTE]])","v":27},{"$f":"IF(Tableau1[[#This Row],[ANNEE DE NAISSANCE]]=\"\", \"\", $E$4-Tableau1[[#This Row],[ANNEE DE NAISSANCE]])","v":55},{"$f":"IF(Tableau1[[#This Row],[ANNEE EMBAUCHE ENTREPRISE]]=\"\", \"\", $E$4-Tableau1[[#This Row],[ANNEE EMBAUCHE ENTREPRISE]])","v":30},{"$f":"IF(Tableau1[[#This Row],[ANNEE ENTREE POSTE]]=\"\", \"\", $E$4-Tableau1[[#This Row],[ANNEE ENTREE POSTE]])","v":30}]
[null,11,"D","H",1979,2010,2010,"MDT","X",null,null,null,null,null,null,null,{"$f":"IF(Tableau1[[#This Row],[ANNEE DE NAISSANCE]]=\"\", \"\", $C$4-Tableau1[[#This Row],[ANNEE DE NAISSANCE]])","v":46},{"$f":"IF(Tableau1[[#This Row],[ANNEE EMBAUCHE ENTREPRISE]]=\"\", \"\", $C$4-Tableau1[[#This Row],[ANNEE EMBAUCHE ENTREPRISE]])","v":15},{"$f":"IF(Tableau1[[#This Row],[ANNEE ENTREE POSTE]]=\"\", \"\", $C$4-Tableau1[[#This Row],[ANNEE ENTREE POSTE]])","v":15},{"$f":"IF(Tableau1[[#This Row],[ANNEE DE NAISSANCE]]=\"\", \"\", $T$4-Tableau1[[#This Row],[ANNEE DE NAISSANCE]])","v":47},{"$f":"IF(Tableau1[[#This Row],[ANNEE EMBAUCHE ENTREPRISE]]=\"\", \"\", $T$4-Tableau1[[#This Row],[ANNEE EMBAUCHE ENTREPRISE]])","v":16},{"$f":"IF(Tableau1[[#This Row],[ANNEE ENTREE POSTE]]=\"\", \"\", $T$4-Tableau1[[#This Row],[ANNEE ENTREE POSTE]])","v":16},{"$f":"IF(Tableau1[[#This Row],[ANNEE DE NAISSANCE]]=\"\", \"\", $W$4-Tableau1[[#This Row],[ANNEE DE NAISSANCE]])","v":48},{"$f":"IF(Tableau1[[#This Row],[ANNEE EMBAUCHE ENTREPRISE]]=\"\", \"\", $W$4-Tableau1[[#This Row],[ANNEE EMBAUCHE ENTREPRISE]])","v":17},{"$f":"IF(Tableau1[[#This Row],[ANNEE ENTREE POSTE]]=\"\", \"\", $W$4-Tableau1[[#This Row],[ANNEE ENTREE POSTE]])","v":17},{"$f":"IF(Tableau1[[#This Row],[ANNEE DE NAISSANCE]]=\"\", \"\", $E$4-Tableau1[[#This Row],[ANNEE DE NAISSANCE]])","v":51},{"$f":"IF(Tableau1[[#This Row],[ANNEE EMBAUCHE ENTREPRISE]]=\"\", \"\", $E$4-Tableau1[[#This Row],[ANNEE EMBAUCHE ENTREPRISE]])","v":20},{"$f":"IF(Tableau1[[#This Row],[ANNEE ENTREE POSTE]]=\"\", \"\", $E$4-Tableau1[[#This Row],[ANNEE ENTREE POSTE]])","v":20}]
[null,12,"E","H",1980,2001,2001,"MDT",null,null,null,null,null,null,null,null,{"$f":"IF(Tableau1[[#This Row],[ANNEE DE NAISSANCE]]=\"\", \"\", $C$4-Tableau1[[#This Row],[ANNEE DE NAISSANCE]])","v":45},{"$f":"IF(Tableau1[[#This Row],[ANNEE EMBAUCHE ENTREPRISE]]=\"\", \"\", $C$4-Tableau1[[#This Row],[ANNEE EMBAUCHE ENTREPRISE]])","v":24},{"$f":"IF(Tableau1[[#This Row],[ANNEE ENTREE POSTE]]=\"\", \"\", $C$4-Tableau1[[#This Row],[ANNEE ENTREE POSTE]])","v":24},{"$f":"IF(Tableau1[[#This Row],[ANNEE DE NAISSANCE]]=\"\", \"\", $T$4-Tableau1[[#This Row],[ANNEE DE NAISSANCE]])","v":46},{"$f":"IF(Tableau1[[#This Row],[ANNEE EMBAUCHE ENTREPRISE]]=\"\", \"\", $T$4-Tableau1[[#This Row],[ANNEE EMBAUCHE ENTREPRISE]])","v":25},{"$f":"IF(Tableau1[[#This Row],[ANNEE ENTREE POSTE]]=\"\", \"\", $T$4-Tableau1[[#This Row],[ANNEE ENTREE POSTE]])","v":25},{"$f":"IF(Tableau1[[#This Row],[ANNEE DE NAISSANCE]]=\"\", \"\", $W$4-Tableau1[[#This Row],[ANNEE DE NAISSANCE]])","v":47},{"$f":"IF(Tableau1[[#This Row],[ANNEE EMBAUCHE ENTREPRISE]]=\"\", \"\", $W$4-Tableau1[[#This Row],[ANNEE EMBAUCHE ENTREPRISE]])","v":26},{"$f":"IF(Tableau1[[#This Row],[ANNEE ENTREE POSTE]]=\"\", \"\", $W$4-Tableau1[[#This Row],[ANNEE ENTREE POSTE]])","v":26},{"$f":"IF(Tableau1[[#This Row],[ANNEE DE NAISSANCE]]=\"\", \"\", $E$4-Tableau1[[#This Row],[ANNEE DE NAISSANCE]])","v":50},{"$f":"IF(Tableau1[[#This Row],[ANNEE EMBAUCHE ENTREPRISE]]=\"\", \"\", $E$4-Tableau1[[#This Row],[ANNEE EMBAUCHE ENTREPRISE]])","v":29},{"$f":"IF(Tableau1[[#This Row],[ANNEE ENTREE POSTE]]=\"\", \"\", $E$4-Tableau1[[#This Row],[ANNEE ENTREE POSTE]])","v":29}]
[null,13,"E","H",1960,2003,2003,"MDT","X",null,null,null,null,null,null,null,{"$f":"IF(Tableau1[[#This Row],[ANNEE DE NAISSANCE]]=\"\", \"\", $C$4-Tableau1[[#This Row],[ANNEE DE NAISSANCE]])","v":65},{"$f":"IF(Tableau1[[#This Row],[ANNEE EMBAUCHE ENTREPRISE]]=\"\", \"\", $C$4-Tableau1[[#This Row],[ANNEE EMBAUCHE ENTREPRISE]])","v":22},{"$f":"IF(Tableau1[[#This Row],[ANNEE ENTREE POSTE]]=\"\", \"\", $C$4-Tableau1[[#This Row],[ANNEE ENTREE POSTE]])","v":22},{"$f":"IF(Tableau1[[#This Row],[ANNEE DE NAISSANCE]]=\"\", \"\", $T$4-Tableau1[[#This Row],[ANNEE DE NAISSANCE]])","v":66},{"$f":"IF(Tableau1[[#This Row],[ANNEE EMBAUCHE ENTREPRISE]]=\"\", \"\", $T$4-Tableau1[[#This Row],[ANNEE EMBAUCHE ENTREPRISE]])","v":23},{"$f":"IF(Tableau1[[#This Row],[ANNEE ENTREE POSTE]]=\"\", \"\", $T$4-Tableau1[[#This Row],[ANNEE ENTREE POSTE]])","v":23},{"$f":"IF(Tableau1[[#This Row],[ANNEE DE NAISSANCE]]=\"\", \"\", $W$4-Tableau1[[#This Row],[ANNEE DE NAISSANCE]])","v":67},{"$f":"IF(Tableau1[[#This Row],[ANNEE EMBAUCHE ENTREPRISE]]=\"\", \"\", $W$4-Tableau1[[#This Row],[ANNEE EMBAUCHE ENTREPRISE]])","v":24},{"$f":"IF(Tableau1[[#This Row],[ANNEE ENTREE POSTE]]=\"\", \"\", $W$4-Tableau1[[#This Row],[ANNEE ENTREE POSTE]])","v":24},{"$f":"IF(Tableau1[[#This Row],[ANNEE DE NAISSANCE]]=\"\", \"\", $E$4-Tableau1[[#This Row],[ANNEE DE NAISSANCE]])","v":70},{"$f":"IF(Tableau1[[#This Row],[ANNEE EMBAUCHE ENTREPRISE]]=\"\", \"\", $E$4-Tableau1[[#This Row],[ANNEE EMBAUCHE ENTREPRISE]])","v":27},{"$f":"IF(Tableau1[[#This Row],[ANNEE ENTREE POSTE]]=\"\", \"\", $E$4-Tableau1[[#This Row],[ANNEE ENTREE POSTE]])","v":27}]
[null,14,"D","F",1965,2000,2000,"ASST","X",null,null,null,null,null,null,null,{"$f":"IF(Tableau1[[#This Row],[ANNEE DE NAISSANCE]]=\"\", \"\", $C$4-Tableau1[[#This Row],[ANNEE DE NAISSANCE]])","v":60},{"$f":"IF(Tableau1[[#This Row],[ANNEE EMBAUCHE ENTREPRISE]]=\"\", \"\", $C$4-Tableau1[[#This Row],[ANNEE EMBAUCHE ENTREPRISE]])","v":25},{"$f":"IF(Tableau1[[#This Row],[ANNEE ENTREE POSTE]]=\"\", \"\", $C$4-Tableau1[[#This Row],[ANNEE ENTREE POSTE]])","v":25},{"$f":"IF(Tableau1[[#This Row],[ANNEE DE NAISSANCE]]=\"\", \"\", $T$4-Tableau1[[#This Row],[ANNEE DE NAISSANCE]])","v":61},{"$f":"IF(Tableau1[[#This Row],[ANNEE EMBAUCHE ENTREPRISE]]=\"\", \"\", $T$4-Tableau1[[#This Row],[ANNEE EMBAUCHE ENTREPRISE]])","v":26},{"$f":"IF(Tableau1[[#This Row],[ANNEE ENTREE POSTE]]=\"\", \"\", $T$4-Tableau1[[#This Row],[ANNEE ENTREE POSTE]])","v":26},{"$f":"IF(Tableau1[[#This Row],[ANNEE DE NAISSANCE]]=\"\", \"\", $W$4-Tableau1[[#This Row],[ANNEE DE NAISSANCE]])","v":62},{"$f":"IF(Tableau1[[#This Row],[ANNEE EMBAUCHE ENTREPRISE]]=\"\", \"\", $W$4-Tableau1[[#This Row],[ANNEE EMBAUCHE ENTREPRISE]])","v":27},{"$f":"IF(Tableau1[[#This Row],[ANNEE ENTREE POSTE]]=\"\", \"\", $W$4-Tableau1[[#This Row],[ANNEE ENTREE POSTE]])","v":27},{"$f":"IF(Tableau1[[#This Row],[ANNEE DE NAISSANCE]]=\"\", \"\", $E$4-Tableau1[[#This Row],[ANNEE DE NAISSANCE]])","v":65},{"$f":"IF(Tableau1[[#This Row],[ANNEE EMBAUCHE ENTREPRISE]]=\"\", \"\", $E$4-Tableau1[[#This Row],[ANNEE EMBAUCHE ENTREPRISE]])","v":30},{"$f":"IF(Tableau1[[#This Row],[ANNEE ENTREE POSTE]]=\"\", \"\", $E$4-Tableau1[[#This Row],[ANNEE ENTREE POSTE]])","v":30}]
[null,15,"D","F",1965,2000,2001,"ASST",null,null,null,null,null,null,null,null,{"$f":"IF(Tableau1[[#This Row],[ANNEE DE NAISSANCE]]=\"\", \"\", $C$4-Tableau1[[#This Row],[ANNEE DE NAISSANCE]])","v":60},{"$f":"IF(Tableau1[[#This Row],[ANNEE EMBAUCHE ENTREPRISE]]=\"\", \"\", $C$4-Tableau1[[#This Row],[ANNEE EMBAUCHE ENTREPRISE]])","v":25},{"$f":"IF(Tableau1[[#This Row],[ANNEE ENTREE POSTE]]=\"\", \"\", $C$4-Tableau1[[#This Row],[ANNEE ENTREE POSTE]])","v":24},{"$f":"IF(Tableau1[[#This Row],[ANNEE DE NAISSANCE]]=\"\", \"\", $T$4-Tableau1[[#This Row],[ANNEE DE NAISSANCE]])","v":61},{"$f":"IF(Tableau1[[#This Row],[ANNEE EMBAUCHE ENTREPRISE]]=\"\", \"\", $T$4-Tableau1[[#This Row],[ANNEE EMBAUCHE ENTREPRISE]])","v":26},{"$f":"IF(Tableau1[[#This Row],[ANNEE ENTREE POSTE]]=\"\", \"\", $T$4-Tableau1[[#This Row],[ANNEE ENTREE POSTE]])","v":25},{"$f":"IF(Tableau1[[#This Row],[ANNEE DE NAISSANCE]]=\"\", \"\", $W$4-Tableau1[[#This Row],[ANNEE DE NAISSANCE]])","v":62},{"$f":"IF(Tableau1[[#This Row],[ANNEE EMBAUCHE ENTREPRISE]]=\"\", \"\", $W$4-Tableau1[[#This Row],[ANNEE EMBAUCHE ENTREPRISE]])","v":27},{"$f":"IF(Tableau1[[#This Row],[ANNEE ENTREE POSTE]]=\"\", \"\", $W$4-Tableau1[[#This Row],[ANNEE ENTREE POSTE]])","v":26},{"$f":"IF(Tableau1[[#This Row],[ANNEE DE NAISSANCE]]=\"\", \"\", $E$4-Tableau1[[#This Row],[ANNEE DE NAISSANCE]])","v":65},{"$f":"IF(Tableau1[[#This Row],[ANNEE EMBAUCHE ENTREPRISE]]=\"\", \"\", $E$4-Tableau1[[#This Row],[ANNEE EMBAUCHE ENTREPRISE]])","v":30},{"$f":"IF(Tableau1[[#This Row],[ANNEE ENTREE POSTE]]=\"\", \"\", $E$4-Tableau1[[#This Row],[ANNEE ENTREE POSTE]])","v":29}]
[null,16,"E","H",1965,2000,2000,"MDT",null,null,null,null,null,null,null,null,{"$f":"IF(Tableau1[[#This Row],[ANNEE DE NAISSANCE]]=\"\", \"\", $C$4-Tableau1[[#This Row],[ANNEE DE NAISSANCE]])","v":60},{"$f":"IF(Tableau1[[#This Row],[ANNEE EMBAUCHE ENTREPRISE]]=\"\", \"\", $C$4-Tableau1[[#This Row],[ANNEE EMBAUCHE ENTREPRISE]])","v":25},{"$f":"IF(Tableau1[[#This Row],[ANNEE ENTREE POSTE]]=\"\", \"\", $C$4-Tableau1[[#This Row],[ANNEE ENTREE POSTE]])","v":25},{"$f":"IF(Tableau1[[#This Row],[ANNEE DE NAISSANCE]]=\"\", \"\", $T$4-Tableau1[[#This Row],[ANNEE DE NAISSANCE]])","v":61},{"$f":"IF(Tableau1[[#This Row],[ANNEE EMBAUCHE ENTREPRISE]]=\"\", \"\", $T$4-Tableau1[[#This Row],[ANNEE EMBAUCHE ENTREPRISE]])","v":26},{"$f":"IF(Tableau1[[#This Row],[ANNEE ENTREE POSTE]]=\"\", \"\", $T$4-Tableau1[[#This Row],[ANNEE ENTREE POSTE]])","v":26},{"$f":"IF(Tableau1[[#This Row],[ANNEE DE NAISSANCE]]=\"\", \"\", $W$4-Tableau1[[#This Row],[ANNEE DE NAISSANCE]])","v":62},{"$f":"IF(Tableau1[[#This Row],[ANNEE EMBAUCHE ENTREPRISE]]=\"\", \"\", $W$4-Tableau1[[#This Row],[ANNEE EMBAUCHE ENTREPRISE]])","v":27},{"$f":"IF(Tableau1[[#This Row],[ANNEE ENTREE POSTE]]=\"\", \"\", $W$4-Tableau1[[#This Row],[ANNEE ENTREE POSTE]])","v":27},{"$f":"IF(Tableau1[[#This Row],[ANNEE DE NAISSANCE]]=\"\", \"\", $E$4-Tableau1[[#This Row],[ANNEE DE NAISSANCE]])","v":65},{"$f":"IF(Tableau1[[#This Row],[ANNEE EMBAUCHE ENTREPRISE]]=\"\", \"\", $E$4-Tableau1[[#This Row],[ANNEE EMBAUCHE ENTREPRISE]])","v":30},{"$f":"IF(Tableau1[[#This Row],[ANNEE ENTREE POSTE]]=\"\", \"\", $E$4-Tableau1[[#This Row],[ANNEE ENTREE POSTE]])","v":30}]
[null,17,"A","F",1975,2000,2000,"MDT",null,null,null,null,null,null,null,null,{"$f":"IF(Tableau1[[#This Row],[ANNEE DE NAISSANCE]]=\"\", \"\", $C$4-Tableau1[[#This Row],[ANNEE DE NAISSANCE]])","v":50},{"$f":"IF(Tableau1[[#This Row],[ANNEE EMBAUCHE ENTREPRISE]]=\"\", \"\", $C$4-Tableau1[[#This Row],[ANNEE EMBAUCHE ENTREPRISE]])","v":25},{"$f":"IF(Tableau1[[#This Row],[ANNEE ENTREE POSTE]]=\"\", \"\", $C$4-Tableau1[[#This Row],[ANNEE ENTREE POSTE]])","v":25},{"$f":"IF(Tableau1[[#This Row],[ANNEE DE NAISSANCE]]=\"\", \"\", $T$4-Tableau1[[#This Row],[ANNEE DE NAISSANCE]])","v":51},{"$f":"IF(Tableau1[[#This Row],[ANNEE EMBAUCHE ENTREPRISE]]=\"\", \"\", $T$4-Tableau1[[#This Row],[ANNEE EMBAUCHE ENTREPRISE]])","v":26},{"$f":"IF(Tableau1[[#This Row],[ANNEE ENTREE POSTE]]=\"\", \"\", $T$4-Tableau1[[#This Row],[ANNEE ENTREE POSTE]])","v":26},{"$f":"IF(Tableau1[[#This Row],[ANNEE DE NAISSANCE]]=\"\", \"\", $W$4-Tableau1[[#This Row],[ANNEE DE NAISSANCE]])","v":52},{"$f":"IF(Tableau1[[#This Row],[ANNEE EMBAUCHE ENTREPRISE]]=\"\", \"\", $W$4-Tableau1[[#This Row],[ANNEE EMBAUCHE ENTREPRISE]])","v":27},{"$f":"IF(Tableau1[[#This Row],[ANNEE ENTREE POSTE]]=\"\", \"\", $W$4-Tableau1[[#This Row],[ANNEE ENTREE POSTE]])","v":27},{"$f":"IF(Tableau1[[#This Row],[ANNEE DE NAISSANCE]]=\"\", \"\", $E$4-Tableau1[[#This Row],[ANNEE DE NAISSANCE]])","v":55},{"$f":"IF(Tableau1[[#This Row],[ANNEE EMBAUCHE ENTREPRISE]]=\"\", \"\", $E$4-Tableau1[[#This Row],[ANNEE EMBAUCHE ENTREPRISE]])","v":30},{"$f":"IF(Tableau1[[#This Row],[ANNEE ENTREE POSTE]]=\"\", \"\", $E$4-Tableau1[[#This Row],[ANNEE ENTREE POSTE]])","v":30}]
[null,18,"A","H",1979,2010,2010,"MDT","X",null,null,"X",null,null,null,null,{"$f":"IF(Tableau1[[#This Row],[ANNEE DE NAISSANCE]]=\"\", \"\", $C$4-Tableau1[[#This Row],[ANNEE DE NAISSANCE]])","v":46},{"$f":"IF(Tableau1[[#This Row],[ANNEE EMBAUCHE ENTREPRISE]]=\"\", \"\", $C$4-Tableau1[[#This Row],[ANNEE EMBAUCHE ENTREPRISE]])","v":15},{"$f":"IF(Tableau1[[#This Row],[ANNEE ENTREE POSTE]]=\"\", \"\", $C$4-Tableau1[[#This Row],[ANNEE ENTREE POSTE]])","v":15},{"$f":"IF(Tableau1[[#This Row],[ANNEE DE NAISSANCE]]=\"\", \"\", $T$4-Tableau1[[#This Row],[ANNEE DE NAISSANCE]])","v":47},{"$f":"IF(Tableau1[[#This Row],[ANNEE EMBAUCHE ENTREPRISE]]=\"\", \"\", $T$4-Tableau1[[#This Row],[ANNEE EMBAUCHE ENTREPRISE]])","v":16},{"$f":"IF(Tableau1[[#This Row],[ANNEE ENTREE POSTE]]=\"\", \"\", $T$4-Tableau1[[#This Row],[ANNEE ENTREE POSTE]])","v":16},{"$f":"IF(Tableau1[[#This Row],[ANNEE DE NAISSANCE]]=\"\", \"\", $W$4-Tableau1[[#This Row],[ANNEE DE NAISSANCE]])","v":48},{"$f":"IF(Tableau1[[#This Row],[ANNEE EMBAUCHE ENTREPRISE]]=\"\", \"\", $W$4-Tableau1[[#This Row],[ANNEE EMBAUCHE ENTREPRISE]])","v":17},{"$f":"IF(Tableau1[[#This Row],[ANNEE ENTREE POSTE]]=\"\", \"\", $W$4-Tableau1[[#This Row],[ANNEE ENTREE POSTE]])","v":17},{"$f":"IF(Tableau1[[#This Row],[ANNEE DE NAISSANCE]]=\"\", \"\", $E$4-Tableau1[[#This Row],[ANNEE DE NAISSANCE]])","v":51},{"$f":"IF(Tableau1[[#This Row],[ANNEE EMBAUCHE ENTREPRISE]]=\"\", \"\", $E$4-Tableau1[[#This Row],[ANNEE EMBAUCHE ENTREPRISE]])","v":20},{"$f":"IF(Tableau1[[#This Row],[ANNEE ENTREE POSTE]]=\"\", \"\", $E$4-Tableau1[[#This Row],[ANNEE ENTREE POSTE]])","v":20}]
[null,19,"B","H",1980,2001,2001,"MDT",null,null,null,null,null,null,null,null,{"$f":"IF(Tableau1[[#This Row],[ANNEE DE NAISSANCE]]=\"\", \"\", $C$4-Tableau1[[#This Row],[ANNEE DE NAISSANCE]])","v":45},{"$f":"IF(Tableau1[[#This Row],[ANNEE EMBAUCHE ENTREPRISE]]=\"\", \"\", $C$4-Tableau1[[#This Row],[ANNEE EMBAUCHE ENTREPRISE]])","v":24},{"$f":"IF(Tableau1[[#This Row],[ANNEE ENTREE POSTE]]=\"\", \"\", $C$4-Tableau1[[#This Row],[ANNEE ENTREE POSTE]])","v":24},{"$f":"IF(Tableau1[[#This Row],[ANNEE DE NAISSANCE]]=\"\", \"\", $T$4-Tableau1[[#This Row],[ANNEE DE NAISSANCE]])","v":46},{"$f":"IF(Tableau1[[#This Row],[ANNEE EMBAUCHE ENTREPRISE]]=\"\", \"\", $T$4-Tableau1[[#This Row],[ANNEE EMBAUCHE ENTREPRISE]])","v":25},{"$f":"IF(Tableau1[[#This Row],[ANNEE ENTREE POSTE]]=\"\", \"\", $T$4-Tableau1[[#This Row],[ANNEE ENTREE POSTE]])","v":25},{"$f":"IF(Tableau1[[#This Row],[ANNEE DE NAISSANCE]]=\"\", \"\", $W$4-Tableau1[[#This Row],[ANNEE DE NAISSANCE]])","v":47},{"$f":"IF(Tableau1[[#This Row],[ANNEE EMBAUCHE ENTREPRISE]]=\"\", \"\", $W$4-Tableau1[[#This Row],[ANNEE EMBAUCHE ENTREPRISE]])","v":26},{"$f":"IF(Tableau1[[#This Row],[ANNEE ENTREE POSTE]]=\"\", \"\", $W$4-Tableau1[[#This Row],[ANNEE ENTREE POSTE]])","v":26},{"$f":"IF(Tableau1[[#This Row],[ANNEE DE NAISSANCE]]=\"\", \"\", $E$4-Tableau1[[#This Row],[ANNEE DE NAISSANCE]])","v":50},{"$f":"IF(Tableau1[[#This Row],[ANNEE EMBAUCHE ENTREPRISE]]=\"\", \"\", $E$4-Tableau1[[#This Row],[ANNEE EMBAUCHE ENTREPRISE]])","v":29},{"$f":"IF(Tableau1[[#This Row],[ANNEE ENTREE POSTE]]=\"\", \"\", $E$4-Tableau1[[#This Row],[ANNEE ENTREE POSTE]])","v":29}]
[null,20,"A","H",1975,2000,2000,"MDT","X",null,null,null,null,null,null,null,{"$f":"IF(Tableau1[[#This Row],[ANNEE DE NAISSANCE]]=\"\", \"\", $C$4-Tableau1[[#This Row],[ANNEE DE NAISSANCE]])","v":50},{"$f":"IF(Tableau1[[#This Row],[ANNEE EMBAUCHE ENTREPRISE]]=\"\", \"\", $C$4-Tableau1[[#This Row],[ANNEE EMBAUCHE ENTREPRISE]])","v":25},{"$f":"IF(Tableau1[[#This Row],[ANNEE ENTREE POSTE]]=\"\", \"\", $C$4-Tableau1[[#This Row],[ANNEE ENTREE POSTE]])","v":25},{"$f":"IF(Tableau1[[#This Row],[ANNEE DE NAISSANCE]]=\"\", \"\", $T$4-Tableau1[[#This Row],[ANNEE DE NAISSANCE]])","v":51},{"$f":"IF(Tableau1[[#This Row],[ANNEE EMBAUCHE ENTREPRISE]]=\"\", \"\", $T$4-Tableau1[[#This Row],[ANNEE EMBAUCHE ENTREPRISE]])","v":26},{"$f":"IF(Tableau1[[#This Row],[ANNEE ENTREE POSTE]]=\"\", \"\", $T$4-Tableau1[[#This Row],[ANNEE ENTREE POSTE]])","v":26},{"$f":"IF(Tableau1[[#This Row],[ANNEE DE NAISSANCE]]=\"\", \"\", $W$4-Tableau1[[#This Row],[ANNEE DE NAISSANCE]])","v":52},{"$f":"IF(Tableau1[[#This Row],[ANNEE EMBAUCHE ENTREPRISE]]=\"\", \"\", $W$4-Tableau1[[#This Row],[ANNEE EMBAUCHE ENTREPRISE]])","v":27},{"$f":"IF(Tableau1[[#This Row],[ANNEE ENTREE POSTE]]=\"\", \"\", $W$4-Tableau1[[#This Row],[ANNEE ENTREE POSTE]])","v":27},{"$f":"IF(Tableau1[[#This Row],[ANNEE DE NAISSANCE]]=\"\", \"\", $E$4-Tableau1[[#This Row],[ANNEE DE NAISSANCE]])","v":55},{"$f":"IF(Tableau1[[#This Row],[ANNEE EMBAUCHE ENTREPRISE]]=\"\", \"\", $E$4-Tableau1[[#This Row],[ANNEE EMBAUCHE ENTREPRISE]])","v":30},{"$f":"IF(Tableau1[[#This Row],[ANNEE ENTREE POSTE]]=\"\", \"\", $E$4-Tableau1[[#This Row],[ANNEE ENTREE POSTE]])","v":30}]
[null,21,"A","H",1979,2010,2010,"MDT",null,null,null,null,null,null,null,null,{"$f":"IF(Tableau1[[#This Row],[ANNEE DE NAISSANCE]]=\"\", \"\", $C$4-Tableau1[[#This Row],[ANNEE DE NAISSANCE]])","v":46},{"$f":"IF(Tableau1[[#This Row],[ANNEE EMBAUCHE ENTREPRISE]]=\"\", \"\", $C$4-Tableau1[[#This Row],[ANNEE EMBAUCHE ENTREPRISE]])","v":15},{"$f":"IF(Tableau1[[#This Row],[ANNEE ENTREE POSTE]]=\"\", \"\", $C$4-Tableau1[[#This Row],[ANNEE ENTREE POSTE]])","v":15},{"$f":"IF(Tableau1[[#This Row],[ANNEE DE NAISSANCE]]=\"\", \"\", $T$4-Tableau1[[#This Row],[ANNEE DE NAISSANCE]])","v":47},{"$f":"IF(Tableau1[[#This Row],[ANNEE EMBAUCHE ENTREPRISE]]=\"\", \"\", $T$4-Tableau1[[#This Row],[ANNEE EMBAUCHE ENTREPRISE]])","v":16},{"$f":"IF(Tableau1[[#This Row],[ANNEE ENTREE POSTE]]=\"\", \"\", $T$4-Tableau1[[#This Row],[ANNEE ENTREE POSTE]])","v":16},{"$f":"IF(Tableau1[[#This Row],[ANNEE DE NAISSANCE]]=\"\", \"\", $W$4-Tableau1[[#This Row],[ANNEE DE NAISSANCE]])","v":48},{"$f":"IF(Tableau1[[#This Row],[ANNEE EMBAUCHE ENTREPRISE]]=\"\", \"\", $W$4-Tableau1[[#This Row],[ANNEE EMBAUCHE ENTREPRISE]])","v":17},{"$f":"IF(Tableau1[[#This Row],[ANNEE ENTREE POSTE]]=\"\", \"\", $W$4-Tableau1[[#This Row],[ANNEE ENTREE POSTE]])","v":17},{"$f":"IF(Tableau1[[#This Row],[ANNEE DE NAISSANCE]]=\"\", \"\", $E$4-Tableau1[[#This Row],[ANNEE DE NAISSANCE]])","v":51},{"$f":"IF(Tableau1[[#This Row],[ANNEE EMBAUCHE ENTREPRISE]]=\"\", \"\", $E$4-Tableau1[[#This Row],[ANNEE EMBAUCHE ENTREPRISE]])","v":20},{"$f":"IF(Tableau1[[#This Row],[ANNEE ENTREE POSTE]]=\"\", \"\", $E$4-Tableau1[[#This Row],[ANNEE ENTREE POSTE]])","v":20}]
[null,22,"B","F",1980,2001,2001,"MDT",null,null,null,null,null,null,null,null,{"$f":"IF(Tableau1[[#This Row],[ANNEE DE NAISSANCE]]=\"\", \"\", $C$4-Tableau1[[#This Row],[ANNEE DE NAISSANCE]])","v":45},{"$f":"IF(Tableau1[[#This Row],[ANNEE EMBAUCHE ENTREPRISE]]=\"\", \"\", $C$4-Tableau1[[#This Row],[ANNEE EMBAUCHE ENTREPRISE]])","v":24},{"$f":"IF(Tableau1[[#This Row],[ANNEE ENTREE POSTE]]=\"\", \"\", $C$4-Tableau1[[#This Row],[ANNEE ENTREE POSTE]])","v":24},{"$f":"IF(Tableau1[[#This Row],[ANNEE DE NAISSANCE]]=\"\", \"\", $T$4-Tableau1[[#This Row],[ANNEE DE NAISSANCE]])","v":46},{"$f":"IF(Tableau1[[#This Row],[ANNEE EMBAUCHE ENTREPRISE]]=\"\", \"\", $T$4-Tableau1[[#This Row],[ANNEE EMBAUCHE ENTREPRISE]])","v":25},{"$f":"IF(Tableau1[[#This Row],[ANNEE ENTREE POSTE]]=\"\", \"\", $T$4-Tableau1[[#This Row],[ANNEE ENTREE POSTE]])","v":25},{"$f":"IF(Tableau1[[#This Row],[ANNEE DE NAISSANCE]]=\"\", \"\", $W$4-Tableau1[[#This Row],[ANNEE DE NAISSANCE]])","v":47},{"$f":"IF(Tableau1[[#This Row],[ANNEE EMBAUCHE ENTREPRISE]]=\"\", \"\", $W$4-Tableau1[[#This Row],[ANNEE EMBAUCHE ENTREPRISE]])","v":26},{"$f":"IF(Tableau1[[#This Row],[ANNEE ENTREE POSTE]]=\"\", \"\", $W$4-Tableau1[[#This Row],[ANNEE ENTREE POSTE]])","v":26},{"$f":"IF(Tableau1[[#This Row],[ANNEE DE NAISSANCE]]=\"\", \"\", $E$4-Tableau1[[#This Row],[ANNEE DE NAISSANCE]])","v":50},{"$f":"IF(Tableau1[[#This Row],[ANNEE EMBAUCHE ENTREPRISE]]=\"\", \"\", $E$4-Tableau1[[#This Row],[ANNEE EMBAUCHE ENTREPRISE]])","v":29},{"$f":"IF(Tableau1[[#This Row],[ANNEE ENTREE POSTE]]=\"\", \"\", $E$4-Tableau1[[#This Row],[ANNEE ENTREE POSTE]])","v":29}]
[null,23,"B","F",1973,2018,2018,"Secrétaire médical",null,null,null,null,null,null,null,null,{"$f":"IF(Tableau1[[#This Row],[ANNEE DE NAISSANCE]]=\"\", \"\", $C$4-Tableau1[[#This Row],[ANNEE DE NAISSANCE]])","v":52},{"$f":"IF(Tableau1[[#This Row],[ANNEE EMBAUCHE ENTREPRISE]]=\"\", \"\", $C$4-Tableau1[[#This Row],[ANNEE EMBAUCHE ENTREPRISE]])","v":7},{"$f":"IF(Tableau1[[#This Row],[ANNEE ENTREE POSTE]]=\"\", \"\", $C$4-Tableau1[[#This Row],[ANNEE ENTREE POSTE]])","v":7},{"$f":"IF(Tableau1[[#This Row],[ANNEE DE NAISSANCE]]=\"\", \"\", $T$4-Tableau1[[#This Row],[ANNEE DE NAISSANCE]])","v":53},{"$f":"IF(Tableau1[[#This Row],[ANNEE EMBAUCHE ENTREPRISE]]=\"\", \"\", $T$4-Tableau1[[#This Row],[ANNEE EMBAUCHE ENTREPRISE]])","v":8},{"$f":"IF(Tableau1[[#This Row],[ANNEE ENTREE POSTE]]=\"\", \"\", $T$4-Tableau1[[#This Row],[ANNEE ENTREE POSTE]])","v":8},{"$f":"IF(Tableau1[[#This Row],[ANNEE DE NAISSANCE]]=\"\", \"\", $W$4-Tableau1[[#This Row],[ANNEE DE NAISSANCE]])","v":54},{"$f":"IF(Tableau1[[#This Row],[ANNEE EMBAUCHE ENTREPRISE]]=\"\", \"\", $W$4-Tableau1[[#This Row],[ANNEE EMBAUCHE ENTREPRISE]])","v":9},{"$f":"IF(Tableau1[[#This Row],[ANNEE ENTREE POSTE]]=\"\", \"\", $W$4-Tableau1[[#This Row],[ANNEE ENTREE POSTE]])","v":9},{"$f":"IF(Tableau1[[#This Row],[ANNEE DE NAISSANCE]]=\"\", \"\", $E$4-Tableau1[[#This Row],[ANNEE DE NAISSANCE]])","v":57},{"$f":"IF(Tableau1[[#This Row],[ANNEE EMBAUCHE ENTREPRISE]]=\"\", \"\", $E$4-Tableau1[[#This Row],[ANNEE EMBAUCHE ENTREPRISE]])","v":12},{"$f":"IF(Tableau1[[#This Row],[ANNEE ENTREE POSTE]]=\"\", \"\", $E$4-Tableau1[[#This Row],[ANNEE ENTREE POSTE]])","v":12}]
[null,24,"B","F",1973,2018,2018,"Secrétaire médical",null,null,null,null,null,null,null,null,{"$f":"IF(Tableau1[[#This Row],[ANNEE DE NAISSANCE]]=\"\", \"\", $C$4-Tableau1[[#This Row],[ANNEE DE NAISSANCE]])","v":52},{"$f":"IF(Tableau1[[#This Row],[ANNEE EMBAUCHE ENTREPRISE]]=\"\", \"\", $C$4-Tableau1[[#This Row],[ANNEE EMBAUCHE ENTREPRISE]])","v":7},{"$f":"IF(Tableau1[[#This Row],[ANNEE ENTREE POSTE]]=\"\", \"\", $C$4-Tableau1[[#This Row],[ANNEE ENTREE POSTE]])","v":7},{"$f":"IF(Tableau1[[#This Row],[ANNEE DE NAISSANCE]]=\"\", \"\", $T$4-Tableau1[[#This Row],[ANNEE DE NAISSANCE]])","v":53},{"$f":"IF(Tableau1[[#This Row],[ANNEE EMBAUCHE ENTREPRISE]]=\"\", \"\", $T$4-Tableau1[[#This Row],[ANNEE EMBAUCHE ENTREPRISE]])","v":8},{"$f":"IF(Tableau1[[#This Row],[ANNEE ENTREE POSTE]]=\"\", \"\", $T$4-Tableau1[[#This Row],[ANNEE ENTREE POSTE]])","v":8},{"$f":"IF(Tableau1[[#This Row],[ANNEE DE NAISSANCE]]=\"\", \"\", $W$4-Tableau1[[#This Row],[ANNEE DE NAISSANCE]])","v":54},{"$f":"IF(Tableau1[[#This Row],[ANNEE EMBAUCHE ENTREPRISE]]=\"\", \"\", $W$4-Tableau1[[#This Row],[ANNEE EMBAUCHE ENTREPRISE]])","v":9},{"$f":"IF(Tableau1[[#This Row],[ANNEE ENTREE POSTE]]=\"\", \"\", $W$4-Tableau1[[#This Row],[ANNEE ENTREE POSTE]])","v":9},{"$f":"IF(Tableau1[[#This Row],[ANNEE DE NAISSANCE]]=\"\", \"\", $E$4-Tableau1[[#This Row],[ANNEE DE NAISSANCE]])","v":57},{"$f":"IF(Tableau1[[#This Row],[ANNEE EMBAUCHE ENTREPRISE]]=\"\", \"\", $E$4-Tableau1[[#This Row],[ANNEE EMBAUCHE ENTREPRISE]])","v":12},{"$f":"IF(Tableau1[[#This Row],[ANNEE ENTREE POSTE]]=\"\", \"\", $E$4-Tableau1[[#This Row],[ANNEE ENTREE POSTE]])","v":12}]
[null,25,"A","F",1965,2000,2000,"ASST",null,null,null,null,null,null,null,null,{"$f":"IF(Tableau1[[#This Row],[ANNEE DE NAISSANCE]]=\"\", \"\", $C$4-Tableau1[[#This Row],[ANNEE DE NAISSANCE]])","v":60},{"$f":"IF(Tableau1[[#This Row],[ANNEE EMBAUCHE ENTREPRISE]]=\"\", \"\", $C$4-Tableau1[[#This Row],[ANNEE EMBAUCHE ENTREPRISE]])","v":25},{"$f":"IF(Tableau1[[#This Row],[ANNEE ENTREE POSTE]]=\"\", \"\", $C$4-Tableau1[[#This Row],[ANNEE ENTREE POSTE]])","v":25},{"$f":"IF(Tableau1[[#This Row],[ANNEE DE NAISSANCE]]=\"\", \"\", $T$4-Tableau1[[#This Row],[ANNEE DE NAISSANCE]])","v":61},{"$f":"IF(Tableau1[[#This Row],[ANNEE EMBAUCHE ENTREPRISE]]=\"\", \"\", $T$4-Tableau1[[#This Row],[ANNEE EMBAUCHE ENTREPRISE]])","v":26},{"$f":"IF(Tableau1[[#This Row],[ANNEE ENTREE POSTE]]=\"\", \"\", $T$4-Tableau1[[#This Row],[ANNEE ENTREE POSTE]])","v":26},{"$f":"IF(Tableau1[[#This Row],[ANNEE DE NAISSANCE]]=\"\", \"\", $W$4-Tableau1[[#This Row],[ANNEE DE NAISSANCE]])","v":62},{"$f":"IF(Tableau1[[#This Row],[ANNEE EMBAUCHE ENTREPRISE]]=\"\", \"\", $W$4-Tableau1[[#This Row],[ANNEE EMBAUCHE ENTREPRISE]])","v":27},{"$f":"IF(Tableau1[[#This Row],[ANNEE ENTREE POSTE]]=\"\", \"\", $W$4-Tableau1[[#This Row],[ANNEE ENTREE POSTE]])","v":27},{"$f":"IF(Tableau1[[#This Row],[ANNEE DE NAISSANCE]]=\"\", \"\", $E$4-Tableau1[[#This Row],[ANNEE DE NAISSANCE]])","v":65},{"$f":"IF(Tableau1[[#This Row],[ANNEE EMBAUCHE ENTREPRISE]]=\"\", \"\", $E$4-Tableau1[[#This Row],[ANNEE EMBAUCHE ENTREPRISE]])","v":30},{"$f":"IF(Tableau1[[#This Row],[ANNEE ENTREE POSTE]]=\"\", \"\", $E$4-Tableau1[[#This Row],[ANNEE ENTREE POSTE]])","v":30}]
[null,26,"A","H",1980,2001,2001,"MDT",null,null,null,null,null,null,null,null,{"$f":"IF(Tableau1[[#This Row],[ANNEE DE NAISSANCE]]=\"\", \"\", $C$4-Tableau1[[#This Row],[ANNEE DE NAISSANCE]])","v":45},{"$f":"IF(Tableau1[[#This Row],[ANNEE EMBAUCHE ENTREPRISE]]=\"\", \"\", $C$4-Tableau1[[#This Row],[ANNEE EMBAUCHE ENTREPRISE]])","v":24},{"$f":"IF(Tableau1[[#This Row],[ANNEE ENTREE POSTE]]=\"\", \"\", $C$4-Tableau1[[#This Row],[ANNEE ENTREE POSTE]])","v":24},{"$f":"IF(Tableau1[[#This Row],[ANNEE DE NAISSANCE]]=\"\", \"\", $T$4-Tableau1[[#This Row],[ANNEE DE NAISSANCE]])","v":46},{"$f":"IF(Tableau1[[#This Row],[ANNEE EMBAUCHE ENTREPRISE]]=\"\", \"\", $T$4-Tableau1[[#This Row],[ANNEE EMBAUCHE ENTREPRISE]])","v":25},{"$f":"IF(Tableau1[[#This Row],[ANNEE ENTREE POSTE]]=\"\", \"\", $T$4-Tableau1[[#This Row],[ANNEE ENTREE POSTE]])","v":25},{"$f":"IF(Tableau1[[#This Row],[ANNEE DE NAISSANCE]]=\"\", \"\", $W$4-Tableau1[[#This Row],[ANNEE DE NAISSANCE]])","v":47},{"$f":"IF(Tableau1[[#This Row],[ANNEE EMBAUCHE ENTREPRISE]]=\"\", \"\", $W$4-Tableau1[[#This Row],[ANNEE EMBAUCHE ENTREPRISE]])","v":26},{"$f":"IF(Tableau1[[#This Row],[ANNEE ENTREE POSTE]]=\"\", \"\", $W$4-Tableau1[[#This Row],[ANNEE ENTREE POSTE]])","v":26},{"$f":"IF(Tableau1[[#This Row],[ANNEE DE NAISSANCE]]=\"\", \"\", $E$4-Tableau1[[#This Row],[ANNEE DE NAISSANCE]])","v":50},{"$f":"IF(Tableau1[[#This Row],[ANNEE EMBAUCHE ENTREPRISE]]=\"\", \"\", $E$4-Tableau1[[#This Row],[ANNEE EMBAUCHE ENTREPRISE]])","v":29},{"$f":"IF(Tableau1[[#This Row],[ANNEE ENTREE POSTE]]=\"\", \"\", $E$4-Tableau1[[#This Row],[ANNEE ENTREE POSTE]])","v":29}]
[null,27,"B","H",1980,2001,2001,"MDT",null,null,null,null,null,null,null,null,{"$f":"IF(Tableau1[[#This Row],[ANNEE DE NAISSANCE]]=\"\", \"\", $C$4-Tableau1[[#This Row],[ANNEE DE NAISSANCE]])","v":45},{"$f":"IF(Tableau1[[#This Row],[ANNEE EMBAUCHE ENTREPRISE]]=\"\", \"\", $C$4-Tableau1[[#This Row],[ANNEE EMBAUCHE ENTREPRISE]])","v":24},{"$f":"IF(Tableau1[[#This Row],[ANNEE ENTREE POSTE]]=\"\", \"\", $C$4-Tableau1[[#This Row],[ANNEE ENTREE POSTE]])","v":24},{"$f":"IF(Tableau1[[#This Row],[ANNEE DE NAISSANCE]]=\"\", \"\", $T$4-Tableau1[[#This Row],[ANNEE DE NAISSANCE]])","v":46},{"$f":"IF(Tableau1[[#This Row],[ANNEE EMBAUCHE ENTREPRISE]]=\"\", \"\", $T$4-Tableau1[[#This Row],[ANNEE EMBAUCHE ENTREPRISE]])","v":25},{"$f":"IF(Tableau1[[#This Row],[ANNEE ENTREE POSTE]]=\"\", \"\", $T$4-Tableau1[[#This Row],[ANNEE ENTREE POSTE]])","v":25},{"$f":"IF(Tableau1[[#This Row],[ANNEE DE NAISSANCE]]=\"\", \"\", $W$4-Tableau1[[#This Row],[ANNEE DE NAISSANCE]])","v":47},{"$f":"IF(Tableau1[[#This Row],[ANNEE EMBAUCHE ENTREPRISE]]=\"\", \"\", $W$4-Tableau1[[#This Row],[ANNEE EMBAUCHE ENTREPRISE]])","v":26},{"$f":"IF(Tableau1[[#This Row],[ANNEE ENTREE POSTE]]=\"\", \"\", $W$4-Tableau1[[#This Row],[ANNEE ENTREE POSTE]])","v":26},{"$f":"IF(Tableau1[[#This Row],[ANNEE DE NAISSANCE]]=\"\", \"\", $E$4-Tableau1[[#This Row],[ANNEE DE NAISSANCE]])","v":50},{"$f":"IF(Tableau1[[#This Row],[ANNEE EMBAUCHE ENTREPRISE]]=\"\", \"\", $E$4-Tableau1[[#This Row],[ANNEE EMBAUCHE ENTREPRISE]])","v":29},{"$f":"IF(Tableau1[[#This Row],[ANNEE ENTREE POSTE]]=\"\", \"\", $E$4-Tableau1[[#This Row],[ANNEE ENTREE POSTE]])","v":29}]
[null,28,"A","H",1970,2005,2005,"Direction",null,null,null,null,null,null,null,null,{"$f":"IF(Tableau1[[#This Row],[ANNEE DE NAISSANCE]]=\"\", \"\", $C$4-Tableau1[[#This Row],[ANNEE DE NAISSANCE]])","v":55},{"$f":"IF(Tableau1[[#This Row],[ANNEE EMBAUCHE ENTREPRISE]]=\"\", \"\", $C$4-Tableau1[[#This Row],[ANNEE EMBAUCHE ENTREPRISE]])","v":20},{"$f":"IF(Tableau1[[#This Row],[ANNEE ENTREE POSTE]]=\"\", \"\", $C$4-Tableau1[[#This Row],[ANNEE ENTREE POSTE]])","v":20},{"$f":"IF(Tableau1[[#This Row],[ANNEE DE NAISSANCE]]=\"\", \"\", $T$4-Tableau1[[#This Row],[ANNEE DE NAISSANCE]])","v":56},{"$f":"IF(Tableau1[[#This Row],[ANNEE EMBAUCHE ENTREPRISE]]=\"\", \"\", $T$4-Tableau1[[#This Row],[ANNEE EMBAUCHE ENTREPRISE]])","v":21},{"$f":"IF(Tableau1[[#This Row],[ANNEE ENTREE POSTE]]=\"\", \"\", $T$4-Tableau1[[#This Row],[ANNEE ENTREE POSTE]])","v":21},{"$f":"IF(Tableau1[[#This Row],[ANNEE DE NAISSANCE]]=\"\", \"\", $W$4-Tableau1[[#This Row],[ANNEE DE NAISSANCE]])","v":57},{"$f":"IF(Tableau1[[#This Row],[ANNEE EMBAUCHE ENTREPRISE]]=\"\", \"\", $W$4-Tableau1[[#This Row],[ANNEE EMBAUCHE ENTREPRISE]])","v":22},{"$f":"IF(Tableau1[[#This Row],[ANNEE ENTREE POSTE]]=\"\", \"\", $W$4-Tableau1[[#This Row],[ANNEE ENTREE POSTE]])","v":22},{"$f":"IF(Tableau1[[#This Row],[ANNEE DE NAISSANCE]]=\"\", \"\", $E$4-Tableau1[[#This Row],[ANNEE DE NAISSANCE]])","v":60},{"$f":"IF(Tableau1[[#This Row],[ANNEE EMBAUCHE ENTREPRISE]]=\"\", \"\", $E$4-Tableau1[[#This Row],[ANNEE EMBAUCHE ENTREPRISE]])","v":25},{"$f":"IF(Tableau1[[#This Row],[ANNEE ENTREE POSTE]]=\"\", \"\", $E$4-Tableau1[[#This Row],[ANNEE ENTREE POSTE]])","v":25}]
[null,29,"B","H",1965,2005,2005,"Direction",null,null,null,null,null,null,null,null,{"$f":"IF(Tableau1[[#This Row],[ANNEE DE NAISSANCE]]=\"\", \"\", $C$4-Tableau1[[#This Row],[ANNEE DE NAISSANCE]])","v":60},{"$f":"IF(Tableau1[[#This Row],[ANNEE EMBAUCHE ENTREPRISE]]=\"\", \"\", $C$4-Tableau1[[#This Row],[ANNEE EMBAUCHE ENTREPRISE]])","v":20},{"$f":"IF(Tableau1[[#This Row],[ANNEE ENTREE POSTE]]=\"\", \"\", $C$4-Tableau1[[#This Row],[ANNEE ENTREE POSTE]])","v":20},{"$f":"IF(Tableau1[[#This Row],[ANNEE DE NAISSANCE]]=\"\", \"\", $T$4-Tableau1[[#This Row],[ANNEE DE NAISSANCE]])","v":61},{"$f":"IF(Tableau1[[#This Row],[ANNEE EMBAUCHE ENTREPRISE]]=\"\", \"\", $T$4-Tableau1[[#This Row],[ANNEE EMBAUCHE ENTREPRISE]])","v":21},{"$f":"IF(Tableau1[[#This Row],[ANNEE ENTREE POSTE]]=\"\", \"\", $T$4-Tableau1[[#This Row],[ANNEE ENTREE POSTE]])","v":21},{"$f":"IF(Tableau1[[#This Row],[ANNEE DE NAISSANCE]]=\"\", \"\", $W$4-Tableau1[[#This Row],[ANNEE DE NAISSANCE]])","v":62},{"$f":"IF(Tableau1[[#This Row],[ANNEE EMBAUCHE ENTREPRISE]]=\"\", \"\", $W$4-Tableau1[[#This Row],[ANNEE EMBAUCHE ENTREPRISE]])","v":22},{"$f":"IF(Tableau1[[#This Row],[ANNEE ENTREE POSTE]]=\"\", \"\", $W$4-Tableau1[[#This Row],[ANNEE ENTREE POSTE]])","v":22},{"$f":"IF(Tableau1[[#This Row],[ANNEE DE NAISSANCE]]=\"\", \"\", $E$4-Tableau1[[#This Row],[ANNEE DE NAISSANCE]])","v":65},{"$f":"IF(Tableau1[[#This Row],[ANNEE EMBAUCHE ENTREPRISE]]=\"\", \"\", $E$4-Tableau1[[#This Row],[ANNEE EMBAUCHE ENTREPRISE]])","v":25},{"$f":"IF(Tableau1[[#This Row],[ANNEE ENTREE POSTE]]=\"\", \"\", $E$4-Tableau1[[#This Row],[ANNEE ENTREE POSTE]])","v":25}]
[null,30,"B","H",1975,2000,2000,"MDT",null,null,null,null,null,null,null,null,{"$f":"IF(Tableau1[[#This Row],[ANNEE DE NAISSANCE]]=\"\", \"\", $C$4-Tableau1[[#This Row],[ANNEE DE NAISSANCE]])","v":50},{"$f":"IF(Tableau1[[#This Row],[ANNEE EMBAUCHE ENTREPRISE]]=\"\", \"\", $C$4-Tableau1[[#This Row],[ANNEE EMBAUCHE ENTREPRISE]])","v":25},{"$f":"IF(Tableau1[[#This Row],[ANNEE ENTREE POSTE]]=\"\", \"\", $C$4-Tableau1[[#This Row],[ANNEE ENTREE POSTE]])","v":25},{"$f":"IF(Tableau1[[#This Row],[ANNEE DE NAISSANCE]]=\"\", \"\", $T$4-Tableau1[[#This Row],[ANNEE DE NAISSANCE]])","v":51},{"$f":"IF(Tableau1[[#This Row],[ANNEE EMBAUCHE ENTREPRISE]]=\"\", \"\", $T$4-Tableau1[[#This Row],[ANNEE EMBAUCHE ENTREPRISE]])","v":26},{"$f":"IF(Tableau1[[#This Row],[ANNEE ENTREE POSTE]]=\"\", \"\", $T$4-Tableau1[[#This Row],[ANNEE ENTREE POSTE]])","v":26},{"$f":"IF(Tableau1[[#This Row],[ANNEE DE NAISSANCE]]=\"\", \"\", $W$4-Tableau1[[#This Row],[ANNEE DE NAISSANCE]])","v":52},{"$f":"IF(Tableau1[[#This Row],[ANNEE EMBAUCHE ENTREPRISE]]=\"\", \"\", $W$4-Tableau1[[#This Row],[ANNEE EMBAUCHE ENTREPRISE]])","v":27},{"$f":"IF(Tableau1[[#This Row],[ANNEE ENTREE POSTE]]=\"\", \"\", $W$4-Tableau1[[#This Row],[ANNEE ENTREE POSTE]])","v":27},{"$f":"IF(Tableau1[[#This Row],[ANNEE DE NAISSANCE]]=\"\", \"\", $E$4-Tableau1[[#This Row],[ANNEE DE NAISSANCE]])","v":55},{"$f":"IF(Tableau1[[#This Row],[ANNEE EMBAUCHE ENTREPRISE]]=\"\", \"\", $E$4-Tableau1[[#This Row],[ANNEE EMBAUCHE ENTREPRISE]])","v":30},{"$f":"IF(Tableau1[[#This Row],[ANNEE ENTREE POSTE]]=\"\", \"\", $E$4-Tableau1[[#This Row],[ANNEE ENTREE POSTE]])","v":30}]
[null,31,"B","H",1979,2010,2010,"MDT",null,null,null,null,null,null,null,null,{"$f":"IF(Tableau1[[#This Row],[ANNEE DE NAISSANCE]]=\"\", \"\", $C$4-Tableau1[[#This Row],[ANNEE DE NAISSANCE]])","v":46},{"$f":"IF(Tableau1[[#This Row],[ANNEE EMBAUCHE ENTREPRISE]]=\"\", \"\", $C$4-Tableau1[[#This Row],[ANNEE EMBAUCHE ENTREPRISE]])","v":15},{"$f":"IF(Tableau1[[#This Row],[ANNEE ENTREE POSTE]]=\"\", \"\", $C$4-Tableau1[[#This Row],[ANNEE ENTREE POSTE]])","v":15},{"$f":"IF(Tableau1[[#This Row],[ANNEE DE NAISSANCE]]=\"\", \"\", $T$4-Tableau1[[#This Row],[ANNEE DE NAISSANCE]])","v":47},{"$f":"IF(Tableau1[[#This Row],[ANNEE EMBAUCHE ENTREPRISE]]=\"\", \"\", $T$4-Tableau1[[#This Row],[ANNEE EMBAUCHE ENTREPRISE]])","v":16},{"$f":"IF(Tableau1[[#This Row],[ANNEE ENTREE POSTE]]=\"\", \"\", $T$4-Tableau1[[#This Row],[ANNEE ENTREE POSTE]])","v":16},{"$f":"IF(Tableau1[[#This Row],[ANNEE DE NAISSANCE]]=\"\", \"\", $W$4-Tableau1[[#This Row],[ANNEE DE NAISSANCE]])","v":48},{"$f":"IF(Tableau1[[#This Row],[ANNEE EMBAUCHE ENTREPRISE]]=\"\", \"\", $W$4-Tableau1[[#This Row],[ANNEE EMBAUCHE ENTREPRISE]])","v":17},{"$f":"IF(Tableau1[[#This Row],[ANNEE ENTREE POSTE]]=\"\", \"\", $W$4-Tableau1[[#This Row],[ANNEE ENTREE POSTE]])","v":17},{"$f":"IF(Tableau1[[#This Row],[ANNEE DE NAISSANCE]]=\"\", \"\", $E$4-Tableau1[[#This Row],[ANNEE DE NAISSANCE]])","v":51},{"$f":"IF(Tableau1[[#This Row],[ANNEE EMBAUCHE ENTREPRISE]]=\"\", \"\", $E$4-Tableau1[[#This Row],[ANNEE EMBAUCHE ENTREPRISE]])","v":20},{"$f":"IF(Tableau1[[#This Row],[ANNEE ENTREE POSTE]]=\"\", \"\", $E$4-Tableau1[[#This Row],[ANNEE ENTREE POSTE]])","v":20}]
[null,"’","B","H",1980,2001,2001,"MDT",null,null,null,null,null,null,null,null,{"$f":"IF(Tableau1[[#This Row],[ANNEE DE NAISSANCE]]=\"\", \"\", $C$4-Tableau1[[#This Row],[ANNEE DE NAISSANCE]])","v":45},{"$f":"IF(Tableau1[[#This Row],[ANNEE EMBAUCHE ENTREPRISE]]=\"\", \"\", $C$4-Tableau1[[#This Row],[ANNEE EMBAUCHE ENTREPRISE]])","v":24},{"$f":"IF(Tableau1[[#This Row],[ANNEE ENTREE POSTE]]=\"\", \"\", $C$4-Tableau1[[#This Row],[ANNEE ENTREE POSTE]])","v":24},{"$f":"IF(Tableau1[[#This Row],[ANNEE DE NAISSANCE]]=\"\", \"\", $T$4-Tableau1[[#This Row],[ANNEE DE NAISSANCE]])","v":46},{"$f":"IF(Tableau1[[#This Row],[ANNEE EMBAUCHE ENTREPRISE]]=\"\", \"\", $T$4-Tableau1[[#This Row],[ANNEE EMBAUCHE ENTREPRISE]])","v":25},{"$f":"IF(Tableau1[[#This Row],[ANNEE ENTREE POSTE]]=\"\", \"\", $T$4-Tableau1[[#This Row],[ANNEE ENTREE POSTE]])","v":25},{"$f":"IF(Tableau1[[#This Row],[ANNEE DE NAISSANCE]]=\"\", \"\", $W$4-Tableau1[[#This Row],[ANNEE DE NAISSANCE]])","v":47},{"$f":"IF(Tableau1[[#This Row],[ANNEE EMBAUCHE ENTREPRISE]]=\"\", \"\", $W$4-Tableau1[[#This Row],[ANNEE EMBAUCHE ENTREPRISE]])","v":26},{"$f":"IF(Tableau1[[#This Row],[ANNEE ENTREE POSTE]]=\"\", \"\", $W$4-Tableau1[[#This Row],[ANNEE ENTREE POSTE]])","v":26},{"$f":"IF(Tableau1[[#This Row],[ANNEE DE NAISSANCE]]=\"\", \"\", $E$4-Tableau1[[#This Row],[ANNEE DE NAISSANCE]])","v":50},{"$f":"IF(Tableau1[[#This Row],[ANNEE EMBAUCHE ENTREPRISE]]=\"\", \"\", $E$4-Tableau1[[#This Row],[ANNEE EMBAUCHE ENTREPRISE]])","v":29},{"$f":"IF(Tableau1[[#This Row],[ANNEE ENTREE POSTE]]=\"\", \"\", $E$4-Tableau1[[#This Row],[ANNEE ENTREE POSTE]])","v":29}]
[null,{"$error":"#VALUE!"},"A","F",1975,2000,2000,"MDT",null,null,null,null,null,null,null,null,{"$f":"IF(Tableau1[[#This Row],[ANNEE DE NAISSANCE]]=\"\", \"\", $C$4-Tableau1[[#This Row],[ANNEE DE NAISSANCE]])","v":50},{"$f":"IF(Tableau1[[#This Row],[ANNEE EMBAUCHE ENTREPRISE]]=\"\", \"\", $C$4-Tableau1[[#This Row],[ANNEE EMBAUCHE ENTREPRISE]])","v":25},{"$f":"IF(Tableau1[[#This Row],[ANNEE ENTREE POSTE]]=\"\", \"\", $C$4-Tableau1[[#This Row],[ANNEE ENTREE POSTE]])","v":25},{"$f":"IF(Tableau1[[#This Row],[ANNEE DE NAISSANCE]]=\"\", \"\", $T$4-Tableau1[[#This Row],[ANNEE DE NAISSANCE]])","v":51},{"$f":"IF(Tableau1[[#This Row],[ANNEE EMBAUCHE ENTREPRISE]]=\"\", \"\", $T$4-Tableau1[[#This Row],[ANNEE EMBAUCHE ENTREPRISE]])","v":26},{"$f":"IF(Tableau1[[#This Row],[ANNEE ENTREE POSTE]]=\"\", \"\", $T$4-Tableau1[[#This Row],[ANNEE ENTREE POSTE]])","v":26},{"$f":"IF(Tableau1[[#This Row],[ANNEE DE NAISSANCE]]=\"\", \"\", $W$4-Tableau1[[#This Row],[ANNEE DE NAISSANCE]])","v":52},{"$f":"IF(Tableau1[[#This Row],[ANNEE EMBAUCHE ENTREPRISE]]=\"\", \"\", $W$4-Tableau1[[#This Row],[ANNEE EMBAUCHE ENTREPRISE]])","v":27},{"$f":"IF(Tableau1[[#This Row],[ANNEE ENTREE POSTE]]=\"\", \"\", $W$4-Tableau1[[#This Row],[ANNEE ENTREE POSTE]])","v":27},{"$f":"IF(Tableau1[[#This Row],[ANNEE DE NAISSANCE]]=\"\", \"\", $E$4-Tableau1[[#This Row],[ANNEE DE NAISSANCE]])","v":55},{"$f":"IF(Tableau1[[#This Row],[ANNEE EMBAUCHE ENTREPRISE]]=\"\", \"\", $E$4-Tableau1[[#This Row],[ANNEE EMBAUCHE ENTREPRISE]])","v":30},{"$f":"IF(Tableau1[[#This Row],[ANNEE ENTREE POSTE]]=\"\", \"\", $E$4-Tableau1[[#This Row],[ANNEE ENTREE POSTE]])","v":30}]
[null,{"$f":"1+B40","v":{"$error":"#VALUE!"}},"A","F",1986,2008,2008,"Secrétaire médical",null,null,null,null,null,null,null,null,{"$f":"IF(Tableau1[[#This Row],[ANNEE DE NAISSANCE]]=\"\", \"\", $C$4-Tableau1[[#This Row],[ANNEE DE NAISSANCE]])","v":39},{"$f":"IF(Tableau1[[#This Row],[ANNEE EMBAUCHE ENTREPRISE]]=\"\", \"\", $C$4-Tableau1[[#This Row],[ANNEE EMBAUCHE ENTREPRISE]])","v":17},{"$f":"IF(Tableau1[[#This Row],[ANNEE ENTREE POSTE]]=\"\", \"\", $C$4-Tableau1[[#This Row],[ANNEE ENTREE POSTE]])","v":17},{"$f":"IF(Tableau1[[#This Row],[ANNEE DE NAISSANCE]]=\"\", \"\", $T$4-Tableau1[[#This Row],[ANNEE DE NAISSANCE]])","v":40},{"$f":"IF(Tableau1[[#This Row],[ANNEE EMBAUCHE ENTREPRISE]]=\"\", \"\", $T$4-Tableau1[[#This Row],[ANNEE EMBAUCHE ENTREPRISE]])","v":18},{"$f":"IF(Tableau1[[#This Row],[ANNEE ENTREE POSTE]]=\"\", \"\", $T$4-Tableau1[[#This Row],[ANNEE ENTREE POSTE]])","v":18},{"$f":"IF(Tableau1[[#This Row],[ANNEE DE NAISSANCE]]=\"\", \"\", $W$4-Tableau1[[#This Row],[ANNEE DE NAISSANCE]])","v":41},{"$f":"IF(Tableau1[[#This Row],[ANNEE EMBAUCHE ENTREPRISE]]=\"\", \"\", $W$4-Tableau1[[#This Row],[ANNEE EMBAUCHE ENTREPRISE]])","v":19},{"$f":"IF(Tableau1[[#This Row],[ANNEE ENTREE POSTE]]=\"\", \"\", $W$4-Tableau1[[#This Row],[ANNEE ENTREE POSTE]])","v":19},{"$f":"IF(Tableau1[[#This Row],[ANNEE DE NAISSANCE]]=\"\", \"\", $E$4-Tableau1[[#This Row],[ANNEE DE NAISSANCE]])","v":44},{"$f":"IF(Tableau1[[#This Row],[ANNEE EMBAUCHE ENTREPRISE]]=\"\", \"\", $E$4-Tableau1[[#This Row],[ANNEE EMBAUCHE ENTREPRISE]])","v":22},{"$f":"IF(Tableau1[[#This Row],[ANNEE ENTREE POSTE]]=\"\", \"\", $E$4-Tableau1[[#This Row],[ANNEE ENTREE POSTE]])","v":22}]
[null,{"$error":"#VALUE!"},"B","H",1990,2000,2000,"Comptable",null,null,null,null,null,null,null,null,{"$f":"IF(Tableau1[[#This Row],[ANNEE DE NAISSANCE]]=\"\", \"\", $C$4-Tableau1[[#This Row],[ANNEE DE NAISSANCE]])","v":35},{"$f":"IF(Tableau1[[#This Row],[ANNEE EMBAUCHE ENTREPRISE]]=\"\", \"\", $C$4-Tableau1[[#This Row],[ANNEE EMBAUCHE ENTREPRISE]])","v":25},{"$f":"IF(Tableau1[[#This Row],[ANNEE ENTREE POSTE]]=\"\", \"\", $C$4-Tableau1[[#This Row],[ANNEE ENTREE POSTE]])","v":25},{"$f":"IF(Tableau1[[#This Row],[ANNEE DE NAISSANCE]]=\"\", \"\", $T$4-Tableau1[[#This Row],[ANNEE DE NAISSANCE]])","v":36},{"$f":"IF(Tableau1[[#This Row],[ANNEE EMBAUCHE ENTREPRISE]]=\"\", \"\", $T$4-Tableau1[[#This Row],[ANNEE EMBAUCHE ENTREPRISE]])","v":26},{"$f":"IF(Tableau1[[#This Row],[ANNEE ENTREE POSTE]]=\"\", \"\", $T$4-Tableau1[[#This Row],[ANNEE ENTREE POSTE]])","v":26},{"$f":"IF(Tableau1[[#This Row],[ANNEE DE NAISSANCE]]=\"\", \"\", $W$4-Tableau1[[#This Row],[ANNEE DE NAISSANCE]])","v":37},{"$f":"IF(Tableau1[[#This Row],[ANNEE EMBAUCHE ENTREPRISE]]=\"\", \"\", $W$4-Tableau1[[#This Row],[ANNEE EMBAUCHE ENTREPRISE]])","v":27},{"$f":"IF(Tableau1[[#This Row],[ANNEE ENTREE POSTE]]=\"\", \"\", $W$4-Tableau1[[#This Row],[ANNEE ENTREE POSTE]])","v":27},{"$f":"IF(Tableau1[[#This Row],[ANNEE DE NAISSANCE]]=\"\", \"\", $E$4-Tableau1[[#This Row],[ANNEE DE NAISSANCE]])","v":40},{"$f":"IF(Tableau1[[#This Row],[ANNEE EMBAUCHE ENTREPRISE]]=\"\", \"\", $E$4-Tableau1[[#This Row],[ANNEE EMBAUCHE ENTREPRISE]])","v":30},{"$f":"IF(Tableau1[[#This Row],[ANNEE ENTREE POSTE]]=\"\", \"\", $E$4-Tableau1[[#This Row],[ANNEE ENTREE POSTE]])","v":30}]
[null,{"$error":"#VALUE!"},"B","H",1990,2000,2000,"Comptable",null,null,null,null,null,null,null,null,{"$f":"IF(Tableau1[[#This Row],[ANNEE DE NAISSANCE]]=\"\", \"\", $C$4-Tableau1[[#This Row],[ANNEE DE NAISSANCE]])","v":35},{"$f":"IF(Tableau1[[#This Row],[ANNEE EMBAUCHE ENTREPRISE]]=\"\", \"\", $C$4-Tableau1[[#This Row],[ANNEE EMBAUCHE ENTREPRISE]])","v":25},{"$f":"IF(Tableau1[[#This Row],[ANNEE ENTREE POSTE]]=\"\", \"\", $C$4-Tableau1[[#This Row],[ANNEE ENTREE POSTE]])","v":25},{"$f":"IF(Tableau1[[#This Row],[ANNEE DE NAISSANCE]]=\"\", \"\", $T$4-Tableau1[[#This Row],[ANNEE DE NAISSANCE]])","v":36},{"$f":"IF(Tableau1[[#This Row],[ANNEE EMBAUCHE ENTREPRISE]]=\"\", \"\", $T$4-Tableau1[[#This Row],[ANNEE EMBAUCHE ENTREPRISE]])","v":26},{"$f":"IF(Tableau1[[#This Row],[ANNEE ENTREE POSTE]]=\"\", \"\", $T$4-Tableau1[[#This Row],[ANNEE ENTREE POSTE]])","v":26},{"$f":"IF(Tableau1[[#This Row],[ANNEE DE NAISSANCE]]=\"\", \"\", $W$4-Tableau1[[#This Row],[ANNEE DE NAISSANCE]])","v":37},{"$f":"IF(Tableau1[[#This Row],[ANNEE EMBAUCHE ENTREPRISE]]=\"\", \"\", $W$4-Tableau1[[#This Row],[ANNEE EMBAUCHE ENTREPRISE]])","v":27},{"$f":"IF(Tableau1[[#This Row],[ANNEE ENTREE POSTE]]=\"\", \"\", $W$4-Tableau1[[#This Row],[ANNEE ENTREE POSTE]])","v":27},{"$f":"IF(Tableau1[[#This Row],[ANNEE DE NAISSANCE]]=\"\", \"\", $E$4-Tableau1[[#This Row],[ANNEE DE NAISSANCE]])","v":40},{"$f":"IF(Tableau1[[#This Row],[ANNEE EMBAUCHE ENTREPRISE]]=\"\", \"\", $E$4-Tableau1[[#This Row],[ANNEE EMBAUCHE ENTREPRISE]])","v":30},{"$f":"IF(Tableau1[[#This Row],[ANNEE ENTREE POSTE]]=\"\", \"\", $E$4-Tableau1[[#This Row],[ANNEE ENTREE POSTE]])","v":30}]
[null,{"$error":"#VALUE!"},"A","F",1990,2000,2000,"Comptable",null,null,null,null,null,null,null,null,{"$f":"IF(Tableau1[[#This Row],[ANNEE DE NAISSANCE]]=\"\", \"\", $C$4-Tableau1[[#This Row],[ANNEE DE NAISSANCE]])","v":35},{"$f":"IF(Tableau1[[#This Row],[ANNEE EMBAUCHE ENTREPRISE]]=\"\", \"\", $C$4-Tableau1[[#This Row],[ANNEE EMBAUCHE ENTREPRISE]])","v":25},null,{"$f":"IF(Tableau1[[#This Row],[ANNEE DE NAISSANCE]]=\"\", \"\", $T$4-Tableau1[[#This Row],[ANNEE DE NAISSANCE]])","v":36},{"$f":"IF(Tableau1[[#This Row],[ANNEE EMBAUCHE ENTREPRISE]]=\"\", \"\", $T$4-Tableau1[[#This Row],[ANNEE EMBAUCHE ENTREPRISE]])","v":26},{"$f":"IF(Tableau1[[#This Row],[ANNEE ENTREE POSTE]]=\"\", \"\", $T$4-Tableau1[[#This Row],[ANNEE ENTREE POSTE]])","v":26},{"$f":"IF(Tableau1[[#This Row],[ANNEE DE NAISSANCE]]=\"\", \"\", $W$4-Tableau1[[#This Row],[ANNEE DE NAISSANCE]])","v":37},{"$f":"IF(Tableau1[[#This Row],[ANNEE EMBAUCHE ENTREPRISE]]=\"\", \"\", $W$4-Tableau1[[#This Row],[ANNEE EMBAUCHE ENTREPRISE]])","v":27},{"$f":"IF(Tableau1[[#This Row],[ANNEE ENTREE POSTE]]=\"\", \"\", $W$4-Tableau1[[#This Row],[ANNEE ENTREE POSTE]])","v":27},{"$f":"IF(Tableau1[[#This Row],[ANNEE DE NAISSANCE]]=\"\", \"\", $E$4-Tableau1[[#This Row],[ANNEE DE NAISSANCE]])","v":40},{"$f":"IF(Tableau1[[#This Row],[ANNEE EMBAUCHE ENTREPRISE]]=\"\", \"\", $E$4-Tableau1[[#This Row],[ANNEE EMBAUCHE ENTREPRISE]])","v":30},{"$f":"IF(Tableau1[[#This Row],[ANNEE ENTREE POSTE]]=\"\", \"\", $E$4-Tableau1[[#This Row],[ANNEE ENTREE POSTE]])","v":30}]
[null,{"$error":"#VALUE!"},"A","F",1990,2000,2000,"Comptable",null,null,null,null,null,null,null,null,{"$f":"IF(Tableau1[[#This Row],[ANNEE DE NAISSANCE]]=\"\", \"\", $C$4-Tableau1[[#This Row],[ANNEE DE NAISSANCE]])","v":35},{"$f":"IF(Tableau1[[#This Row],[ANNEE EMBAUCHE ENTREPRISE]]=\"\", \"\", $C$4-Tableau1[[#This Row],[ANNEE EMBAUCHE ENTREPRISE]])","v":25},null,{"$f":"IF(Tableau1[[#This Row],[ANNEE DE NAISSANCE]]=\"\", \"\", $T$4-Tableau1[[#This Row],[ANNEE DE NAISSANCE]])","v":36},{"$f":"IF(Tableau1[[#This Row],[ANNEE EMBAUCHE ENTREPRISE]]=\"\", \"\", $T$4-Tableau1[[#This Row],[ANNEE EMBAUCHE ENTREPRISE]])","v":26},{"$f":"IF(Tableau1[[#This Row],[ANNEE ENTREE POSTE]]=\"\", \"\", $T$4-Tableau1[[#This Row],[ANNEE ENTREE POSTE]])","v":26},{"$f":"IF(Tableau1[[#This Row],[ANNEE DE NAISSANCE]]=\"\", \"\", $W$4-Tableau1[[#This Row],[ANNEE DE NAISSANCE]])","v":37},{"$f":"IF(Tableau1[[#This Row],[ANNEE EMBAUCHE ENTREPRISE]]=\"\", \"\", $W$4-Tableau1[[#This Row],[ANNEE EMBAUCHE ENTREPRISE]])","v":27},{"$f":"IF(Tableau1[[#This Row],[ANNEE ENTREE POSTE]]=\"\", \"\", $W$4-Tableau1[[#This Row],[ANNEE ENTREE POSTE]])","v":27},{"$f":"IF(Tableau1[[#This Row],[ANNEE DE NAISSANCE]]=\"\", \"\", $E$4-Tableau1[[#This Row],[ANNEE DE NAISSANCE]])","v":40},{"$f":"IF(Tableau1[[#This Row],[ANNEE EMBAUCHE ENTREPRISE]]=\"\", \"\", $E$4-Tableau1[[#This Row],[ANNEE EMBAUCHE ENTREPRISE]])","v":30},{"$f":"IF(Tableau1[[#This Row],[ANNEE ENTREE POSTE]]=\"\", \"\", $E$4-Tableau1[[#This Row],[ANNEE ENTREE POSTE]])","v":30}]
[null,{"$error":"#VALUE!"},"B","H",1990,2000,2000,"Comptable",null,null,null,null,null,null,null,null,{"$f":"IF(Tableau1[[#This Row],[ANNEE DE NAISSANCE]]=\"\", \"\", $C$4-Tableau1[[#This Row],[ANNEE DE NAISSANCE]])","v":35},{"$f":"IF(Tableau1[[#This Row],[ANNEE EMBAUCHE ENTREPRISE]]=\"\", \"\", $C$4-Tableau1[[#This Row],[ANNEE EMBAUCHE ENTREPRISE]])","v":25},null,{"$f":"IF(Tableau1[[#This Row],[ANNEE DE NAISSANCE]]=\"\", \"\", $T$4-Tableau1[[#This Row],[ANNEE DE NAISSANCE]])","v":36},{"$f":"IF(Tableau1[[#This Row],[ANNEE EMBAUCHE ENTREPRISE]]=\"\", \"\", $T$4-Tableau1[[#This Row],[ANNEE EMBAUCHE ENTREPRISE]])","v":26},{"$f":"IF(Tableau1[[#This Row],[ANNEE ENTREE POSTE]]=\"\", \"\", $T$4-Tableau1[[#This Row],[ANNEE ENTREE POSTE]])","v":26},{"$f":"IF(Tableau1[[#This Row],[ANNEE DE NAISSANCE]]=\"\", \"\", $W$4-Tableau1[[#This Row],[ANNEE DE NAISSANCE]])","v":37},{"$f":"IF(Tableau1[[#This Row],[ANNEE EMBAUCHE ENTREPRISE]]=\"\", \"\", $W$4-Tableau1[[#This Row],[ANNEE EMBAUCHE ENTREPRISE]])","v":27},{"$f":"IF(Tableau1[[#This Row],[ANNEE ENTREE POSTE]]=\"\", \"\", $W$4-Tableau1[[#This Row],[ANNEE ENTREE POSTE]])","v":27},{"$f":"IF(Tableau1[[#This Row],[ANNEE DE NAISSANCE]]=\"\", \"\", $E$4-Tableau1[[#This Row],[ANNEE DE NAISSANCE]])","v":40},{"$f":"IF(Tableau1[[#This Row],[ANNEE EMBAUCHE ENTREPRISE]]=\"\", \"\", $E$4-Tableau1[[#This Row],[ANNEE EMBAUCHE ENTREPRISE]])","v":30},{"$f":"IF(Tableau1[[#This Row],[ANNEE ENTREE POSTE]]=\"\", \"\", $E$4-Tableau1[[#This Row],[ANNEE ENTREE POSTE]])","v":30}]
[null,{"$error":"#VALUE!"},"B","H",1965,2005,2005,"Secrétaire de Direction",null,null,null,null,null,null,null,null,{"$f":"IF(Tableau1[[#This Row],[ANNEE DE NAISSANCE]]=\"\", \"\", $C$4-Tableau1[[#This Row],[ANNEE DE NAISSANCE]])","v":60},{"$f":"IF(Tableau1[[#This Row],[ANNEE EMBAUCHE ENTREPRISE]]=\"\", \"\", $C$4-Tableau1[[#This Row],[ANNEE EMBAUCHE ENTREPRISE]])","v":20},null,{"$f":"IF(Tableau1[[#This Row],[ANNEE DE NAISSANCE]]=\"\", \"\", $T$4-Tableau1[[#This Row],[ANNEE DE NAISSANCE]])","v":61},{"$f":"IF(Tableau1[[#This Row],[ANNEE EMBAUCHE ENTREPRISE]]=\"\", \"\", $T$4-Tableau1[[#This Row],[ANNEE EMBAUCHE ENTREPRISE]])","v":21},{"$f":"IF(Tableau1[[#This Row],[ANNEE ENTREE POSTE]]=\"\", \"\", $T$4-Tableau1[[#This Row],[ANNEE ENTREE POSTE]])","v":21},{"$f":"IF(Tableau1[[#This Row],[ANNEE DE NAISSANCE]]=\"\", \"\", $W$4-Tableau1[[#This Row],[ANNEE DE NAISSANCE]])","v":62},{"$f":"IF(Tableau1[[#This Row],[ANNEE EMBAUCHE ENTREPRISE]]=\"\", \"\", $W$4-Tableau1[[#This Row],[ANNEE EMBAUCHE ENTREPRISE]])","v":22},{"$f":"IF(Tableau1[[#This Row],[ANNEE ENTREE POSTE]]=\"\", \"\", $W$4-Tableau1[[#This Row],[ANNEE ENTREE POSTE]])","v":22},{"$f":"IF(Tableau1[[#This Row],[ANNEE DE NAISSANCE]]=\"\", \"\", $E$4-Tableau1[[#This Row],[ANNEE DE NAISSANCE]])","v":65},{"$f":"IF(Tableau1[[#This Row],[ANNEE EMBAUCHE ENTREPRISE]]=\"\", \"\", $E$4-Tableau1[[#This Row],[ANNEE EMBAUCHE ENTREPRISE]])","v":25},{"$f":"IF(Tableau1[[#This Row],[ANNEE ENTREE POSTE]]=\"\", \"\", $E$4-Tableau1[[#This Row],[ANNEE ENTREE POSTE]])","v":25}]
[null,{"$error":"#VALUE!"},"B","F",1965,2005,2005,"Secrétaire de Direction",null,null,null,null,null,null,null,null,{"$f":"IF(Tableau1[[#This Row],[ANNEE DE NAISSANCE]]=\"\", \"\", $C$4-Tableau1[[#This Row],[ANNEE DE NAISSANCE]])","v":60},{"$f":"IF(Tableau1[[#This Row],[ANNEE EMBAUCHE ENTREPRISE]]=\"\", \"\", $C$4-Tableau1[[#This Row],[ANNEE EMBAUCHE ENTREPRISE]])","v":20},null,{"$f":"IF(Tableau1[[#This Row],[ANNEE DE NAISSANCE]]=\"\", \"\", $T$4-Tableau1[[#This Row],[ANNEE DE NAISSANCE]])","v":61},{"$f":"IF(Tableau1[[#This Row],[ANNEE EMBAUCHE ENTREPRISE]]=\"\", \"\", $T$4-Tableau1[[#This Row],[ANNEE EMBAUCHE ENTREPRISE]])","v":21},{"$f":"IF(Tableau1[[#This Row],[ANNEE ENTREE POSTE]]=\"\", \"\", $T$4-Tableau1[[#This Row],[ANNEE ENTREE POSTE]])","v":21},{"$f":"IF(Tableau1[[#This Row],[ANNEE DE NAISSANCE]]=\"\", \"\", $W$4-Tableau1[[#This Row],[ANNEE DE NAISSANCE]])","v":62},{"$f":"IF(Tableau1[[#This Row],[ANNEE EMBAUCHE ENTREPRISE]]=\"\", \"\", $W$4-Tableau1[[#This Row],[ANNEE EMBAUCHE ENTREPRISE]])","v":22},{"$f":"IF(Tableau1[[#This Row],[ANNEE ENTREE POSTE]]=\"\", \"\", $W$4-Tableau1[[#This Row],[ANNEE ENTREE POSTE]])","v":22},{"$f":"IF(Tableau1[[#This Row],[ANNEE DE NAISSANCE]]=\"\", \"\", $E$4-Tableau1[[#This Row],[ANNEE DE NAISSANCE]])","v":65},{"$f":"IF(Tableau1[[#This Row],[ANNEE EMBAUCHE ENTREPRISE]]=\"\", \"\", $E$4-Tableau1[[#This Row],[ANNEE EMBAUCHE ENTREPRISE]])","v":25},{"$f":"IF(Tableau1[[#This Row],[ANNEE ENTREE POSTE]]=\"\", \"\", $E$4-Tableau1[[#This Row],[ANNEE ENTREE POSTE]])","v":25}]
[null,{"$error":"#VALUE!"},"A","F",1980,2010,2010,"IPRP",null,null,null,null,null,null,null,null,{"$f":"IF(Tableau1[[#This Row],[ANNEE DE NAISSANCE]]=\"\", \"\", $C$4-Tableau1[[#This Row],[ANNEE DE NAISSANCE]])","v":45},{"$f":"IF(Tableau1[[#This Row],[ANNEE EMBAUCHE ENTREPRISE]]=\"\", \"\", $C$4-Tableau1[[#This Row],[ANNEE EMBAUCHE ENTREPRISE]])","v":15},null,{"$f":"IF(Tableau1[[#This Row],[ANNEE DE NAISSANCE]]=\"\", \"\", $T$4-Tableau1[[#This Row],[ANNEE DE NAISSANCE]])","v":46},{"$f":"IF(Tableau1[[#This Row],[ANNEE EMBAUCHE ENTREPRISE]]=\"\", \"\", $T$4-Tableau1[[#This Row],[ANNEE EMBAUCHE ENTREPRISE]])","v":16},{"$f":"IF(Tableau1[[#This Row],[ANNEE ENTREE POSTE]]=\"\", \"\", $T$4-Tableau1[[#This Row],[ANNEE ENTREE POSTE]])","v":16},{"$f":"IF(Tableau1[[#This Row],[ANNEE DE NAISSANCE]]=\"\", \"\", $W$4-Tableau1[[#This Row],[ANNEE DE NAISSANCE]])","v":47},{"$f":"IF(Tableau1[[#This Row],[ANNEE EMBAUCHE ENTREPRISE]]=\"\", \"\", $W$4-Tableau1[[#This Row],[ANNEE EMBAUCHE ENTREPRISE]])","v":17},{"$f":"IF(Tableau1[[#This Row],[ANNEE ENTREE POSTE]]=\"\", \"\", $W$4-Tableau1[[#This Row],[ANNEE ENTREE POSTE]])","v":17},{"$f":"IF(Tableau1[[#This Row],[ANNEE DE NAISSANCE]]=\"\", \"\", $E$4-Tableau1[[#This Row],[ANNEE DE NAISSANCE]])","v":50},{"$f":"IF(Tableau1[[#This Row],[ANNEE EMBAUCHE ENTREPRISE]]=\"\", \"\", $E$4-Tableau1[[#This Row],[ANNEE EMBAUCHE ENTREPRISE]])","v":20},{"$f":"IF(Tableau1[[#This Row],[ANNEE ENTREE POSTE]]=\"\", \"\", $E$4-Tableau1[[#This Row],[ANNEE ENTREE POSTE]])","v":20}]
[null,{"$error":"#VALUE!"},"A","H",1980,2010,2010,"IPRP",null,null,null,null,null,null,null,null,{"$f":"IF(Tableau1[[#This Row],[ANNEE DE NAISSANCE]]=\"\", \"\", $C$4-Tableau1[[#This Row],[ANNEE DE NAISSANCE]])","v":45},{"$f":"IF(Tableau1[[#This Row],[ANNEE EMBAUCHE ENTREPRISE]]=\"\", \"\", $C$4-Tableau1[[#This Row],[ANNEE EMBAUCHE ENTREPRISE]])","v":15},null,{"$f":"IF(Tableau1[[#This Row],[ANNEE DE NAISSANCE]]=\"\", \"\", $T$4-Tableau1[[#This Row],[ANNEE DE NAISSANCE]])","v":46},{"$f":"IF(Tableau1[[#This Row],[ANNEE EMBAUCHE ENTREPRISE]]=\"\", \"\", $T$4-Tableau1[[#This Row],[ANNEE EMBAUCHE ENTREPRISE]])","v":16},{"$f":"IF(Tableau1[[#This Row],[ANNEE ENTREE POSTE]]=\"\", \"\", $T$4-Tableau1[[#This Row],[ANNEE ENTREE POSTE]])","v":16},{"$f":"IF(Tableau1[[#This Row],[ANNEE DE NAISSANCE]]=\"\", \"\", $W$4-Tableau1[[#This Row],[ANNEE DE NAISSANCE]])","v":47},{"$f":"IF(Tableau1[[#This Row],[ANNEE EMBAUCHE ENTREPRISE]]=\"\", \"\", $W$4-Tableau1[[#This Row],[ANNEE EMBAUCHE ENTREPRISE]])","v":17},{"$f":"IF(Tableau1[[#This Row],[ANNEE ENTREE POSTE]]=\"\", \"\", $W$4-Tableau1[[#This Row],[ANNEE ENTREE POSTE]])","v":17},{"$f":"IF(Tableau1[[#This Row],[ANNEE DE NAISSANCE]]=\"\", \"\", $E$4-Tableau1[[#This Row],[ANNEE DE NAISSANCE]])","v":50},{"$f":"IF(Tableau1[[#This Row],[ANNEE EMBAUCHE ENTREPRISE]]=\"\", \"\", $E$4-Tableau1[[#This Row],[ANNEE EMBAUCHE ENTREPRISE]])","v":20},{"$f":"IF(Tableau1[[#This Row],[ANNEE ENTREE POSTE]]=\"\", \"\", $E$4-Tableau1[[#This Row],[ANNEE ENTREE POSTE]])","v":20}]
[null,{"$error":"#VALUE!"},"A","H",1990,2010,2010,"IPRP",null,null,null,null,null,null,null,null,{"$f":"IF(Tableau1[[#This Row],[ANNEE DE NAISSANCE]]=\"\", \"\", $C$4-Tableau1[[#This Row],[ANNEE DE NAISSANCE]])","v":35},{"$f":"IF(Tableau1[[#This Row],[ANNEE EMBAUCHE ENTREPRISE]]=\"\", \"\", $C$4-Tableau1[[#This Row],[ANNEE EMBAUCHE ENTREPRISE]])","v":15},null,{"$f":"IF(Tableau1[[#This Row],[ANNEE DE NAISSANCE]]=\"\", \"\", $T$4-Tableau1[[#This Row],[ANNEE DE NAISSANCE]])","v":36},{"$f":"IF(Tableau1[[#This Row],[ANNEE EMBAUCHE ENTREPRISE]]=\"\", \"\", $T$4-Tableau1[[#This Row],[ANNEE EMBAUCHE ENTREPRISE]])","v":16},{"$f":"IF(Tableau1[[#This Row],[ANNEE ENTREE POSTE]]=\"\", \"\", $T$4-Tableau1[[#This Row],[ANNEE ENTREE POSTE]])","v":16},{"$f":"IF(Tableau1[[#This Row],[ANNEE DE NAISSANCE]]=\"\", \"\", $W$4-Tableau1[[#This Row],[ANNEE DE NAISSANCE]])","v":37},{"$f":"IF(Tableau1[[#This Row],[ANNEE EMBAUCHE ENTREPRISE]]=\"\", \"\", $W$4-Tableau1[[#This Row],[ANNEE EMBAUCHE ENTREPRISE]])","v":17},{"$f":"IF(Tableau1[[#This Row],[ANNEE ENTREE POSTE]]=\"\", \"\", $W$4-Tableau1[[#This Row],[ANNEE ENTREE POSTE]])","v":17},{"$f":"IF(Tableau1[[#This Row],[ANNEE DE NAISSANCE]]=\"\", \"\", $E$4-Tableau1[[#This Row],[ANNEE DE NAISSANCE]])","v":40},{"$f":"IF(Tableau1[[#This Row],[ANNEE EMBAUCHE ENTREPRISE]]=\"\", \"\", $E$4-Tableau1[[#This Row],[ANNEE EMBAUCHE ENTREPRISE]])","v":20},{"$f":"IF(Tableau1[[#This Row],[ANNEE ENTREE POSTE]]=\"\", \"\", $E$4-Tableau1[[#This Row],[ANNEE ENTREE POSTE]])","v":20}]
[null,{"$error":"#VALUE!"},"F","F",1990,2010,2010,"IPRP",null,null,null,null,null,null,null,null,{"$f":"IF(Tableau1[[#This Row],[ANNEE DE NAISSANCE]]=\"\", \"\", $C$4-Tableau1[[#This Row],[ANNEE DE NAISSANCE]])","v":35},{"$f":"IF(Tableau1[[#This Row],[ANNEE EMBAUCHE ENTREPRISE]]=\"\", \"\", $C$4-Tableau1[[#This Row],[ANNEE EMBAUCHE ENTREPRISE]])","v":15},null,{"$f":"IF(Tableau1[[#This Row],[ANNEE DE NAISSANCE]]=\"\", \"\", $T$4-Tableau1[[#This Row],[ANNEE DE NAISSANCE]])","v":36},{"$f":"IF(Tableau1[[#This Row],[ANNEE EMBAUCHE ENTREPRISE]]=\"\", \"\", $T$4-Tableau1[[#This Row],[ANNEE EMBAUCHE ENTREPRISE]])","v":16},{"$f":"IF(Tableau1[[#This Row],[ANNEE ENTREE POSTE]]=\"\", \"\", $T$4-Tableau1[[#This Row],[ANNEE ENTREE POSTE]])","v":16},{"$f":"IF(Tableau1[[#This Row],[ANNEE DE NAISSANCE]]=\"\", \"\", $W$4-Tableau1[[#This Row],[ANNEE DE NAISSANCE]])","v":37},{"$f":"IF(Tableau1[[#This Row],[ANNEE EMBAUCHE ENTREPRISE]]=\"\", \"\", $W$4-Tableau1[[#This Row],[ANNEE EMBAUCHE ENTREPRISE]])","v":17},{"$f":"IF(Tableau1[[#This Row],[ANNEE ENTREE POSTE]]=\"\", \"\", $W$4-Tableau1[[#This Row],[ANNEE ENTREE POSTE]])","v":17},{"$f":"IF(Tableau1[[#This Row],[ANNEE DE NAISSANCE]]=\"\", \"\", $E$4-Tableau1[[#This Row],[ANNEE DE NAISSANCE]])","v":40},{"$f":"IF(Tableau1[[#This Row],[ANNEE EMBAUCHE ENTREPRISE]]=\"\", \"\", $E$4-Tableau1[[#This Row],[ANNEE EMBAUCHE ENTREPRISE]])","v":20},{"$f":"IF(Tableau1[[#This Row],[ANNEE ENTREE POSTE]]=\"\", \"\", $E$4-Tableau1[[#This Row],[ANNEE ENTREE POSTE]])","v":20}]
[null,{"$error":"#VALUE!"},"D","F",1990,2010,2010,"IPRP",null,null,null,null,null,null,null,null,{"$f":"IF(Tableau1[[#This Row],[ANNEE DE NAISSANCE]]=\"\", \"\", $C$4-Tableau1[[#This Row],[ANNEE DE NAISSANCE]])","v":35},{"$f":"IF(Tableau1[[#This Row],[ANNEE EMBAUCHE ENTREPRISE]]=\"\", \"\", $C$4-Tableau1[[#This Row],[ANNEE EMBAUCHE ENTREPRISE]])","v":15},null,{"$f":"IF(Tableau1[[#This Row],[ANNEE DE NAISSANCE]]=\"\", \"\", $T$4-Tableau1[[#This Row],[ANNEE DE NAISSANCE]])","v":36},{"$f":"IF(Tableau1[[#This Row],[ANNEE EMBAUCHE ENTREPRISE]]=\"\", \"\", $T$4-Tableau1[[#This Row],[ANNEE EMBAUCHE ENTREPRISE]])","v":16},{"$f":"IF(Tableau1[[#This Row],[ANNEE ENTREE POSTE]]=\"\", \"\", $T$4-Tableau1[[#This Row],[ANNEE ENTREE POSTE]])","v":16},{"$f":"IF(Tableau1[[#This Row],[ANNEE DE NAISSANCE]]=\"\", \"\", $W$4-Tableau1[[#This Row],[ANNEE DE NAISSANCE]])","v":37},{"$f":"IF(Tableau1[[#This Row],[ANNEE EMBAUCHE ENTREPRISE]]=\"\", \"\", $W$4-Tableau1[[#This Row],[ANNEE EMBAUCHE ENTREPRISE]])","v":17},{"$f":"IF(Tableau1[[#This Row],[ANNEE ENTREE POSTE]]=\"\", \"\", $W$4-Tableau1[[#This Row],[ANNEE ENTREE POSTE]])","v":17},{"$f":"IF(Tableau1[[#This Row],[ANNEE DE NAISSANCE]]=\"\", \"\", $E$4-Tableau1[[#This Row],[ANNEE DE NAISSANCE]])","v":40},{"$f":"IF(Tableau1[[#This Row],[ANNEE EMBAUCHE ENTREPRISE]]=\"\", \"\", $E$4-Tableau1[[#This Row],[ANNEE EMBAUCHE ENTREPRISE]])","v":20},{"$f":"IF(Tableau1[[#This Row],[ANNEE ENTREE POSTE]]=\"\", \"\", $E$4-Tableau1[[#This Row],[ANNEE ENTREE POSTE]])","v":20}]
[null,{"$error":"#VALUE!"},"D","H",1990,2010,2010,"IPRP",null,null,null,null,null,null,null,null,{"$f":"IF(Tableau1[[#This Row],[ANNEE DE NAISSANCE]]=\"\", \"\", $C$4-Tableau1[[#This Row],[ANNEE DE NAISSANCE]])","v":35},{"$f":"IF(Tableau1[[#This Row],[ANNEE EMBAUCHE ENTREPRISE]]=\"\", \"\", $C$4-Tableau1[[#This Row],[ANNEE EMBAUCHE ENTREPRISE]])","v":15},null,{"$f":"IF(Tableau1[[#This Row],[ANNEE DE NAISSANCE]]=\"\", \"\", $T$4-Tableau1[[#This Row],[ANNEE DE NAISSANCE]])","v":36},{"$f":"IF(Tableau1[[#This Row],[ANNEE EMBAUCHE ENTREPRISE]]=\"\", \"\", $T$4-Tableau1[[#This Row],[ANNEE EMBAUCHE ENTREPRISE]])","v":16},{"$f":"IF(Tableau1[[#This Row],[ANNEE ENTREE POSTE]]=\"\", \"\", $T$4-Tableau1[[#This Row],[ANNEE ENTREE POSTE]])","v":16},{"$f":"IF(Tableau1[[#This Row],[ANNEE DE NAISSANCE]]=\"\", \"\", $W$4-Tableau1[[#This Row],[ANNEE DE NAISSANCE]])","v":37},{"$f":"IF(Tableau1[[#This Row],[ANNEE EMBAUCHE ENTREPRISE]]=\"\", \"\", $W$4-Tableau1[[#This Row],[ANNEE EMBAUCHE ENTREPRISE]])","v":17},{"$f":"IF(Tableau1[[#This Row],[ANNEE ENTREE POSTE]]=\"\", \"\", $W$4-Tableau1[[#This Row],[ANNEE ENTREE POSTE]])","v":17},{"$f":"IF(Tableau1[[#This Row],[ANNEE DE NAISSANCE]]=\"\", \"\", $E$4-Tableau1[[#This Row],[ANNEE DE NAISSANCE]])","v":40},{"$f":"IF(Tableau1[[#This Row],[ANNEE EMBAUCHE ENTREPRISE]]=\"\", \"\", $E$4-Tableau1[[#This Row],[ANNEE EMBAUCHE ENTREPRISE]])","v":20},{"$f":"IF(Tableau1[[#This Row],[ANNEE ENTREE POSTE]]=\"\", \"\", $E$4-Tableau1[[#This Row],[ANNEE ENTREE POSTE]])","v":20}]
[null,{"$error":"#VALUE!"},"D","H",1990,2010,2010,"ASST",null,null,null,null,null,null,null,null,{"$f":"IF(Tableau1[[#This Row],[ANNEE DE NAISSANCE]]=\"\", \"\", $C$4-Tableau1[[#This Row],[ANNEE DE NAISSANCE]])","v":35},{"$f":"IF(Tableau1[[#This Row],[ANNEE EMBAUCHE ENTREPRISE]]=\"\", \"\", $C$4-Tableau1[[#This Row],[ANNEE EMBAUCHE ENTREPRISE]])","v":15},null,{"$f":"IF(Tableau1[[#This Row],[ANNEE DE NAISSANCE]]=\"\", \"\", $T$4-Tableau1[[#This Row],[ANNEE DE NAISSANCE]])","v":36},{"$f":"IF(Tableau1[[#This Row],[ANNEE EMBAUCHE ENTREPRISE]]=\"\", \"\", $T$4-Tableau1[[#This Row],[ANNEE EMBAUCHE ENTREPRISE]])","v":16},{"$f":"IF(Tableau1[[#This Row],[ANNEE ENTREE POSTE]]=\"\", \"\", $T$4-Tableau1[[#This Row],[ANNEE ENTREE POSTE]])","v":16},{"$f":"IF(Tableau1[[#This Row],[ANNEE DE NAISSANCE]]=\"\", \"\", $W$4-Tableau1[[#This Row],[ANNEE DE NAISSANCE]])","v":37},{"$f":"IF(Tableau1[[#This Row],[ANNEE EMBAUCHE ENTREPRISE]]=\"\", \"\", $W$4-Tableau1[[#This Row],[ANNEE EMBAUCHE ENTREPRISE]])","v":17},{"$f":"IF(Tableau1[[#This Row],[ANNEE ENTREE POSTE]]=\"\", \"\", $W$4-Tableau1[[#This Row],[ANNEE ENTREE POSTE]])","v":17},{"$f":"IF(Tableau1[[#This Row],[ANNEE DE NAISSANCE]]=\"\", \"\", $E$4-Tableau1[[#This Row],[ANNEE DE NAISSANCE]])","v":40},{"$f":"IF(Tableau1[[#This Row],[ANNEE EMBAUCHE ENTREPRISE]]=\"\", \"\", $E$4-Tableau1[[#This Row],[ANNEE EMBAUCHE ENTREPRISE]])","v":20},{"$f":"IF(Tableau1[[#This Row],[ANNEE ENTREE POSTE]]=\"\", \"\", $E$4-Tableau1[[#This Row],[ANNEE ENTREE POSTE]])","v":20}]
[null,{"$error":"#VALUE!"},"F","F",1990,2010,2010,"ASST",null,null,null,null,null,null,null,null,{"$f":"IF(Tableau1[[#This Row],[ANNEE DE NAISSANCE]]=\"\", \"\", $C$4-Tableau1[[#This Row],[ANNEE DE NAISSANCE]])","v":35},{"$f":"IF(Tableau1[[#This Row],[ANNEE EMBAUCHE ENTREPRISE]]=\"\", \"\", $C$4-Tableau1[[#This Row],[ANNEE EMBAUCHE ENTREPRISE]])","v":15},null,{"$f":"IF(Tableau1[[#This Row],[ANNEE DE NAISSANCE]]=\"\", \"\", $T$4-Tableau1[[#This Row],[ANNEE DE NAISSANCE]])","v":36},{"$f":"IF(Tableau1[[#This Row],[ANNEE EMBAUCHE ENTREPRISE]]=\"\", \"\", $T$4-Tableau1[[#This Row],[ANNEE EMBAUCHE ENTREPRISE]])","v":16},{"$f":"IF(Tableau1[[#This Row],[ANNEE ENTREE POSTE]]=\"\", \"\", $T$4-Tableau1[[#This Row],[ANNEE ENTREE POSTE]])","v":16},{"$f":"IF(Tableau1[[#This Row],[ANNEE DE NAISSANCE]]=\"\", \"\", $W$4-Tableau1[[#This Row],[ANNEE DE NAISSANCE]])","v":37},{"$f":"IF(Tableau1[[#This Row],[ANNEE EMBAUCHE ENTREPRISE]]=\"\", \"\", $W$4-Tableau1[[#This Row],[ANNEE EMBAUCHE ENTREPRISE]])","v":17},{"$f":"IF(Tableau1[[#This Row],[ANNEE ENTREE POSTE]]=\"\", \"\", $W$4-Tableau1[[#This Row],[ANNEE ENTREE POSTE]])","v":17},{"$f":"IF(Tableau1[[#This Row],[ANNEE DE NAISSANCE]]=\"\", \"\", $E$4-Tableau1[[#This Row],[ANNEE DE NAISSANCE]])","v":40},{"$f":"IF(Tableau1[[#This Row],[ANNEE EMBAUCHE ENTREPRISE]]=\"\", \"\", $E$4-Tableau1[[#This Row],[ANNEE EMBAUCHE ENTREPRISE]])","v":20},{"$f":"IF(Tableau1[[#This Row],[ANNEE ENTREE POSTE]]=\"\", \"\", $E$4-Tableau1[[#This Row],[ANNEE ENTREE POSTE]])","v":20}]
[null,{"$error":"#VALUE!"},"D","F",1990,2010,2010,"ASST",null,null,null,null,null,null,null,null,{"$f":"IF(Tableau1[[#This Row],[ANNEE DE NAISSANCE]]=\"\", \"\", $C$4-Tableau1[[#This Row],[ANNEE DE NAISSANCE]])","v":35},{"$f":"IF(Tableau1[[#This Row],[ANNEE EMBAUCHE ENTREPRISE]]=\"\", \"\", $C$4-Tableau1[[#This Row],[ANNEE EMBAUCHE ENTREPRISE]])","v":15},null,{"$f":"IF(Tableau1[[#This Row],[ANNEE DE NAISSANCE]]=\"\", \"\", $T$4-Tableau1[[#This Row],[ANNEE DE NAISSANCE]])","v":36},{"$f":"IF(Tableau1[[#This Row],[ANNEE EMBAUCHE ENTREPRISE]]=\"\", \"\", $T$4-Tableau1[[#This Row],[ANNEE EMBAUCHE ENTREPRISE]])","v":16},{"$f":"IF(Tableau1[[#This Row],[ANNEE ENTREE POSTE]]=\"\", \"\", $T$4-Tableau1[[#This Row],[ANNEE ENTREE POSTE]])","v":16},{"$f":"IF(Tableau1[[#This Row],[ANNEE DE NAISSANCE]]=\"\", \"\", $W$4-Tableau1[[#This Row],[ANNEE DE NAISSANCE]])","v":37},{"$f":"IF(Tableau1[[#This Row],[ANNEE EMBAUCHE ENTREPRISE]]=\"\", \"\", $W$4-Tableau1[[#This Row],[ANNEE EMBAUCHE ENTREPRISE]])","v":17},{"$f":"IF(Tableau1[[#This Row],[ANNEE ENTREE POSTE]]=\"\", \"\", $W$4-Tableau1[[#This Row],[ANNEE ENTREE POSTE]])","v":17},{"$f":"IF(Tableau1[[#This Row],[ANNEE DE NAISSANCE]]=\"\", \"\", $E$4-Tableau1[[#This Row],[ANNEE DE NAISSANCE]])","v":40},{"$f":"IF(Tableau1[[#This Row],[ANNEE EMBAUCHE ENTREPRISE]]=\"\", \"\", $E$4-Tableau1[[#This Row],[ANNEE EMBAUCHE ENTREPRISE]])","v":20},{"$f":"IF(Tableau1[[#This Row],[ANNEE ENTREE POSTE]]=\"\", \"\", $E$4-Tableau1[[#This Row],[ANNEE ENTREE POSTE]])","v":20}]

{"sheet":"Age (Année en cours)","index":2,"n_rows":60,"n_cols":17,"rows_kept":60,"cut":false,"hidden":false,"merged":[[1,5,1,6],[2,5,2,6],[3,5,3,6]]}
[]
[null,"VOTRE STRUCTURE DES AGES  ?",null,null,null,"Nombre de Femmes ",null,{"$f":"COUNTIF(Tableau1[SEXE\n (F ou H)], \"F\")","v":25},{"$f":"H2/H4","v":0.5}]
[null,null,null,null,null,"Nombre d'Hommes",null,{"$f":"COUNTIF(Tableau1[SEXE\n (F ou H)], \"H\")","v":25},{"$f":"H3/H4","v":0.5}]
[null,"CARACTERISTIQUES POPULATION (ANNEE EN COURS)",null,null,null,"Effectif total",null,{"$f":"COUNT(Tableau1[ANNEE DE NAISSANCE])","v":50}]
[]
[null,null,null,null,null,null,null,null,null,null,null,null,null,null,null,null,"ANNEE EN COURS"]
[null,null,null,null,null,null,null,null,null,null,null,null,null,null,null,null,"Nombre"]
[null,null,null,null,null,null,null,null,null,null,null,null,null,null,null,18,{"$f":"COUNTIF(Tableau1[Age], 'Age (Année en cours)'!P8)","v":0}]
[null,null,null,null,null,null,null,null,null,null,null,null,null,null,null,19,{"$f":"COUNTIF(Tableau1[Age], 'Age (Année en cours)'!P9)","v":0}]
[null,null,null,null,null,null,null,null,null,null,null,null,null,null,null,20,{"$f":"COUNTIF(Tableau1[Age], 'Age (Année en cours)'!P10)","v":0}]
[null,null,null,null,null,null,null,null,null,null,null,null,null,null,null,21,{"$f":"COUNTIF(Tableau1[Age], 'Age (Année en cours)'!P11)","v":0}]
[null,null,null,null,null,null,null,null,null,null,null,null,null,null,null,22,{"$f":"COUNTIF(Tableau1[Age], 'Age (Année en cours)'!P12)","v":0}]
[null,null,null,null,null,null,null,null,null,null,null,null,null,null,null,23,{"$f":"COUNTIF(Tableau1[Age], 'Age (Année en cours)'!P13)","v":0}]
[null,null,null,null,null,null,null,null,null,null,null,null,null,null,null,24,{"$f":"COUNTIF(Tableau1[Age], 'Age (Année en cours)'!P14)","v":0}]
[null,null,null,null,null,null,null,null,null,null,null,null,null,null,null,25,{"$f":"COUNTIF(Tableau1[Age], 'Age (Année en cours)'!P15)","v":0}]
[null,null,null,null,null,null,null,null,null,null,null,null,null,null,null,26,{"$f":"COUNTIF(Tableau1[Age], 'Age (Année en cours)'!P16)","v":0}]
[null,null,null,null,null,null,null,null,null,null,null,null,null,null,null,27,{"$f":"COUNTIF(Tableau1[Age], 'Age (Année en cours)'!P17)","v":0}]
[null,null,null,null,null,null,null,null,null,null,null,null,null,null,null,28,{"$f":"COUNTIF(Tableau1[Age], 'Age (Année en cours)'!P18)","v":0}]
[null,null,null,null,null,null,null,null,null,null,null,null,null,null,null,29,{"$f":"COUNTIF(Tableau1[Age], 'Age (Année en cours)'!P19)","v":0}]
[null,null,null,null,null,null,null,null,null,null,null,null,null,null,null,30,{"$f":"COUNTIF(Tableau1[Age], 'Age (Année en cours)'!P20)","v":0}]
[null,null,null,null,null,null,null,null,null,null,null,null,null,null,null,31,{"$f":"COUNTIF(Tableau1[Age], 'Age (Année en cours)'!P21)","v":0}]
[null,null,null,null,null,null,null,null,null,null,null,null,null,null,null,32,{"$f":"COUNTIF(Tableau1[Age], 'Age (Année en cours)'!P22)","v":0}]
[null,null,null,null,null,null,null,null,null,null,null,null,null,null,null,33,{"$f":"COUNTIF(Tableau1[Age], 'Age (Année en cours)'!P23)","v":0}]
[null,null,null,null,null,null,null,null,null,null,null,null,null,null,null,34,{"$f":"COUNTIF(Tableau1[Age], 'Age (Année en cours)'!P24)","v":0}]
[null,null,null,null,null,null,null,null,null,null,null,null,null,null,null,35,{"$f":"COUNTIF(Tableau1[Age], 'Age (Année en cours)'!P25)","v":13}]
[null,null,null,null,null,null,null,null,null,null,null,null,null,null,null,36,{"$f":"COUNTIF(Tableau1[Age], 'Age (Année en cours)'!P26)","v":0}]
[null,null,null,null,null,null,null,null,null,null,null,null,null,null,null,37,{"$f":"COUNTIF(Tableau1[Age], 'Age (Année en cours)'!P27)","v":0}]
[null,null,null,null,null,null,null,null,null,null,null,null,null,null,null,38,{"$f":"COUNTIF(Tableau1[Age], 'Age (Année en cours)'!P28)","v":0}]
["POUR ALLER PLUS LOIN : Tableau Croisé Dynamique",null,null,null,null,null,null,null,null,null,null,null,null,null,null,39,{"$f":"COUNTIF(Tableau1[Age], 'Age (Année en cours)'!P29)","v":1}]
[null,null,null,null,null,null,null,null,null,null,null,null,null,null,null,40,{"$f":"COUNTIF(Tableau1[Age], 'Age (Année en cours)'!P30)","v":1}]
[null,"AGE Année en cours",null,null,null,null,null,null,null,null,null,null,null,null,null,41,{"$f":"COUNTIF(Tableau1[Age], 'Age (Année en cours)'!P31)","v":0}]
[null,null,null,null,null,null,null,null,null,null,null,null,null,null,null,42,{"$f":"COUNTIF(Tableau1[Age], 'Age (Année en cours)'!P32)","v":0}]
[null,"METIER","(Tous)",null,null,null,null,null,null,null,null,null,null,null,null,43,{"$f":"COUNTIF(Tableau1[Age], 'Age (Année en cours)'!P33)","v":0}]
[null,null,null,null,null,null,null,null,null,null,null,null,null,null,null,44,{"$f":"COUNTIF(Tableau1[Age], 'Age (Année en cours)'!P34)","v":0}]
[null,"Étiquettes de lignes","Nombre de Numéro",null,null,null,null,null,null,null,null,null,null,null,null,45,{"$f":"COUNTIF(Tableau1[Age], 'Age (Année en cours)'!P35)","v":8}]
[null,35,13,null,null,null,null,null,null,null,null,null,null,null,null,46,{"$f":"COUNTIF(Tableau1[Age], 'Age (Année en cours)'!P36)","v":4}]
[null,39,1,null,null,null,null,null,null,null,null,null,null,null,null,47,{"$f":"COUNTIF(Tableau1[Age], 'Age (Année en cours)'!P37)","v":2}]
[null,40,1,null,null,null,null,null,null,null,null,null,null,null,null,48,{"$f":"COUNTIF(Tableau1[Age], 'Age (Année en cours)'!P38)","v":0}]
[null,45,8,null,null,null,null,null,null,null,null,null,null,null,null,49,{"$f":"COUNTIF(Tableau1[Age], 'Age (Année en cours)'!P39)","v":0}]
[null,46,4,null,null,null,null,null,null,null,null,null,null,null,null,50,{"$f":"COUNTIF(Tableau1[Age], 'Age (Année en cours)'!P40)","v":5}]
[null,47,2,null,null,null,null,null,null,null,null,null,null,null,null,51,{"$f":"COUNTIF(Tableau1[Age], 'Age (Année en cours)'!P41)","v":0}]
[null,50,5,null,null,null,null,null,null,null,null,null,null,null,null,52,{"$f":"COUNTIF(Tableau1[Age], 'Age (Année en cours)'!P42)","v":3}]
[null,52,3,null,null,null,null,null,null,null,null,null,null,null,null,53,{"$f":"COUNTIF(Tableau1[Age], 'Age (Année en cours)'!P43)","v":1}]
[null,53,1,null,null,null,null,null,null,null,null,null,null,null,null,54,{"$f":"COUNTIF(Tableau1[Age], 'Age (Année en cours)'!P44)","v":0}]
[null,55,1,null,null,null,null,null,null,null,null,null,null,null,null,55,{"$f":"COUNTIF(Tableau1[Age], 'Age (Année en cours)'!P45)","v":1}]
[null,60,8,null,null,null,null,null,null,null,null,null,null,null,null,56,{"$f":"COUNTIF(Tableau1[Age], 'Age (Année en cours)'!P46)","v":0}]
[null,63,1,null,null,null,null,null,null,null,null,null,null,null,null,57,{"$f":"COUNTIF(Tableau1[Age], 'Age (Année en cours)'!P47)","v":0}]
[null,65,1,null,null,null,null,null,null,null,null,null,null,null,null,58,{"$f":"COUNTIF(Tableau1[Age], 'Age (Année en cours)'!P48)","v":0}]
[null,66,1,null,null,null,null,null,null,null,null,null,null,null,null,59,{"$f":"COUNTIF(Tableau1[Age], 'Age (Année en cours)'!P49)","v":0}]
[null,"Total général",50,null,null,null,null,null,null,null,null,null,null,null,null,60,{"$f":"COUNTIF(Tableau1[Age], 'Age (Année en cours)'!P50)","v":8}]
[null,null,null,null,null,null,null,null,null,null,null,null,null,null,null,61,{"$f":"COUNTIF(Tableau1[Age], 'Age (Année en cours)'!P51)","v":0}]
[null,null,null,null,null,null,null,null,null,null,null,null,null,null,null,62,{"$f":"COUNTIF(Tableau1[Age], 'Age (Année en cours)'!P52)","v":0}]
[null,null,null,null,null,null,null,null,null,null,null,null,null,null,null,63,{"$f":"COUNTIF(Tableau1[Age], 'Age (Année en cours)'!P53)","v":1}]
[null,null,null,null,null,null,null,null,null,null,null,null,null,null,null,64,{"$f":"COUNTIF(Tableau1[Age], 'Age (Année en cours)'!P54)","v":0}]
[null,null,null,null,null,null,null,null,null,null,null,null,null,null,null,65,{"$f":"COUNTIF(Tableau1[Age], 'Age (Année en cours)'!P55)","v":1}]
[null,null,null,null,null,null,null,null,null,null,null,null,null,null,null,66,{"$f":"COUNTIF(Tableau1[Age], 'Age (Année en cours)'!P56)","v":1}]
[null,null,null,null,null,null,null,null,null,null,null,null,null,null,null,67,{"$f":"COUNTIF(Tableau1[Age], 'Age (Année en cours)'!P57)","v":0}]
[null,null,null,null,null,null,null,null,null,null,null,null,null,null,null,68,{"$f":"COUNTIF(Tableau1[Age], 'Age (Année en cours)'!P58)","v":0}]
[null,null,null,null,null,null,null,null,null,null,null,null,null,null,null,69,{"$f":"COUNTIF(Tableau1[Age], 'Age (Année en cours)'!P59)","v":0}]
[null,null,null,null,null,null,null,null,null,null,null,null,null,null,null,70,{"$f":"COUNTIF(Tableau1[Age], 'Age (Année en cours)'!P60)","v":0}]

{"sheet":"Simulation Age","index":3,"n_rows":65,"n_cols":26,"rows_kept":65,"cut":false,"hidden":false,"merged":[[4,23,5,25]]}
[]
[null,"PROJECTION DE VOTRE STRUCTURE DES AGES  ?"]
[]
[]
[null,null,null,null,null,null,null,null,null,null,null,null,null,null,null,null,null,null,null,null,null,null,null,"NE PAS TOUCHER\nPRESENCE DE FORMULE"]
[]
[null,null,null,null,null,null,null,null,null,null,null,null,null,null,null,null,null,null,null,null,null,null,null,"Dans un an","Dans 2 ans","Année de votre choix"]
[null,null,null,null,null,null,null,null,null,null,null,null,null,null,null,null,null,null,null,null,null,null,18,{"$f":"COUNTIF(Tableau1[AGE 1], 'Simulation Age'!W8)","v":0},{"$f":"COUNTIF(Tableau1[AGE2], 'Simulation Age'!W8)","v":0},{"$f":"COUNTIF(Tableau1[AGE X], 'Simulation Age'!W8)","v":0}]
[null,null,null,null,null,null,null,null,null,null,null,null,null,null,null,null,null,null,null,null,null,null,19,{"$f":"COUNTIF(Tableau1[AGE 1], 'Simulation Age'!W9)","v":0},{"$f":"COUNTIF(Tableau1[AGE2], 'Simulation Age'!W9)","v":0},{"$f":"COUNTIF(Tableau1[AGE X], 'Simulation Age'!W9)","v":0}]
[null,null,null,null,null,null,null,null,null,null,null,null,null,null,null,null,null,null,null,null,null,null,20,{"$f":"COUNTIF(Tableau1[AGE 1], 'Simulation Age'!W10)","v":0},{"$f":"COUNTIF(Tableau1[AGE2], 'Simulation Age'!W10)","v":0},{"$f":"COUNTIF(Tableau1[AGE X], 'Simulation Age'!W10)","v":0}]
[null,null,null,null,null,null,null,null,null,null,null,null,null,null,null,null,null,null,null,null,null,null,21,{"$f":"COUNTIF(Tableau1[AGE 1], 'Simulation Age'!W11)","v":0},{"$f":"COUNTIF(Tableau1[AGE2], 'Simulation Age'!W11)","v":0},{"$f":"COUNTIF(Tableau1[AGE X], 'Simulation Age'!W11)","v":0}]
[null,null,null,null,null,null,null,null,null,null,null,null,null,null,null,null,null,null,null,null,null,null,22,{"$f":"COUNTIF(Tableau1[AGE 1], 'Simulation Age'!W12)","v":0},{"$f":"COUNTIF(Tableau1[AGE2], 'Simulation Age'!W12)","v":0},{"$f":"COUNTIF(Tableau1[AGE X], 'Simulation Age'!W12)","v":0}]
[null,null,null,null,null,null,null,null,null,null,null,null,null,null,null,null,null,null,null,null,null,null,23,{"$f":"COUNTIF(Tableau1[AGE 1], 'Simulation Age'!W13)","v":0},{"$f":"COUNTIF(Tableau1[AGE2], 'Simulation Age'!W13)","v":0},{"$f":"COUNTIF(Tableau1[AGE X], 'Simulation Age'!W13)","v":0}]
[null,null,null,null,null,null,null,null,null,null,null,null,null,null,null,null,null,null,null,null,null,null,24,{"$f":"COUNTIF(Tableau1[AGE 1], 'Simulation Age'!W14)","v":0},{"$f":"COUNTIF(Tableau1[AGE2], 'Simulation Age'!W14)","v":0},{"$f":"COUNTIF(Tableau1[AGE X], 'Simulation Age'!W14)","v":0}]
[null,null,null,null,null,null,null,null,null,null,null,null,null,null,null,null,null,null,null,null,null,null,25,{"$f":"COUNTIF(Tableau1[AGE 1], 'Simulation Age'!W15)","v":0},{"$f":"COUNTIF(Tableau1[AGE2], 'Simulation Age'!W15)","v":0},{"$f":"COUNTIF(Tableau1[AGE X], 'Simulation Age'!W15)","v":0}]
[null,null,null,null,null,null,null,null,null,null,null,null,null,null,null,null,null,null,null,null,null,null,26,{"$f":"COUNTIF(Tableau1[AGE 1], 'Simulation Age'!W16)","v":0},{"$f":"COUNTIF(Tableau1[AGE2], 'Simulation Age'!W16)","v":0},{"$f":"COUNTIF(Tableau1[AGE X], 'Simulation Age'!W16)","v":0}]
[null,null,null,null,null,null,null,null,null,null,null,null,null,null,null,null,null,null,null,null,null,null,27,{"$f":"COUNTIF(Tableau1[AGE 1], 'Simulation Age'!W17)","v":0},{"$f":"COUNTIF(Tableau1[AGE2], 'Simulation Age'!W17)","v":0},{"$f":"COUNTIF(Tableau1[AGE X], 'Simulation Age'!W17)","v":0}]
[null,null,null,null,null,null,null,null,null,null,null,null,null,null,null,null,null,null,null,null,null,null,28,{"$f":"COUNTIF(Tableau1[AGE 1], 'Simulation Age'!W18)","v":0},{"$f":"COUNTIF(Tableau1[AGE2], 'Simulation Age'!W18)","v":0},{"$f":"COUNTIF(Tableau1[AGE X], 'Simulation Age'!W18)","v":0}]
[null,null,null,null,null,null,null,null,null,null,null,null,null,null,null,null,null,null,null,null,null,null,29,{"$f":"COUNTIF(Tableau1[AGE 1], 'Simulation Age'!W19)","v":0},{"$f":"COUNTIF(Tableau1[AGE2], 'Simulation Age'!W19)","v":0},{"$f":"COUNTIF(Tableau1[AGE X], 'Simulation Age'!W19)","v":0}]
[null,null,null,null,null,null,null,null,null,null,null,null,null,null,null,null,null,null,null,null,null,null,30,{"$f":"COUNTIF(Tableau1[AGE 1], 'Simulation Age'!W20)","v":0},{"$f":"COUNTIF(Tableau1[AGE2], 'Simulation Age'!W20)","v":0},{"$f":"COUNTIF(Tableau1[AGE X], 'Simulation Age'!W20)","v":0}]
[null,null,null,null,null,null,null,null,null,null,null,null,null,null,null,null,null,null,null,null,null,null,31,{"$f":"COUNTIF(Tableau1[AGE 1], 'Simulation Age'!W21)","v":0},{"$f":"COUNTIF(Tableau1[AGE2], 'Simulation Age'!W21)","v":0},{"$f":"COUNTIF(Tableau1[AGE X], 'Simulation Age'!W21)","v":0}]
[null,null,null,null,null,null,null,null,null,null,null,null,null,null,null,null,null,null,null,null,null,null,32,{"$f":"COUNTIF(Tableau1[AGE 1], 'Simulation Age'!W22)","v":0},{"$f":"COUNTIF(Tableau1[AGE2], 'Simulation Age'!W22)","v":0},{"$f":"COUNTIF(Tableau1[AGE X], 'Simulation Age'!W22)","v":0}]
[null,null,null,null,null,null,null,null,null,null,null,null,null,null,null,null,null,null,null,null,null,null,33,{"$f":"COUNTIF(Tableau1[AGE 1], 'Simulation Age'!W23)","v":0},{"$f":"COUNTIF(Tableau1[AGE2], 'Simulation Age'!W23)","v":0},{"$f":"COUNTIF(Tableau1[AGE X], 'Simulation Age'!W23)","v":0}]
[null,null,null,null,null,null,null,null,null,null,null,null,null,null,null,null,null,null,null,null,null,null,34,{"$f":"COUNTIF(Tableau1[AGE 1], 'Simulation Age'!W24)","v":0},{"$f":"COUNTIF(Tableau1[AGE2], 'Simulation Age'!W24)","v":0},{"$f":"COUNTIF(Tableau1[AGE X], 'Simulation Age'!W24)","v":0}]
[null,null,null,null,null,null,null,null,null,null,null,null,null,null,null,null,null,null,null,null,null,null,35,{"$f":"COUNTIF(Tableau1[AGE 1], 'Simulation Age'!W25)","v":0},{"$f":"COUNTIF(Tableau1[AGE2], 'Simulation Age'!W25)","v":0},{"$f":"COUNTIF(Tableau1[AGE X], 'Simulation Age'!W25)","v":0}]
[null,null,null,null,null,null,null,null,null,null,null,null,null,null,null,null,null,null,null,null,null,null,36,{"$f":"COUNTIF(Tableau1[AGE 1], 'Simulation Age'!W26)","v":13},{"$f":"COUNTIF(Tableau1[AGE2], 'Simulation Age'!W26)","v":0},{"$f":"COUNTIF(Tableau1[AGE X], 'Simulation Age'!W26)","v":0}]
[null,null,null,null,null,null,null,null,null,null,null,null,null,null,null,null,null,null,null,null,null,null,37,{"$f":"COUNTIF(Tableau1[AGE 1], 'Simulation Age'!W27)","v":0},{"$f":"COUNTIF(Tableau1[AGE2], 'Simulation Age'!W27)","v":13},{"$f":"COUNTIF(Tableau1[AGE X], 'Simulation Age'!W27)","v":0}]
[null,null,null,null,null,null,null,null,null,null,null,null,null,null,null,null,null,null,null,null,null,null,38,{"$f":"COUNTIF(Tableau1[AGE 1], 'Simulation Age'!W28)","v":0},{"$f":"COUNTIF(Tableau1[AGE2], 'Simulation Age'!W28)","v":0},{"$f":"COUNTIF(Tableau1[AGE X], 'Simulation Age'!W28)","v":0}]
[null,null,null,null,null,null,null,null,null,null,null,null,null,null,null,null,null,null,null,null,null,null,39,{"$f":"COUNTIF(Tableau1[AGE 1], 'Simulation Age'!W29)","v":0},{"$f":"COUNTIF(Tableau1[AGE2], 'Simulation Age'!W29)","v":0},{"$f":"COUNTIF(Tableau1[AGE X], 'Simulation Age'!W29)","v":0}]
[null,null,null,null,null,null,null,null,null,null,null,null,null,null,null,null,null,null,null,null,null,null,40,{"$f":"COUNTIF(Tableau1[AGE 1], 'Simulation Age'!W30)","v":1},{"$f":"COUNTIF(Tableau1[AGE2], 'Simulation Age'!W30)","v":0},{"$f":"COUNTIF(Tableau1[AGE X], 'Simulation Age'!W30)","v":13}]
[null,null,null,null,null,null,null,null,null,null,null,null,null,null,null,null,null,null,null,null,null,null,41,{"$f":"COUNTIF(Tableau1[AGE 1], 'Simulation Age'!W31)","v":1},{"$f":"COUNTIF(Tableau1[AGE2], 'Simulation Age'!W31)","v":1},{"$f":"COUNTIF(Tableau1[AGE X], 'Simulation Age'!W31)","v":0}]
["POUR ALLER PLUS LOIN : Tableau Croisé Dynamique",null,null,null,null,null,null,null,null,null,null,null,null,null,null,null,null,null,null,null,null,null,42,{"$f":"COUNTIF(Tableau1[AGE 1], 'Simulation Age'!W32)","v":0},{"$f":"COUNTIF(Tableau1[AGE2], 'Simulation Age'!W32)","v":1},{"$f":"COUNTIF(Tableau1[AGE X], 'Simulation Age'!W32)","v":0}]
[null,null,null,null,null,null,null,null,null,null,null,null,null,null,null,null,null,null,null,null,null,null,43,{"$f":"COUNTIF(Tableau1[AGE 1], 'Simulation Age'!W33)","v":0},{"$f":"COUNTIF(Tableau1[AGE2], 'Simulation Age'!W33)","v":0},{"$f":"COUNTIF(Tableau1[AGE X], 'Simulation Age'!W33)","v":0}]
[null,"AGE Année en cours",null,null,null,null,null,"AGE +1",null,null,null,null,null,null,null,"AGE +X années",null,null,null,null,null,null,44,{"$f":"COUNTIF(Tableau1[AGE 1], 'Simulation Age'!W34)","v":0},{"$f":"COUNTIF(Tableau1[AGE2], 'Simulation Age'!W34)","v":0},{"$f":"COUNTIF(Tableau1[AGE X], 'Simulation Age'!W34)","v":1}]
[null,null,null,null,null,null,null,null,null,null,null,null,null,null,null,null,null,null,null,null,null,null,45,{"$f":"COUNTIF(Tableau1[AGE 1], 'Simulation Age'!W35)","v":0},{"$f":"COUNTIF(Tableau1[AGE2], 'Simulation Age'!W35)","v":0},{"$f":"COUNTIF(Tableau1[AGE X], 'Simulation Age'!W35)","v":1}]
[null,"METIER","(Tous)",null,null,null,null,"METIER","(Tous)",null,null,null,null,null,null,null,null,null,null,null,null,null,46,{"$f":"COUNTIF(Tableau1[AGE 1], 'Simulation Age'!W36)","v":8},{"$f":"COUNTIF(Tableau1[AGE2], 'Simulation Age'!W36)","v":0},{"$f":"COUNTIF(Tableau1[AGE X], 'Simulation Age'!W36)","v":0}]
[null,null,null,null,null,null,null,null,null,null,null,null,null,null,null,"METIER","(Tous)",null,null,null,null,null,47,{"$f":"COUNTIF(Tableau1[AGE 1], 'Simulation Age'!W37)","v":4},{"$f":"COUNTIF(Tableau1[AGE2], 'Simulation Age'!W37)","v":8},{"$f":"COUNTIF(Tableau1[AGE X], 'Simulation Age'!W37)","v":0}]
[null,"Étiquettes de lignes","Nombre de Numéro",null,null,null,null,"Étiquettes de lignes","Nombre de AGE2",null,null,null,null,null,null,null,null,null,null,null,null,null,48,{"$f":"COUNTIF(Tableau1[AGE 1], 'Simulation Age'!W38)","v":2},{"$f":"COUNTIF(Tableau1[AGE2], 'Simulation Age'!W38)","v":4},{"$f":"COUNTIF(Tableau1[AGE X], 'Simulation Age'!W38)","v":0}]
[null,36,13,null,null,null,null,37,13,null,null,null,null,null,null,"Étiquettes de lignes","Nombre de Numéro",null,null,null,null,null,49,{"$f":"COUNTIF(Tableau1[AGE 1], 'Simulation Age'!W39)","v":0},{"$f":"COUNTIF(Tableau1[AGE2], 'Simulation Age'!W39)","v":2},{"$f":"COUNTIF(Tableau1[AGE X], 'Simulation Age'!W39)","v":0}]
[null,40,1,null,null,null,null,41,1,null,null,null,null,null,null,40,13,null,null,null,null,null,50,{"$f":"COUNTIF(Tableau1[AGE 1], 'Simulation Age'!W40)","v":0},{"$f":"COUNTIF(Tableau1[AGE2], 'Simulation Age'!W40)","v":0},{"$f":"COUNTIF(Tableau1[AGE X], 'Simulation Age'!W40)","v":8}]
[null,41,1,null,null,null,null,42,1,null,null,null,null,null,null,44,1,null,null,null,null,null,51,{"$f":"COUNTIF(Tableau1[AGE 1], 'Simulation Age'!W41)","v":5},{"$f":"COUNTIF(Tableau1[AGE2], 'Simulation Age'!W41)","v":0},{"$f":"COUNTIF(Tableau1[AGE X], 'Simulation Age'!W41)","v":4}]
[null,46,8,null,null,null,null,47,8,null,null,null,null,null,null,45,1,null,null,null,null,null,52,{"$f":"COUNTIF(Tableau1[AGE 1], 'Simulation Age'!W42)","v":0},{"$f":"COUNTIF(Tableau1[AGE2], 'Simulation Age'!W42)","v":5},{"$f":"COUNTIF(Tableau1[AGE X], 'Simulation Age'!W42)","v":2}]
[null,47,4,null,null,null,null,48,4,null,null,null,null,null,null,50,8,null,null,null,null,null,53,{"$f":"COUNTIF(Tableau1[AGE 1], 'Simulation Age'!W43)","v":3},{"$f":"COUNTIF(Tableau1[AGE2], 'Simulation Age'!W43)","v":0},{"$f":"COUNTIF(Tableau1[AGE X], 'Simulation Age'!W43)","v":0}]
[null,48,2,null,null,null,null,49,2,null,null,null,null,null,null,51,4,null,null,null,null,null,54,{"$f":"COUNTIF(Tableau1[AGE 1], 'Simulation Age'!W44)","v":1},{"$f":"COUNTIF(Tableau1[AGE2], 'Simulation Age'!W44)","v":3},{"$f":"COUNTIF(Tableau1[AGE X], 'Simulation Age'!W44)","v":0}]
[null,51,5,null,null,null,null,52,5,null,null,null,null,null,null,52,2,null,null,null,null,null,55,{"$f":"COUNTIF(Tableau1[AGE 1], 'Simulation Age'!W45)","v":0},{"$f":"COUNTIF(Tableau1[AGE2], 'Simulation Age'!W45)","v":1},{"$f":"COUNTIF(Tableau1[AGE X], 'Simulation Age'!W45)","v":5}]
[null,53,3,null,null,null,null,54,3,null,null,null,null,null,null,55,5,null,null,null,null,null,56,{"$f":"COUNTIF(Tableau1[AGE 1], 'Simulation Age'!W46)","v":1},{"$f":"COUNTIF(Tableau1[AGE2], 'Simulation Age'!W46)","v":0},{"$f":"COUNTIF(Tableau1[AGE X], 'Simulation Age'!W46)","v":0}]
[null,54,1,null,null,null,null,55,1,null,null,null,null,null,null,57,3,null,null,null,null,null,57,{"$f":"COUNTIF(Tableau1[AGE 1], 'Simulation Age'!W47)","v":0},{"$f":"COUNTIF(Tableau1[AGE2], 'Simulation Age'!W47)","v":1},{"$f":"COUNTIF(Tableau1[AGE X], 'Simulation Age'!W47)","v":3}]
[null,56,1,null,null,null,null,57,1,null,null,null,null,null,null,58,1,null,null,null,null,null,58,{"$f":"COUNTIF(Tableau1[AGE 1], 'Simulation Age'!W48)","v":0},{"$f":"COUNTIF(Tableau1[AGE2], 'Simulation Age'!W48)","v":0},{"$f":"COUNTIF(Tableau1[AGE X], 'Simulation Age'!W48)","v":1}]
[null,61,8,null,null,null,null,62,8,null,null,null,null,null,null,60,1,null,null,null,null,null,59,{"$f":"COUNTIF(Tableau1[AGE 1], 'Simulation Age'!W49)","v":0},{"$f":"COUNTIF(Tableau1[AGE2], 'Simulation Age'!W49)","v":0},{"$f":"COUNTIF(Tableau1[AGE X], 'Simulation Age'!W49)","v":0}]
[null,64,1,null,null,null,null,65,1,null,null,null,null,null,null,65,8,null,null,null,null,null,60,{"$f":"COUNTIF(Tableau1[AGE 1], 'Simulation Age'!W50)","v":0},{"$f":"COUNTIF(Tableau1[AGE2], 'Simulation Age'!W50)","v":0},{"$f":"COUNTIF(Tableau1[AGE X], 'Simulation Age'!W50)","v":1}]
[null,66,1,null,null,null,null,67,1,null,null,null,null,null,null,68,1,null,null,null,null,null,61,{"$f":"COUNTIF(Tableau1[AGE 1], 'Simulation Age'!W51)","v":8},{"$f":"COUNTIF(Tableau1[AGE2], 'Simulation Age'!W51)","v":0},{"$f":"COUNTIF(Tableau1[AGE X], 'Simulation Age'!W51)","v":0}]
[null,67,1,null,null,null,null,68,1,null,null,null,null,null,null,70,1,null,null,null,null,null,62,{"$f":"COUNTIF(Tableau1[AGE 1], 'Simulation Age'!W52)","v":0},{"$f":"COUNTIF(Tableau1[AGE2], 'Simulation Age'!W52)","v":8},{"$f":"COUNTIF(Tableau1[AGE X], 'Simulation Age'!W52)","v":0}]
[null,"Total général",50,null,null,null,null,"Total général",50,null,null,null,null,null,null,71,1,null,null,null,null,null,63,{"$f":"COUNTIF(Tableau1[AGE 1], 'Simulation Age'!W53)","v":0},{"$f":"COUNTIF(Tableau1[AGE2], 'Simulation Age'!W53)","v":0},{"$f":"COUNTIF(Tableau1[AGE X], 'Simulation Age'!W53)","v":0}]
[null,null,null,null,null,null,null,null,null,null,null,null,null,null,null,"Total général",50,null,null,null,null,null,64,{"$f":"COUNTIF(Tableau1[AGE 1], 'Simulation Age'!W54)","v":1},{"$f":"COUNTIF(Tableau1[AGE2], 'Simulation Age'!W54)","v":0},{"$f":"COUNTIF(Tableau1[AGE X], 'Simulation Age'!W54)","v":0}]
[null,null,null,null,null,null,null,null,null,null,null,null,null,null,null,null,null,null,null,null,null,null,65,{"$f":"COUNTIF(Tableau1[AGE 1], 'Simulation Age'!W55)","v":0},{"$f":"COUNTIF(Tableau1[AGE2], 'Simulation Age'!W55)","v":1},{"$f":"COUNTIF(Tableau1[AGE X], 'Simulation Age'!W55)","v":8}]
[null,null,null,null,null,null,null,null,null,null,null,null,null,null,null,null,null,null,null,null,null,null,66,{"$f":"COUNTIF(Tableau1[AGE 1], 'Simulation Age'!W56)","v":1},{"$f":"COUNTIF(Tableau1[AGE2], 'Simulation Age'!W56)","v":0},{"$f":"COUNTIF(Tableau1[AGE X], 'Simulation Age'!W56)","v":0}]
[null,null,null,null,null,null,null,null,null,null,null,null,null,null,null,null,null,null,null,null,null,null,67,{"$f":"COUNTIF(Tableau1[AGE 1], 'Simulation Age'!W57)","v":1},{"$f":"COUNTIF(Tableau1[AGE2], 'Simulation Age'!W57)","v":1},{"$f":"COUNTIF(Tableau1[AGE X], 'Simulation Age'!W57)","v":0}]
[null,null,null,null,null,null,null,null,null,null,null,null,null,null,null,null,null,null,null,null,null,null,68,{"$f":"COUNTIF(Tableau1[AGE 1], 'Simulation Age'!W58)","v":0},{"$f":"COUNTIF(Tableau1[AGE2], 'Simulation Age'!W58)","v":1},{"$f":"COUNTIF(Tableau1[AGE X], 'Simulation Age'!W58)","v":1}]
[null,null,null,null,null,null,null,null,null,null,null,null,null,null,null,null,null,null,null,null,null,null,69,{"$f":"COUNTIF(Tableau1[AGE 1], 'Simulation Age'!W59)","v":0},{"$f":"COUNTIF(Tableau1[AGE2], 'Simulation Age'!W59)","v":0},{"$f":"COUNTIF(Tableau1[AGE X], 'Simulation Age'!W59)","v":0}]
[null,null,null,null,null,null,null,null,null,null,null,null,null,null,null,null,null,null,null,null,null,null,70,{"$f":"COUNTIF(Tableau1[AGE 1], 'Simulation Age'!W60)","v":0},{"$f":"COUNTIF(Tableau1[AGE2], 'Simulation Age'!W60)","v":0},{"$f":"COUNTIF(Tableau1[AGE X], 'Simulation Age'!W60)","v":1}]
[null,null,null,null,null,null,null,null,null,null,null,null,null,null,null,null,null,null,null,null,null,null,71,{"$f":"COUNTIF(Tableau1[AGE 1], 'Simulation Age'!W61)","v":0},{"$f":"COUNTIF(Tableau1[AGE2], 'Simulation Age'!W61)","v":0},{"$f":"COUNTIF(Tableau1[AGE X], 'Simulation Age'!W61)","v":1}]
[null,null,null,null,null,null,null,null,null,null,null,null,null,null,null,null,null,null,null,null,null,null,72,{"$f":"COUNTIF(Tableau1[AGE 1], 'Simulation Age'!W62)","v":0},{"$f":"COUNTIF(Tableau1[AGE2], 'Simulation Age'!W62)","v":0},{"$f":"COUNTIF(Tableau1[AGE X], 'Simulation Age'!W62)","v":0}]
[null,null,null,null,null,null,null,null,null,null,null,null,null,null,null,null,null,null,null,null,null,null,73,{"$f":"COUNTIF(Tableau1[AGE 1], 'Simulation Age'!W63)","v":0},{"$f":"COUNTIF(Tableau1[AGE2], 'Simulation Age'!W63)","v":0},{"$f":"COUNTIF(Tableau1[AGE X], 'Simulation Age'!W63)","v":0}]
[null,null,null,null,null,null,null,null,null,null,null,null,null,null,null,null,null,null,null,null,null,null,74,{"$f":"COUNTIF(Tableau1[AGE 1], 'Simulation Age'!W64)","v":0},{"$f":"COUNTIF(Tableau1[AGE2], 'Simulation Age'!W64)","v":0},{"$f":"COUNTIF(Tableau1[AGE X], 'Simulation Age'!W64)","v":0}]
[null,null,null,null,null,null,null,null,null,null,null,null,null,null,null,null,null,null,null,null,null,null,75,{"$f":"COUNTIF(Tableau1[AGE 1], 'Simulation Age'!W65)","v":0},{"$f":"COUNTIF(Tableau1[AGE2], 'Simulation Age'!W65)","v":0},{"$f":"COUNTIF(Tableau1[AGE X], 'Simulation Age'!W65)","v":0}]

{"sheet":"Age Ancienneté","index":4,"n_rows":46,"n_cols":4,"rows_kept":46,"cut":false,"hidden":false,"merged":[]}
[]
[null,"QUELS SONT LES LIENS ENTRE L'AGE ET L'ANCIENNETE  ?"]
[]
[null,"CARACTERISTIQUES POPULATION"]
[]
[]
[]
[]
[]
[null,"METIER","(Tous)"]
[]
[null,"Étiquettes de lignes","Somme de AGE","Somme de ANCIENNETE"]
[null,1,47,14]
[null,2,66,45]
[null,3,60,35]
[null,4,63,23]
[null,5,52,7]
[null,6,47,10]
[null,7,53,27]
[null,8,40,7]
[null,9,35,15]
[null,10,50,25]
[null,11,46,15]
[null,12,45,24]
[null,13,65,22]
[null,14,60,25]
[null,15,60,25]
[null,16,60,25]
[null,17,50,25]
[null,18,46,15]
[null,19,45,24]
[null,20,50,25]
[null,21,46,15]
[null,22,45,24]
[null,23,52,7]
[null,24,52,7]
[null,25,60,25]
[null,26,45,24]
[null,27,45,24]
[null,28,55,20]
[null,29,60,20]
[null,30,50,25]
[null,31,46,15]
[null,"’",45,24]
[null,"#VALEUR!",719,342]
[null,"Total général",2360,1005]

{"sheet":"Age Compétences","index":5,"n_rows":65,"n_cols":16,"rows_kept":65,"cut":false,"hidden":false,"merged":[]}
[]
[null,"QUELS SONT LES LIENS ENTRE L'AGE ET LES COMPETENCES CRITIQUES / METIER EN TENSION  ?"]
[]
[null,"CARACTERISTIQUES POPULATION"]
[]
[]
[]
[]
[]
[]
[null,null,null,null,null,null,null,null,null,null,null,null,null,"ANNEE EN COURS"]
[null,null,null,null,null,null,null,null,null,null,null,null,null,"Nombre","Compétences critiques","Metier en tensioin"]
[null,null,null,null,null,null,null,null,null,null,null,null,18,{"$f":"COUNTIF(Tableau1[Age], M13)","v":0},{"$f":"COUNTIFS(Tableau1[Age],M13, Tableau1[[COMPETENCES CRITIQUES ]],\"x\",Tableau1[[COMPETENCES CRITIQUES ]],\"X\")","v":0},{"$f":"COUNTIFS(Tableau1[Age],M13, Tableau1[METIER EN TENSION],\"x\",Tableau1[METIER EN TENSION],\"X\")","v":0}]
[null,null,null,null,null,null,null,null,null,null,null,null,19,{"$f":"COUNTIF(Tableau1[Age], M14)","v":0},{"$f":"COUNTIFS(Tableau1[Age],M14, Tableau1[[COMPETENCES CRITIQUES ]],\"x\",Tableau1[[COMPETENCES CRITIQUES ]],\"X\")","v":0},{"$f":"COUNTIFS(Tableau1[Age],M14, Tableau1[METIER EN TENSION],\"x\",Tableau1[METIER EN TENSION],\"X\")","v":0}]
[null,null,null,null,null,null,null,null,null,null,null,null,20,{"$f":"COUNTIF(Tableau1[Age], M15)","v":0},{"$f":"COUNTIFS(Tableau1[Age],M15, Tableau1[[COMPETENCES CRITIQUES ]],\"x\",Tableau1[[COMPETENCES CRITIQUES ]],\"X\")","v":0},{"$f":"COUNTIFS(Tableau1[Age],M15, Tableau1[METIER EN TENSION],\"x\",Tableau1[METIER EN TENSION],\"X\")","v":0}]
[null,null,null,null,null,null,null,null,null,null,null,null,21,{"$f":"COUNTIF(Tableau1[Age], M16)","v":0},{"$f":"COUNTIFS(Tableau1[Age],M16, Tableau1[[COMPETENCES CRITIQUES ]],\"x\",Tableau1[[COMPETENCES CRITIQUES ]],\"X\")","v":0},{"$f":"COUNTIFS(Tableau1[Age],M16, Tableau1[METIER EN TENSION],\"x\",Tableau1[METIER EN TENSION],\"X\")","v":0}]
[null,null,null,null,null,null,null,null,null,null,null,null,22,{"$f":"COUNTIF(Tableau1[Age], M17)","v":0},{"$f":"COUNTIFS(Tableau1[Age],M17, Tableau1[[COMPETENCES CRITIQUES ]],\"x\",Tableau1[[COMPETENCES CRITIQUES ]],\"X\")","v":0},{"$f":"COUNTIFS(Tableau1[Age],M17, Tableau1[METIER EN TENSION],\"x\",Tableau1[METIER EN TENSION],\"X\")","v":0}]
[null,null,null,null,null,null,null,null,null,null,null,null,23,{"$f":"COUNTIF(Tableau1[Age], M18)","v":0},{"$f":"COUNTIFS(Tableau1[Age],M18, Tableau1[[COMPETENCES CRITIQUES ]],\"x\",Tableau1[[COMPETENCES CRITIQUES ]],\"X\")","v":0},{"$f":"COUNTIFS(Tableau1[Age],M18, Tableau1[METIER EN TENSION],\"x\",Tableau1[METIER EN TENSION],\"X\")","v":0}]
[null,null,null,null,null,null,null,null,null,null,null,null,24,{"$f":"COUNTIF(Tableau1[Age], M19)","v":0},{"$f":"COUNTIFS(Tableau1[Age],M19, Tableau1[[COMPETENCES CRITIQUES ]],\"x\",Tableau1[[COMPETENCES CRITIQUES ]],\"X\")","v":0},{"$f":"COUNTIFS(Tableau1[Age],M19, Tableau1[METIER EN TENSION],\"x\",Tableau1[METIER EN TENSION],\"X\")","v":0}]
[null,null,null,null,null,null,null,null,null,null,null,null,25,{"$f":"COUNTIF(Tableau1[Age], M20)","v":0},{"$f":"COUNTIFS(Tableau1[Age],M20, Tableau1[[COMPETENCES CRITIQUES ]],\"x\",Tableau1[[COMPETENCES CRITIQUES ]],\"X\")","v":0},{"$f":"COUNTIFS(Tableau1[Age],M20, Tableau1[METIER EN TENSION],\"x\",Tableau1[METIER EN TENSION],\"X\")","v":0}]
[null,null,null,null,null,null,null,null,null,null,null,null,26,{"$f":"COUNTIF(Tableau1[Age], M21)","v":0},{"$f":"COUNTIFS(Tableau1[Age],M21, Tableau1[[COMPETENCES CRITIQUES ]],\"x\",Tableau1[[COMPETENCES CRITIQUES ]],\"X\")","v":0},{"$f":"COUNTIFS(Tableau1[Age],M21, Tableau1[METIER EN TENSION],\"x\",Tableau1[METIER EN TENSION],\"X\")","v":0}]
[null,null,null,null,null,null,null,null,null,null,null,null,27,{"$f":"COUNTIF(Tableau1[Age], M22)","v":0},{"$f":"COUNTIFS(Tableau1[Age],M22, Tableau1[[COMPETENCES CRITIQUES ]],\"x\",Tableau1[[COMPETENCES CRITIQUES ]],\"X\")","v":0},{"$f":"COUNTIFS(Tableau1[Age],M22, Tableau1[METIER EN TENSION],\"x\",Tableau1[METIER EN TENSION],\"X\")","v":0}]
[null,null,null,null,null,null,null,null,null,null,null,null,28,{"$f":"COUNTIF(Tableau1[Age], M23)","v":0},{"$f":"COUNTIFS(Tableau1[Age],M23, Tableau1[[COMPETENCES CRITIQUES ]],\"x\",Tableau1[[COMPETENCES CRITIQUES ]],\"X\")","v":0},{"$f":"COUNTIFS(Tableau1[Age],M23, Tableau1[METIER EN TENSION],\"x\",Tableau1[METIER EN TENSION],\"X\")","v":0}]
[null,null,null,null,null,null,null,null,null,null,null,null,29,{"$f":"COUNTIF(Tableau1[Age], M24)","v":0},{"$f":"COUNTIFS(Tableau1[Age],M24, Tableau1[[COMPETENCES CRITIQUES ]],\"x\",Tableau1[[COMPETENCES CRITIQUES ]],\"X\")","v":0},{"$f":"COUNTIFS(Tableau1[Age],M24, Tableau1[METIER EN TENSION],\"x\",Tableau1[METIER EN TENSION],\"X\")","v":0}]
[null,null,null,null,null,null,null,null,null,null,null,null,30,{"$f":"COUNTIF(Tableau1[Age], M25)","v":0},{"$f":"COUNTIFS(Tableau1[Age],M25, Tableau1[[COMPETENCES CRITIQUES ]],\"x\",Tableau1[[COMPETENCES CRITIQUES ]],\"X\")","v":0},{"$f":"COUNTIFS(Tableau1[Age],M25, Tableau1[METIER EN TENSION],\"x\",Tableau1[METIER EN TENSION],\"X\")","v":0}]
[null,null,null,null,null,null,null,null,null,null,null,null,31,{"$f":"COUNTIF(Tableau1[Age], M26)","v":0},{"$f":"COUNTIFS(Tableau1[Age],M26, Tableau1[[COMPETENCES CRITIQUES ]],\"x\",Tableau1[[COMPETENCES CRITIQUES ]],\"X\")","v":0},{"$f":"COUNTIFS(Tableau1[Age],M26, Tableau1[METIER EN TENSION],\"x\",Tableau1[METIER EN TENSION],\"X\")","v":0}]
[null,null,null,null,null,null,null,null,null,null,null,null,32,{"$f":"COUNTIF(Tableau1[Age], M27)","v":0},{"$f":"COUNTIFS(Tableau1[Age],M27, Tableau1[[COMPETENCES CRITIQUES ]],\"x\",Tableau1[[COMPETENCES CRITIQUES ]],\"X\")","v":0},{"$f":"COUNTIFS(Tableau1[Age],M27, Tableau1[METIER EN TENSION],\"x\",Tableau1[METIER EN TENSION],\"X\")","v":0}]
[null,null,null,null,null,null,null,null,null,null,null,null,33,{"$f":"COUNTIF(Tableau1[Age], M28)","v":0},{"$f":"COUNTIFS(Tableau1[Age],M28, Tableau1[[COMPETENCES CRITIQUES ]],\"x\",Tableau1[[COMPETENCES CRITIQUES ]],\"X\")","v":0},{"$f":"COUNTIFS(Tableau1[Age],M28, Tableau1[METIER EN TENSION],\"x\",Tableau1[METIER EN TENSION],\"X\")","v":0}]
[null,null,null,null,null,null,null,null,null,null,null,null,34,{"$f":"COUNTIF(Tableau1[Age], M29)","v":0},{"$f":"COUNTIFS(Tableau1[Age],M29, Tableau1[[COMPETENCES CRITIQUES ]],\"x\",Tableau1[[COMPETENCES CRITIQUES ]],\"X\")","v":0},{"$f":"COUNTIFS(Tableau1[Age],M29, Tableau1[METIER EN TENSION],\"x\",Tableau1[METIER EN TENSION],\"X\")","v":0}]
[null,null,null,null,null,null,null,null,null,null,null,null,35,{"$f":"COUNTIF(Tableau1[Age], M30)","v":13},{"$f":"COUNTIFS(Tableau1[Age],M30, Tableau1[[COMPETENCES CRITIQUES ]],\"x\",Tableau1[[COMPETENCES CRITIQUES ]],\"X\")","v":0},{"$f":"COUNTIFS(Tableau1[Age],M30, Tableau1[METIER EN TENSION],\"x\",Tableau1[METIER EN TENSION],\"X\")","v":0}]
[null,null,null,null,null,null,null,null,null,null,null,null,36,{"$f":"COUNTIF(Tableau1[Age], M31)","v":0},{"$f":"COUNTIFS(Tableau1[Age],M31, Tableau1[[COMPETENCES CRITIQUES ]],\"x\",Tableau1[[COMPETENCES CRITIQUES ]],\"X\")","v":0},{"$f":"COUNTIFS(Tableau1[Age],M31, Tableau1[METIER EN TENSION],\"x\",Tableau1[METIER EN TENSION],\"X\")","v":0}]
[null,null,null,null,null,null,null,null,null,null,null,null,37,{"$f":"COUNTIF(Tableau1[Age], M32)","v":0},{"$f":"COUNTIFS(Tableau1[Age],M32, Tableau1[[COMPETENCES CRITIQUES ]],\"x\",Tableau1[[COMPETENCES CRITIQUES ]],\"X\")","v":0},{"$f":"COUNTIFS(Tableau1[Age],M32, Tableau1[METIER EN TENSION],\"x\",Tableau1[METIER EN TENSION],\"X\")","v":0}]
[null,null,null,null,null,null,null,null,null,null,null,null,38,{"$f":"COUNTIF(Tableau1[Age], M33)","v":0},{"$f":"COUNTIFS(Tableau1[Age],M33, Tableau1[[COMPETENCES CRITIQUES ]],\"x\",Tableau1[[COMPETENCES CRITIQUES ]],\"X\")","v":0},{"$f":"COUNTIFS(Tableau1[Age],M33, Tableau1[METIER EN TENSION],\"x\",Tableau1[METIER EN TENSION],\"X\")","v":0}]
[null,null,null,null,null,null,null,null,null,null,null,null,39,{"$f":"COUNTIF(Tableau1[Age], M34)","v":1},{"$f":"COUNTIFS(Tableau1[Age],M34, Tableau1[[COMPETENCES CRITIQUES ]],\"x\",Tableau1[[COMPETENCES CRITIQUES ]],\"X\")","v":0},{"$f":"COUNTIFS(Tableau1[Age],M34, Tableau1[METIER EN TENSION],\"x\",Tableau1[METIER EN TENSION],\"X\")","v":0}]
[null,null,null,null,null,null,null,null,null,null,null,null,40,{"$f":"COUNTIF(Tableau1[Age], M35)","v":1},{"$f":"COUNTIFS(Tableau1[Age],M35, Tableau1[[COMPETENCES CRITIQUES ]],\"x\",Tableau1[[COMPETENCES CRITIQUES ]],\"X\")","v":1},{"$f":"COUNTIFS(Tableau1[Age],M35, Tableau1[METIER EN TENSION],\"x\",Tableau1[METIER EN TENSION],\"X\")","v":1}]
["POUR ALLER PLUS LOIN : Tableau Croisé Dynamique",null,null,null,null,null,null,null,null,null,null,null,41,{"$f":"COUNTIF(Tableau1[Age], M36)","v":0},{"$f":"COUNTIFS(Tableau1[Age],M36, Tableau1[[COMPETENCES CRITIQUES ]],\"x\",Tableau1[[COMPETENCES CRITIQUES ]],\"X\")","v":0},{"$f":"COUNTIFS(Tableau1[Age],M36, Tableau1[METIER EN TENSION],\"x\",Tableau1[METIER EN TENSION],\"X\")","v":0}]
[null,null,null,null,null,null,null,null,null,null,null,null,42,{"$f":"COUNTIF(Tableau1[Age], M37)","v":0},{"$f":"COUNTIFS(Tableau1[Age],M37, Tableau1[[COMPETENCES CRITIQUES ]],\"x\",Tableau1[[COMPETENCES CRITIQUES ]],\"X\")","v":0},{"$f":"COUNTIFS(Tableau1[Age],M37, Tableau1[METIER EN TENSION],\"x\",Tableau1[METIER EN TENSION],\"X\")","v":0}]
[null,null,null,null,null,null,null,null,null,null,null,null,43,{"$f":"COUNTIF(Tableau1[Age], M38)","v":0},{"$f":"COUNTIFS(Tableau1[Age],M38, Tableau1[[COMPETENCES CRITIQUES ]],\"x\",Tableau1[[COMPETENCES CRITIQUES ]],\"X\")","v":0},{"$f":"COUNTIFS(Tableau1[Age],M38, Tableau1[METIER EN TENSION],\"x\",Tableau1[METIER EN TENSION],\"X\")","v":0}]
[null,null,null,null,null,null,null,null,null,null,null,null,44,{"$f":"COUNTIF(Tableau1[Age], M39)","v":0},{"$f":"COUNTIFS(Tableau1[Age],M39, Tableau1[[COMPETENCES CRITIQUES ]],\"x\",Tableau1[[COMPETENCES CRITIQUES ]],\"X\")","v":0},{"$f":"COUNTIFS(Tableau1[Age],M39, Tableau1[METIER EN TENSION],\"x\",Tableau1[METIER EN TENSION],\"X\")","v":0}]
[null,null,null,null,null,null,null,null,null,null,null,null,45,{"$f":"COUNTIF(Tableau1[Age], M40)","v":8},{"$f":"COUNTIFS(Tableau1[Age],M40, Tableau1[[COMPETENCES CRITIQUES ]],\"x\",Tableau1[[COMPETENCES CRITIQUES ]],\"X\")","v":0},{"$f":"COUNTIFS(Tableau1[Age],M40, Tableau1[METIER EN TENSION],\"x\",Tableau1[METIER EN TENSION],\"X\")","v":0}]
[null,null,null,null,null,null,null,null,null,null,null,null,46,{"$f":"COUNTIF(Tableau1[Age], M41)","v":4},{"$f":"COUNTIFS(Tableau1[Age],M41, Tableau1[[COMPETENCES CRITIQUES ]],\"x\",Tableau1[[COMPETENCES CRITIQUES ]],\"X\")","v":2},{"$f":"COUNTIFS(Tableau1[Age],M41, Tableau1[METIER EN TENSION],\"x\",Tableau1[METIER EN TENSION],\"X\")","v":0}]
[null,"METIER","(Tous)",null,null,null,null,null,null,null,null,null,47,{"$f":"COUNTIF(Tableau1[Age], M42)","v":2},{"$f":"COUNTIFS(Tableau1[Age],M42, Tableau1[[COMPETENCES CRITIQUES ]],\"x\",Tableau1[[COMPETENCES CRITIQUES ]],\"X\")","v":0},{"$f":"COUNTIFS(Tableau1[Age],M42, Tableau1[METIER EN TENSION],\"x\",Tableau1[METIER EN TENSION],\"X\")","v":2}]
[null,null,null,null,null,null,null,null,null,null,null,null,48,{"$f":"COUNTIF(Tableau1[Age], M43)","v":0},{"$f":"COUNTIFS(Tableau1[Age],M43, Tableau1[[COMPETENCES CRITIQUES ]],\"x\",Tableau1[[COMPETENCES CRITIQUES ]],\"X\")","v":0},{"$f":"COUNTIFS(Tableau1[Age],M43, Tableau1[METIER EN TENSION],\"x\",Tableau1[METIER EN TENSION],\"X\")","v":0}]
[null,"Étiquettes de lignes","Nombre de COMPETENCES CRITIQUES ","Nombre de METIER EN TENSION",null,null,null,null,null,null,null,null,49,{"$f":"COUNTIF(Tableau1[Age], M44)","v":0},{"$f":"COUNTIFS(Tableau1[Age],M44, Tableau1[[COMPETENCES CRITIQUES ]],\"x\",Tableau1[[COMPETENCES CRITIQUES ]],\"X\")","v":0},{"$f":"COUNTIFS(Tableau1[Age],M44, Tableau1[METIER EN TENSION],\"x\",Tableau1[METIER EN TENSION],\"X\")","v":0}]
[null,35,null,null,null,null,null,null,null,null,null,null,50,{"$f":"COUNTIF(Tableau1[Age], M45)","v":5},{"$f":"COUNTIFS(Tableau1[Age],M45, Tableau1[[COMPETENCES CRITIQUES ]],\"x\",Tableau1[[COMPETENCES CRITIQUES ]],\"X\")","v":2},{"$f":"COUNTIFS(Tableau1[Age],M45, Tableau1[METIER EN TENSION],\"x\",Tableau1[METIER EN TENSION],\"X\")","v":0}]
[null,39,null,null,null,null,null,null,null,null,null,null,51,{"$f":"COUNTIF(Tableau1[Age], M46)","v":0},{"$f":"COUNTIFS(Tableau1[Age],M46, Tableau1[[COMPETENCES CRITIQUES ]],\"x\",Tableau1[[COMPETENCES CRITIQUES ]],\"X\")","v":0},{"$f":"COUNTIFS(Tableau1[Age],M46, Tableau1[METIER EN TENSION],\"x\",Tableau1[METIER EN TENSION],\"X\")","v":0}]
[null,40,1,1,null,null,null,null,null,null,null,null,52,{"$f":"COUNTIF(Tableau1[Age], M47)","v":3},{"$f":"COUNTIFS(Tableau1[Age],M47, Tableau1[[COMPETENCES CRITIQUES ]],\"x\",Tableau1[[COMPETENCES CRITIQUES ]],\"X\")","v":0},{"$f":"COUNTIFS(Tableau1[Age],M47, Tableau1[METIER EN TENSION],\"x\",Tableau1[METIER EN TENSION],\"X\")","v":0}]
[null,45,null,null,null,null,null,null,null,null,null,null,53,{"$f":"COUNTIF(Tableau1[Age], M48)","v":1},{"$f":"COUNTIFS(Tableau1[Age],M48, Tableau1[[COMPETENCES CRITIQUES ]],\"x\",Tableau1[[COMPETENCES CRITIQUES ]],\"X\")","v":0},{"$f":"COUNTIFS(Tableau1[Age],M48, Tableau1[METIER EN TENSION],\"x\",Tableau1[METIER EN TENSION],\"X\")","v":0}]
[null,46,2,null,null,null,null,null,null,null,null,null,54,{"$f":"COUNTIF(Tableau1[Age], M49)","v":0},{"$f":"COUNTIFS(Tableau1[Age],M49, Tableau1[[COMPETENCES CRITIQUES ]],\"x\",Tableau1[[COMPETENCES CRITIQUES ]],\"X\")","v":0},{"$f":"COUNTIFS(Tableau1[Age],M49, Tableau1[METIER EN TENSION],\"x\",Tableau1[METIER EN TENSION],\"X\")","v":0}]
[null,47,null,2,null,null,null,null,null,null,null,null,55,{"$f":"COUNTIF(Tableau1[Age], M50)","v":1},{"$f":"COUNTIFS(Tableau1[Age],M50, Tableau1[[COMPETENCES CRITIQUES ]],\"x\",Tableau1[[COMPETENCES CRITIQUES ]],\"X\")","v":0},{"$f":"COUNTIFS(Tableau1[Age],M50, Tableau1[METIER EN TENSION],\"x\",Tableau1[METIER EN TENSION],\"X\")","v":0}]
[null,50,2,null,null,null,null,null,null,null,null,null,56,{"$f":"COUNTIF(Tableau1[Age], M51)","v":0},{"$f":"COUNTIFS(Tableau1[Age],M51, Tableau1[[COMPETENCES CRITIQUES ]],\"x\",Tableau1[[COMPETENCES CRITIQUES ]],\"X\")","v":0},{"$f":"COUNTIFS(Tableau1[Age],M51, Tableau1[METIER EN TENSION],\"x\",Tableau1[METIER EN TENSION],\"X\")","v":0}]
[null,52,null,null,null,null,null,null,null,null,null,null,57,{"$f":"COUNTIF(Tableau1[Age], M52)","v":0},{"$f":"COUNTIFS(Tableau1[Age],M52, Tableau1[[COMPETENCES CRITIQUES ]],\"x\",Tableau1[[COMPETENCES CRITIQUES ]],\"X\")","v":0},{"$f":"COUNTIFS(Tableau1[Age],M52, Tableau1[METIER EN TENSION],\"x\",Tableau1[METIER EN TENSION],\"X\")","v":0}]
[null,53,null,null,null,null,null,null,null,null,null,null,58,{"$f":"COUNTIF(Tableau1[Age], M53)","v":0},{"$f":"COUNTIFS(Tableau1[Age],M53, Tableau1[[COMPETENCES CRITIQUES ]],\"x\",Tableau1[[COMPETENCES CRITIQUES ]],\"X\")","v":0},{"$f":"COUNTIFS(Tableau1[Age],M53, Tableau1[METIER EN TENSION],\"x\",Tableau1[METIER EN TENSION],\"X\")","v":0}]
[null,55,null,null,null,null,null,null,null,null,null,null,59,{"$f":"COUNTIF(Tableau1[Age], M54)","v":0},{"$f":"COUNTIFS(Tableau1[Age],M54, Tableau1[[COMPETENCES CRITIQUES ]],\"x\",Tableau1[[COMPETENCES CRITIQUES ]],\"X\")","v":0},{"$f":"COUNTIFS(Tableau1[Age],M54, Tableau1[METIER EN TENSION],\"x\",Tableau1[METIER EN TENSION],\"X\")","v":0}]
[null,60,2,null,null,null,null,null,null,null,null,null,60,{"$f":"COUNTIF(Tableau1[Age], M55)","v":8},{"$f":"COUNTIFS(Tableau1[Age],M55, Tableau1[[COMPETENCES CRITIQUES ]],\"x\",Tableau1[[COMPETENCES CRITIQUES ]],\"X\")","v":2},{"$f":"COUNTIFS(Tableau1[Age],M55, Tableau1[METIER EN TENSION],\"x\",Tableau1[METIER EN TENSION],\"X\")","v":0}]
[null,63,null,1,null,null,null,null,null,null,null,null,61,{"$f":"COUNTIF(Tableau1[Age], M56)","v":0},{"$f":"COUNTIFS(Tableau1[Age],M56, Tableau1[[COMPETENCES CRITIQUES ]],\"x\",Tableau1[[COMPETENCES CRITIQUES ]],\"X\")","v":0},{"$f":"COUNTIFS(Tableau1[Age],M56, Tableau1[METIER EN TENSION],\"x\",Tableau1[METIER EN TENSION],\"X\")","v":0}]
[null,65,1,null,null,null,null,null,null,null,null,null,62,{"$f":"COUNTIF(Tableau1[Age], M57)","v":0},{"$f":"COUNTIFS(Tableau1[Age],M57, Tableau1[[COMPETENCES CRITIQUES ]],\"x\",Tableau1[[COMPETENCES CRITIQUES ]],\"X\")","v":0},{"$f":"COUNTIFS(Tableau1[Age],M57, Tableau1[METIER EN TENSION],\"x\",Tableau1[METIER EN TENSION],\"X\")","v":0}]
[null,66,1,null,null,null,null,null,null,null,null,null,63,{"$f":"COUNTIF(Tableau1[Age], M58)","v":1},{"$f":"COUNTIFS(Tableau1[Age],M58, Tableau1[[COMPETENCES CRITIQUES ]],\"x\",Tableau1[[COMPETENCES CRITIQUES ]],\"X\")","v":0},{"$f":"COUNTIFS(Tableau1[Age],M58, Tableau1[METIER EN TENSION],\"x\",Tableau1[METIER EN TENSION],\"X\")","v":1}]
[null,"Total général",9,4,null,null,null,null,null,null,null,null,64,{"$f":"COUNTIF(Tableau1[Age], M59)","v":0},{"$f":"COUNTIFS(Tableau1[Age],M59, Tableau1[[COMPETENCES CRITIQUES ]],\"x\",Tableau1[[COMPETENCES CRITIQUES ]],\"X\")","v":0},{"$f":"COUNTIFS(Tableau1[Age],M59, Tableau1[METIER EN TENSION],\"x\",Tableau1[METIER EN TENSION],\"X\")","v":0}]
[null,null,null,null,null,null,null,null,null,null,null,null,65,{"$f":"COUNTIF(Tableau1[Age], M60)","v":1},{"$f":"COUNTIFS(Tableau1[Age],M60, Tableau1[[COMPETENCES CRITIQUES ]],\"x\",Tableau1[[COMPETENCES CRITIQUES ]],\"X\")","v":1},{"$f":"COUNTIFS(Tableau1[Age],M60, Tableau1[METIER EN TENSION],\"x\",Tableau1[METIER EN TENSION],\"X\")","v":0}]
[null,null,null,null,null,null,null,null,null,null,null,null,66,{"$f":"COUNTIF(Tableau1[Age], M61)","v":1},{"$f":"COUNTIFS(Tableau1[Age],M61, Tableau1[[COMPETENCES CRITIQUES ]],\"x\",Tableau1[[COMPETENCES CRITIQUES ]],\"X\")","v":1},{"$f":"COUNTIFS(Tableau1[Age],M61, Tableau1[METIER EN TENSION],\"x\",Tableau1[METIER EN TENSION],\"X\")","v":0}]
[null,null,null,null,null,null,null,null,null,null,null,null,67,{"$f":"COUNTIF(Tableau1[Age], M62)","v":0},{"$f":"COUNTIFS(Tableau1[Age],M62, Tableau1[[COMPETENCES CRITIQUES ]],\"x\",Tableau1[[COMPETENCES CRITIQUES ]],\"X\")","v":0},{"$f":"COUNTIFS(Tableau1[Age],M62, Tableau1[METIER EN TENSION],\"x\",Tableau1[METIER EN TENSION],\"X\")","v":0}]
[null,null,null,null,null,null,null,null,null,null,null,null,68,{"$f":"COUNTIF(Tableau1[Age], M63)","v":0},{"$f":"COUNTIFS(Tableau1[Age],M63, Tableau1[[COMPETENCES CRITIQUES ]],\"x\",Tableau1[[COMPETENCES CRITIQUES ]],\"X\")","v":0},{"$f":"COUNTIFS(Tableau1[Age],M63, Tableau1[METIER EN TENSION],\"x\",Tableau1[METIER EN TENSION],\"X\")","v":0}]
[null,null,null,null,null,null,null,null,null,null,null,null,69,{"$f":"COUNTIF(Tableau1[Age], M64)","v":0},{"$f":"COUNTIFS(Tableau1[Age],M64, Tableau1[[COMPETENCES CRITIQUES ]],\"x\",Tableau1[[COMPETENCES CRITIQUES ]],\"X\")","v":0},{"$f":"COUNTIFS(Tableau1[Age],M64, Tableau1[METIER EN TENSION],\"x\",Tableau1[METIER EN TENSION],\"X\")","v":0}]
[null,null,null,null,null,null,null,null,null,null,null,null,70,{"$f":"COUNTIF(Tableau1[Age], M65)","v":0},{"$f":"COUNTIFS(Tableau1[Age],M65, Tableau1[[COMPETENCES CRITIQUES ]],\"x\",Tableau1[[COMPETENCES CRITIQUES ]],\"X\")","v":0},{"$f":"COUNTIFS(Tableau1[Age],M65, Tableau1[METIER EN TENSION],\"x\",Tableau1[METIER EN TENSION],\"X\")","v":0}]

{"sheet":"Simulation Compétences Métiers ","index":6,"n_rows":69,"n_cols":29,"rows_kept":69,"cut":false,"hidden":false,"merged":[[5,19,6,28]]}
[]
[null,"QUELS SONT LES LIENS ENTRE L'AGE ET LES COMPETENCES  / METIERS EN TENSION ?"]
[]
[null,"CARACTERISTIQUES POPULATION"]
[]
[null,null,null,null,null,null,null,null,null,null,null,null,null,null,null,null,null,null,null,"NE PAS TOUCHER\nPRESENCE DE FORMULE"]
[]
[]
[]
[]
[]
[null,null,null,null,null,null,null,null,null,null,null,null,null,null,null,null,null,null,null,null,"Compétences critiques","Age+1","Age+2","Age+X",null,"Metier en tension","Age+1","Age+2","Age+X"]
[null,null,null,null,null,null,null,null,null,null,null,null,null,null,null,null,null,null,null,18,{"$f":"COUNTIFS(Tableau1[Age],T13, Tableau1[[COMPETENCES CRITIQUES ]],\"x\",Tableau1[[COMPETENCES CRITIQUES ]],\"X\")","v":0},{"$f":"IF($U13=0, 0, $T13+1)","v":0},{"$f":"IF($U13=0, 0, $T13+2)","v":0},{"$f":"IF($U13=0, 0, $T13+Données!$Q$4)","v":0},18,{"$f":"COUNTIFS(Tableau1[Age],Y13, Tableau1[METIER EN TENSION],\"x\",Tableau1[METIER EN TENSION],\"X\")","v":0},{"$f":"IF($Z13=0, 0, $T13+1)","v":0},{"$f":"IF($Z13=0, 0, $T13+2)","v":0},{"$f":"IF($Z13=0, 0, $T13+Données!$Q$4)","v":0}]
[null,null,null,null,null,null,null,null,null,null,null,null,null,null,null,null,null,null,null,19,{"$f":"COUNTIFS(Tableau1[Age],T14, Tableau1[[COMPETENCES CRITIQUES ]],\"x\",Tableau1[[COMPETENCES CRITIQUES ]],\"X\")","v":0},{"$f":"IF($U14=0, 0, T14+1)","v":0},{"$f":"IF($U14=0, 0, $T14+2)","v":0},{"$f":"IF($U14=0, 0, $T14+Données!$Q$4)","v":0},19,{"$f":"COUNTIFS(Tableau1[Age],Y14, Tableau1[METIER EN TENSION],\"x\",Tableau1[METIER EN TENSION],\"X\")","v":0},{"$f":"IF($Z14=0, 0, $T14+1)","v":0},{"$f":"IF($Z14=0, 0, $T14+2)","v":0},{"$f":"IF($Z14=0, 0, $T14+Données!$Q$4)","v":0}]
[null,null,null,null,null,null,null,null,null,null,null,null,null,null,null,null,null,null,null,20,{"$f":"COUNTIFS(Tableau1[Age],T15, Tableau1[[COMPETENCES CRITIQUES ]],\"x\",Tableau1[[COMPETENCES CRITIQUES ]],\"X\")","v":0},0,0,{"$f":"IF($U15=0, 0, $T15+Données!$Q$4)","v":0},20,{"$f":"COUNTIFS(Tableau1[Age],Y15, Tableau1[METIER EN TENSION],\"x\",Tableau1[METIER EN TENSION],\"X\")","v":0},0,0,{"$f":"IF($Z15=0, 0, $T15+Données!$Q$4)","v":0}]
[null,null,null,null,null,null,null,null,null,null,null,null,null,null,null,null,null,null,null,21,{"$f":"COUNTIFS(Tableau1[Age],T16, Tableau1[[COMPETENCES CRITIQUES ]],\"x\",Tableau1[[COMPETENCES CRITIQUES ]],\"X\")","v":0},0,0,{"$f":"IF($U16=0, 0, $T16+Données!$Q$4)","v":0},21,{"$f":"COUNTIFS(Tableau1[Age],Y16, Tableau1[METIER EN TENSION],\"x\",Tableau1[METIER EN TENSION],\"X\")","v":0},0,0,{"$f":"IF($Z16=0, 0, $T16+Données!$Q$4)","v":0}]
[null,null,null,null,null,null,null,null,null,null,null,null,null,null,null,null,null,null,null,22,{"$f":"COUNTIFS(Tableau1[Age],T17, Tableau1[[COMPETENCES CRITIQUES ]],\"x\",Tableau1[[COMPETENCES CRITIQUES ]],\"X\")","v":0},0,0,{"$f":"IF($U17=0, 0, $T17+Données!$Q$4)","v":0},22,{"$f":"COUNTIFS(Tableau1[Age],Y17, Tableau1[METIER EN TENSION],\"x\",Tableau1[METIER EN TENSION],\"X\")","v":0},0,0,{"$f":"IF($Z17=0, 0, $T17+Données!$Q$4)","v":0}]
[null,null,null,null,null,null,null,null,null,null,null,null,null,null,null,null,null,null,null,23,{"$f":"COUNTIFS(Tableau1[Age],T18, Tableau1[[COMPETENCES CRITIQUES ]],\"x\",Tableau1[[COMPETENCES CRITIQUES ]],\"X\")","v":0},0,0,{"$f":"IF($U18=0, 0, $T18+Données!$Q$4)","v":0},23,{"$f":"COUNTIFS(Tableau1[Age],Y18, Tableau1[METIER EN TENSION],\"x\",Tableau1[METIER EN TENSION],\"X\")","v":0},0,0,{"$f":"IF($Z18=0, 0, $T18+Données!$Q$4)","v":0}]
[null,null,null,null,null,null,null,null,null,null,null,null,null,null,null,null,null,null,null,24,{"$f":"COUNTIFS(Tableau1[Age],T19, Tableau1[[COMPETENCES CRITIQUES ]],\"x\",Tableau1[[COMPETENCES CRITIQUES ]],\"X\")","v":0},0,0,{"$f":"IF($U19=0, 0, $T19+Données!$Q$4)","v":0},24,{"$f":"COUNTIFS(Tableau1[Age],Y19, Tableau1[METIER EN TENSION],\"x\",Tableau1[METIER EN TENSION],\"X\")","v":0},0,0,{"$f":"IF($Z19=0, 0, $T19+Données!$Q$4)","v":0}]
[null,null,null,null,null,null,null,null,null,null,null,null,null,null,null,null,null,null,null,25,{"$f":"COUNTIFS(Tableau1[Age],T20, Tableau1[[COMPETENCES CRITIQUES ]],\"x\",Tableau1[[COMPETENCES CRITIQUES ]],\"X\")","v":0},0,0,{"$f":"IF($U20=0, 0, $T20+Données!$Q$4)","v":0},25,{"$f":"COUNTIFS(Tableau1[Age],Y20, Tableau1[METIER EN TENSION],\"x\",Tableau1[METIER EN TENSION],\"X\")","v":0},0,0,{"$f":"IF($Z20=0, 0, $T20+Données!$Q$4)","v":0}]
[null,null,null,null,null,null,null,null,null,null,null,null,null,null,null,null,null,null,null,26,{"$f":"COUNTIFS(Tableau1[Age],T21, Tableau1[[COMPETENCES CRITIQUES ]],\"x\",Tableau1[[COMPETENCES CRITIQUES ]],\"X\")","v":0},0,0,{"$f":"IF($U21=0, 0, $T21+Données!$Q$4)","v":0},26,{"$f":"COUNTIFS(Tableau1[Age],Y21, Tableau1[METIER EN TENSION],\"x\",Tableau1[METIER EN TENSION],\"X\")","v":0},0,0,{"$f":"IF($Z21=0, 0, $T21+Données!$Q$4)","v":0}]
[null,null,null,null,null,null,null,null,null,null,null,null,null,null,null,null,null,null,null,27,{"$f":"COUNTIFS(Tableau1[Age],T22, Tableau1[[COMPETENCES CRITIQUES ]],\"x\",Tableau1[[COMPETENCES CRITIQUES ]],\"X\")","v":0},0,0,{"$f":"IF($U22=0, 0, $T22+Données!$Q$4)","v":0},27,{"$f":"COUNTIFS(Tableau1[Age],Y22, Tableau1[METIER EN TENSION],\"x\",Tableau1[METIER EN TENSION],\"X\")","v":0},0,0,{"$f":"IF($Z22=0, 0, $T22+Données!$Q$4)","v":0}]
[null,null,null,null,null,null,null,null,null,null,null,null,null,null,null,null,null,null,null,28,{"$f":"COUNTIFS(Tableau1[Age],T23, Tableau1[[COMPETENCES CRITIQUES ]],\"x\",Tableau1[[COMPETENCES CRITIQUES ]],\"X\")","v":0},0,0,{"$f":"IF($U23=0, 0, $T23+Données!$Q$4)","v":0},28,{"$f":"COUNTIFS(Tableau1[Age],Y23, Tableau1[METIER EN TENSION],\"x\",Tableau1[METIER EN TENSION],\"X\")","v":0},0,0,{"$f":"IF($Z23=0, 0, $T23+Données!$Q$4)","v":0}]
[null,null,null,null,null,null,null,null,null,null,null,null,null,null,null,null,null,null,null,29,{"$f":"COUNTIFS(Tableau1[Age],T24, Tableau1[[COMPETENCES CRITIQUES ]],\"x\",Tableau1[[COMPETENCES CRITIQUES ]],\"X\")","v":0},0,0,{"$f":"IF($U24=0, 0, $T24+Données!$Q$4)","v":0},29,{"$f":"COUNTIFS(Tableau1[Age],Y24, Tableau1[METIER EN TENSION],\"x\",Tableau1[METIER EN TENSION],\"X\")","v":0},0,0,{"$f":"IF($Z24=0, 0, $T24+Données!$Q$4)","v":0}]
[null,null,null,null,null,null,null,null,null,null,null,null,null,null,null,null,null,null,null,30,{"$f":"COUNTIFS(Tableau1[Age],T25, Tableau1[[COMPETENCES CRITIQUES ]],\"x\",Tableau1[[COMPETENCES CRITIQUES ]],\"X\")","v":0},0,0,{"$f":"IF($U25=0, 0, $T25+Données!$Q$4)","v":0},30,{"$f":"COUNTIFS(Tableau1[Age],Y25, Tableau1[METIER EN TENSION],\"x\",Tableau1[METIER EN TENSION],\"X\")","v":0},0,0,{"$f":"IF($Z25=0, 0, $T25+Données!$Q$4)","v":0}]
[null,null,null,null,null,null,null,null,null,null,null,null,null,null,null,null,null,null,null,31,{"$f":"COUNTIFS(Tableau1[Age],T26, Tableau1[[COMPETENCES CRITIQUES ]],\"x\",Tableau1[[COMPETENCES CRITIQUES ]],\"X\")","v":0},0,0,{"$f":"IF($U26=0, 0, $T26+Données!$Q$4)","v":0},31,{"$f":"COUNTIFS(Tableau1[Age],Y26, Tableau1[METIER EN TENSION],\"x\",Tableau1[METIER EN TENSION],\"X\")","v":0},0,0,{"$f":"IF($Z26=0, 0, $T26+Données!$Q$4)","v":0}]
[null,null,null,null,null,null,null,null,null,null,null,null,null,null,null,null,null,null,null,32,{"$f":"COUNTIFS(Tableau1[Age],T27, Tableau1[[COMPETENCES CRITIQUES ]],\"x\",Tableau1[[COMPETENCES CRITIQUES ]],\"X\")","v":0},0,0,{"$f":"IF($U27=0, 0, $T27+Données!$Q$4)","v":0},32,{"$f":"COUNTIFS(Tableau1[Age],Y27, Tableau1[METIER EN TENSION],\"x\",Tableau1[METIER EN TENSION],\"X\")","v":0},0,0,{"$f":"IF($Z27=0, 0, $T27+Données!$Q$4)","v":0}]
[null,null,null,null,null,null,null,null,null,null,null,null,null,null,null,null,null,null,null,33,{"$f":"COUNTIFS(Tableau1[Age],T28, Tableau1[[COMPETENCES CRITIQUES ]],\"x\",Tableau1[[COMPETENCES CRITIQUES ]],\"X\")","v":0},0,0,{"$f":"IF($U28=0, 0, $T28+Données!$Q$4)","v":0},33,{"$f":"COUNTIFS(Tableau1[Age],Y28, Tableau1[METIER EN TENSION],\"x\",Tableau1[METIER EN TENSION],\"X\")","v":0},0,0,{"$f":"IF($Z28=0, 0, $T28+Données!$Q$4)","v":0}]
[null,null,null,null,null,null,null,null,null,null,null,null,null,null,null,null,null,null,null,34,{"$f":"COUNTIFS(Tableau1[Age],T29, Tableau1[[COMPETENCES CRITIQUES ]],\"x\",Tableau1[[COMPETENCES CRITIQUES ]],\"X\")","v":0},0,0,{"$f":"IF($U29=0, 0, $T29+Données!$Q$4)","v":0},34,{"$f":"COUNTIFS(Tableau1[Age],Y29, Tableau1[METIER EN TENSION],\"x\",Tableau1[METIER EN TENSION],\"X\")","v":0},0,0,{"$f":"IF($Z29=0, 0, $T29+Données!$Q$4)","v":0}]
[null,null,null,null,null,null,null,null,null,null,null,null,null,null,null,null,null,null,null,35,{"$f":"COUNTIFS(Tableau1[Age],T30, Tableau1[[COMPETENCES CRITIQUES ]],\"x\",Tableau1[[COMPETENCES CRITIQUES ]],\"X\")","v":0},0,0,{"$f":"IF($U30=0, 0, $T30+Données!$Q$4)","v":0},35,{"$f":"COUNTIFS(Tableau1[Age],Y30, Tableau1[METIER EN TENSION],\"x\",Tableau1[METIER EN TENSION],\"X\")","v":0},0,0,{"$f":"IF($Z30=0, 0, $T30+Données!$Q$4)","v":0}]
[null,null,null,null,null,null,null,null,null,null,null,null,null,null,null,null,null,null,null,36,{"$f":"COUNTIFS(Tableau1[Age],T31, Tableau1[[COMPETENCES CRITIQUES ]],\"x\",Tableau1[[COMPETENCES CRITIQUES ]],\"X\")","v":0},0,0,{"$f":"IF($U31=0, 0, $T31+Données!$Q$4)","v":0},36,{"$f":"COUNTIFS(Tableau1[Age],Y31, Tableau1[METIER EN TENSION],\"x\",Tableau1[METIER EN TENSION],\"X\")","v":0},0,0,{"$f":"IF($Z31=0, 0, $T31+Données!$Q$4)","v":0}]
[null,null,null,null,null,null,null,null,null,null,null,null,null,null,null,null,null,null,null,37,{"$f":"COUNTIFS(Tableau1[Age],T32, Tableau1[[COMPETENCES CRITIQUES ]],\"x\",Tableau1[[COMPETENCES CRITIQUES ]],\"X\")","v":0},0,0,{"$f":"IF($U32=0, 0, $T32+Données!$Q$4)","v":0},37,{"$f":"COUNTIFS(Tableau1[Age],Y32, Tableau1[METIER EN TENSION],\"x\",Tableau1[METIER EN TENSION],\"X\")","v":0},{"$f":"IF($Z32=0, 0, $T32+1)","v":0},{"$f":"IF($Z32=0, 0, $T32+2)","v":0},{"$f":"IF($Z32=0, 0, $T32+Données!$Q$4)","v":0}]
[null,null,null,null,null,null,null,null,null,null,null,null,null,null,null,null,null,null,null,38,{"$f":"COUNTIFS(Tableau1[Age],T33, Tableau1[[COMPETENCES CRITIQUES ]],\"x\",Tableau1[[COMPETENCES CRITIQUES ]],\"X\")","v":0},0,{"$f":"IF($U33=0, 0, $T33+2)","v":0},{"$f":"IF($U33=0, 0, $T33+Données!$Q$4)","v":0},38,{"$f":"COUNTIFS(Tableau1[Age],Y33, Tableau1[METIER EN TENSION],\"x\",Tableau1[METIER EN TENSION],\"X\")","v":0},0,0,{"$f":"IF($Z33=0, 0, $T33+Données!$Q$4)","v":0}]
[null,null,null,null,null,null,null,null,null,null,null,null,null,null,null,null,null,null,null,39,{"$f":"COUNTIFS(Tableau1[Age],T34, Tableau1[[COMPETENCES CRITIQUES ]],\"x\",Tableau1[[COMPETENCES CRITIQUES ]],\"X\")","v":0},0,0,{"$f":"IF($U34=0, 0, $T34+Données!$Q$4)","v":0},39,{"$f":"COUNTIFS(Tableau1[Age],Y34, Tableau1[METIER EN TENSION],\"x\",Tableau1[METIER EN TENSION],\"X\")","v":0},0,0,{"$f":"IF($Z34=0, 0, $T34+Données!$Q$4)","v":0}]
[null,null,null,null,null,null,null,null,null,null,null,null,null,null,null,null,null,null,null,40,{"$f":"COUNTIFS(Tableau1[Age],T35, Tableau1[[COMPETENCES CRITIQUES ]],\"x\",Tableau1[[COMPETENCES CRITIQUES ]],\"X\")","v":1},41,42,{"$f":"IF($U35=0, 0, $T35+Données!$Q$4)","v":45},40,{"$f":"COUNTIFS(Tableau1[Age],Y35, Tableau1[METIER EN TENSION],\"x\",Tableau1[METIER EN TENSION],\"X\")","v":1},41,42,{"$f":"IF($Z35=0, 0, $T35+Données!$Q$4)","v":45}]
[null,null,null,null,null,null,null,null,null,null,null,null,null,null,null,null,null,null,null,42,{"$f":"COUNTIFS(Tableau1[Age],T36, Tableau1[[COMPETENCES CRITIQUES ]],\"x\",Tableau1[[COMPETENCES CRITIQUES ]],\"X\")","v":0},0,0,{"$f":"IF($U36=0, 0, $T36+Données!$Q$4)","v":0},42,{"$f":"COUNTIFS(Tableau1[Age],Y36, Tableau1[METIER EN TENSION],\"x\",Tableau1[METIER EN TENSION],\"X\")","v":0},0,0,{"$f":"IF($Z36=0, 0, $T36+Données!$Q$4)","v":0}]
[null,null,null,null,null,null,null,null,null,null,null,null,null,null,null,null,null,null,null,43,{"$f":"COUNTIFS(Tableau1[Age],T37, Tableau1[[COMPETENCES CRITIQUES ]],\"x\",Tableau1[[COMPETENCES CRITIQUES ]],\"X\")","v":0},0,0,{"$f":"IF($U37=0, 0, $T37+Données!$Q$4)","v":0},43,{"$f":"COUNTIFS(Tableau1[Age],Y37, Tableau1[METIER EN TENSION],\"x\",Tableau1[METIER EN TENSION],\"X\")","v":0},0,0,{"$f":"IF($Z37=0, 0, $T37+Données!$Q$4)","v":0}]
[null,null,null,null,null,null,null,null,null,null,null,null,null,null,null,null,null,null,null,44,{"$f":"COUNTIFS(Tableau1[Age],T38, Tableau1[[COMPETENCES CRITIQUES ]],\"x\",Tableau1[[COMPETENCES CRITIQUES ]],\"X\")","v":0},0,0,{"$f":"IF($U38=0, 0, $T38+Données!$Q$4)","v":0},44,{"$f":"COUNTIFS(Tableau1[Age],Y38, Tableau1[METIER EN TENSION],\"x\",Tableau1[METIER EN TENSION],\"X\")","v":0},0,0,{"$f":"IF($Z38=0, 0, $T38+Données!$Q$4)","v":0}]
[null,null,null,null,null,null,null,null,null,null,null,null,null,null,null,null,null,null,null,45,{"$f":"COUNTIFS(Tableau1[Age],T39, Tableau1[[COMPETENCES CRITIQUES ]],\"x\",Tableau1[[COMPETENCES CRITIQUES ]],\"X\")","v":0},0,0,{"$f":"IF($U39=0, 0, $T39+Données!$Q$4)","v":0},45,{"$f":"COUNTIFS(Tableau1[Age],Y39, Tableau1[METIER EN TENSION],\"x\",Tableau1[METIER EN TENSION],\"X\")","v":0},0,0,{"$f":"IF($Z39=0, 0, $T39+Données!$Q$4)","v":0}]
[null,null,null,null,null,null,null,null,null,null,null,null,null,null,null,null,null,null,null,46,{"$f":"COUNTIFS(Tableau1[Age],T40, Tableau1[[COMPETENCES CRITIQUES ]],\"x\",Tableau1[[COMPETENCES CRITIQUES ]],\"X\")","v":2},47,48,{"$f":"IF($U40=0, 0, $T40+Données!$Q$4)","v":51},46,{"$f":"COUNTIFS(Tableau1[Age],Y40, Tableau1[METIER EN TENSION],\"x\",Tableau1[METIER EN TENSION],\"X\")","v":0},0,0,{"$f":"IF($Z40=0, 0, $T40+Données!$Q$4)","v":0}]
[null,null,null,null,null,null,null,null,null,null,null,null,null,null,null,null,null,null,null,47,{"$f":"COUNTIFS(Tableau1[Age],T41, Tableau1[[COMPETENCES CRITIQUES ]],\"x\",Tableau1[[COMPETENCES CRITIQUES ]],\"X\")","v":0},0,0,{"$f":"IF($U41=0, 0, $T41+Données!$Q$4)","v":0},47,{"$f":"COUNTIFS(Tableau1[Age],Y41, Tableau1[METIER EN TENSION],\"x\",Tableau1[METIER EN TENSION],\"X\")","v":2},48,49,{"$f":"IF($Z41=0, 0, $T41+Données!$Q$4)","v":52}]
[null,null,null,null,null,null,null,null,null,null,null,null,null,null,null,null,null,null,null,48,{"$f":"COUNTIFS(Tableau1[Age],T42, Tableau1[[COMPETENCES CRITIQUES ]],\"x\",Tableau1[[COMPETENCES CRITIQUES ]],\"X\")","v":0},0,0,{"$f":"IF($U42=0, 0, $T42+Données!$Q$4)","v":0},48,{"$f":"COUNTIFS(Tableau1[Age],Y42, Tableau1[METIER EN TENSION],\"x\",Tableau1[METIER EN TENSION],\"X\")","v":0},0,0,{"$f":"IF($Z42=0, 0, $T42+Données!$Q$4)","v":0}]
[null,null,null,null,null,null,null,null,null,null,null,null,null,null,null,null,null,null,null,49,{"$f":"COUNTIFS(Tableau1[Age],T43, Tableau1[[COMPETENCES CRITIQUES ]],\"x\",Tableau1[[COMPETENCES CRITIQUES ]],\"X\")","v":0},0,0,{"$f":"IF($U43=0, 0, $T43+Données!$Q$4)","v":0},49,{"$f":"COUNTIFS(Tableau1[Age],Y43, Tableau1[METIER EN TENSION],\"x\",Tableau1[METIER EN TENSION],\"X\")","v":0},0,0,{"$f":"IF($Z43=0, 0, $T43+Données!$Q$4)","v":0}]
[null,null,null,null,null,null,null,null,null,null,null,null,null,null,null,null,null,null,null,50,{"$f":"COUNTIFS(Tableau1[Age],T44, Tableau1[[COMPETENCES CRITIQUES ]],\"x\",Tableau1[[COMPETENCES CRITIQUES ]],\"X\")","v":2},51,52,{"$f":"IF($U44=0, 0, $T44+Données!$Q$4)","v":55},50,{"$f":"COUNTIFS(Tableau1[Age],Y44, Tableau1[METIER EN TENSION],\"x\",Tableau1[METIER EN TENSION],\"X\")","v":0},0,0,{"$f":"IF($Z44=0, 0, $T44+Données!$Q$4)","v":0}]
[null,null,null,null,null,null,null,null,null,null,null,null,null,null,null,null,null,null,null,51,{"$f":"COUNTIFS(Tableau1[Age],T45, Tableau1[[COMPETENCES CRITIQUES ]],\"x\",Tableau1[[COMPETENCES CRITIQUES ]],\"X\")","v":0},0,0,{"$f":"IF($U45=0, 0, $T45+Données!$Q$4)","v":0},51,{"$f":"COUNTIFS(Tableau1[Age],Y45, Tableau1[METIER EN TENSION],\"x\",Tableau1[METIER EN TENSION],\"X\")","v":0},0,0,{"$f":"IF($Z45=0, 0, $T45+Données!$Q$4)","v":0}]
[null,null,null,null,null,null,null,null,null,null,null,null,null,null,null,null,null,null,null,52,{"$f":"COUNTIFS(Tableau1[Age],T46, Tableau1[[COMPETENCES CRITIQUES ]],\"x\",Tableau1[[COMPETENCES CRITIQUES ]],\"X\")","v":0},0,0,{"$f":"IF($U46=0, 0, $T46+Données!$Q$4)","v":0},52,{"$f":"COUNTIFS(Tableau1[Age],Y46, Tableau1[METIER EN TENSION],\"x\",Tableau1[METIER EN TENSION],\"X\")","v":0},0,0,{"$f":"IF($Z46=0, 0, $T46+Données!$Q$4)","v":0}]
[null,null,null,null,null,null,null,null,null,null,null,null,null,null,null,null,null,null,null,53,{"$f":"COUNTIFS(Tableau1[Age],T47, Tableau1[[COMPETENCES CRITIQUES ]],\"x\",Tableau1[[COMPETENCES CRITIQUES ]],\"X\")","v":0},0,0,{"$f":"IF($U47=0, 0, $T47+Données!$Q$4)","v":0},53,{"$f":"COUNTIFS(Tableau1[Age],Y47, Tableau1[METIER EN TENSION],\"x\",Tableau1[METIER EN TENSION],\"X\")","v":0},0,0,{"$f":"IF($Z47=0, 0, $T47+Données!$Q$4)","v":0}]
[null,null,null,null,null,null,null,null,null,null,null,null,null,null,null,null,null,null,null,54,{"$f":"COUNTIFS(Tableau1[Age],T48, Tableau1[[COMPETENCES CRITIQUES ]],\"x\",Tableau1[[COMPETENCES CRITIQUES ]],\"X\")","v":0},0,0,{"$f":"IF($U48=0, 0, $T48+Données!$Q$4)","v":0},54,{"$f":"COUNTIFS(Tableau1[Age],Y48, Tableau1[METIER EN TENSION],\"x\",Tableau1[METIER EN TENSION],\"X\")","v":0},0,0,{"$f":"IF($Z48=0, 0, $T48+Données!$Q$4)","v":0}]
[null,null,null,null,null,null,null,null,null,null,null,null,null,null,null,null,null,null,null,55,{"$f":"COUNTIFS(Tableau1[Age],T49, Tableau1[[COMPETENCES CRITIQUES ]],\"x\",Tableau1[[COMPETENCES CRITIQUES ]],\"X\")","v":0},0,{"$f":"IF($U49=0, 0, $T49+2)","v":0},{"$f":"IF($U49=0, 0, $T49+Données!$Q$4)","v":0},55,{"$f":"COUNTIFS(Tableau1[Age],Y49, Tableau1[METIER EN TENSION],\"x\",Tableau1[METIER EN TENSION],\"X\")","v":0},0,0,{"$f":"IF($Z49=0, 0, $T49+Données!$Q$4)","v":0}]
[null,null,null,null,null,null,null,null,null,null,null,null,null,null,null,null,null,null,null,56,{"$f":"COUNTIFS(Tableau1[Age],T50, Tableau1[[COMPETENCES CRITIQUES ]],\"x\",Tableau1[[COMPETENCES CRITIQUES ]],\"X\")","v":0},0,0,{"$f":"IF($U50=0, 0, $T50+Données!$Q$4)","v":0},56,{"$f":"COUNTIFS(Tableau1[Age],Y50, Tableau1[METIER EN TENSION],\"x\",Tableau1[METIER EN TENSION],\"X\")","v":0},0,0,{"$f":"IF($Z50=0, 0, $T50+Données!$Q$4)","v":0}]
[null,null,null,null,null,null,null,null,null,null,null,null,null,null,null,null,null,null,null,57,{"$f":"COUNTIFS(Tableau1[Age],T51, Tableau1[[COMPETENCES CRITIQUES ]],\"x\",Tableau1[[COMPETENCES CRITIQUES ]],\"X\")","v":0},0,0,{"$f":"IF($U51=0, 0, $T51+Données!$Q$4)","v":0},57,{"$f":"COUNTIFS(Tableau1[Age],Y51, Tableau1[METIER EN TENSION],\"x\",Tableau1[METIER EN TENSION],\"X\")","v":0},0,0,{"$f":"IF($Z51=0, 0, $T51+Données!$Q$4)","v":0}]
[null,null,null,null,null,null,null,null,null,null,null,null,null,null,null,null,null,null,null,58,{"$f":"COUNTIFS(Tableau1[Age],T52, Tableau1[[COMPETENCES CRITIQUES ]],\"x\",Tableau1[[COMPETENCES CRITIQUES ]],\"X\")","v":0},0,0,{"$f":"IF($U52=0, 0, $T52+Données!$Q$4)","v":0},58,{"$f":"COUNTIFS(Tableau1[Age],Y52, Tableau1[METIER EN TENSION],\"x\",Tableau1[METIER EN TENSION],\"X\")","v":0},0,0,{"$f":"IF($Z52=0, 0, $T52+Données!$Q$4)","v":0}]
[null,null,null,null,null,null,null,null,null,null,null,null,null,null,null,null,null,null,null,59,{"$f":"COUNTIFS(Tableau1[Age],T53, Tableau1[[COMPETENCES CRITIQUES ]],\"x\",Tableau1[[COMPETENCES CRITIQUES ]],\"X\")","v":0},0,0,{"$f":"IF($U53=0, 0, $T53+Données!$Q$4)","v":0},59,{"$f":"COUNTIFS(Tableau1[Age],Y53, Tableau1[METIER EN TENSION],\"x\",Tableau1[METIER EN TENSION],\"X\")","v":0},0,0,{"$f":"IF($Z53=0, 0, $T53+Données!$Q$4)","v":0}]
[null,null,null,null,null,null,null,null,null,null,null,null,null,null,null,null,null,null,null,60,{"$f":"COUNTIFS(Tableau1[Age],T54, Tableau1[[COMPETENCES CRITIQUES ]],\"x\",Tableau1[[COMPETENCES CRITIQUES ]],\"X\")","v":2},{"$f":"IF($U54=0, 0, T54+1)","v":61},62,{"$f":"IF($U54=0, 0, $T54+Données!$Q$4)","v":65},60,{"$f":"COUNTIFS(Tableau1[Age],Y54, Tableau1[METIER EN TENSION],\"x\",Tableau1[METIER EN TENSION],\"X\")","v":0},0,0,{"$f":"IF($Z54=0, 0, $T54+Données!$Q$4)","v":0}]
[null,null,null,null,null,null,null,null,null,null,null,null,null,null,null,null,null,null,null,61,{"$f":"COUNTIFS(Tableau1[Age],T55, Tableau1[[COMPETENCES CRITIQUES ]],\"x\",Tableau1[[COMPETENCES CRITIQUES ]],\"X\")","v":0},0,0,{"$f":"IF($U55=0, 0, $T55+Données!$Q$4)","v":0},61,{"$f":"COUNTIFS(Tableau1[Age],Y55, Tableau1[METIER EN TENSION],\"x\",Tableau1[METIER EN TENSION],\"X\")","v":0},0,0,{"$f":"IF($Z55=0, 0, $T55+Données!$Q$4)","v":0}]
[null,null,null,null,null,null,null,null,null,null,null,null,null,null,null,null,null,null,null,62,{"$f":"COUNTIFS(Tableau1[Age],T56, Tableau1[[COMPETENCES CRITIQUES ]],\"x\",Tableau1[[COMPETENCES CRITIQUES ]],\"X\")","v":0},0,0,{"$f":"IF($U56=0, 0, $T56+Données!$Q$4)","v":0},62,{"$f":"COUNTIFS(Tableau1[Age],Y56, Tableau1[METIER EN TENSION],\"x\",Tableau1[METIER EN TENSION],\"X\")","v":0},0,0,{"$f":"IF($Z56=0, 0, $T56+Données!$Q$4)","v":0}]
[null,null,null,null,null,null,null,null,null,null,null,null,null,null,null,null,null,null,null,63,{"$f":"COUNTIFS(Tableau1[Age],T57, Tableau1[[COMPETENCES CRITIQUES ]],\"x\",Tableau1[[COMPETENCES CRITIQUES ]],\"X\")","v":0},0,0,{"$f":"IF($U57=0, 0, $T57+Données!$Q$4)","v":0},63,{"$f":"COUNTIFS(Tableau1[Age],Y57, Tableau1[METIER EN TENSION],\"x\",Tableau1[METIER EN TENSION],\"X\")","v":1},64,65,{"$f":"IF($Z57=0, 0, $T57+Données!$Q$4)","v":68}]
[null,null,null,null,null,null,null,null,null,null,null,null,null,null,null,null,null,null,null,64,{"$f":"COUNTIFS(Tableau1[Age],T58, Tableau1[[COMPETENCES CRITIQUES ]],\"x\",Tableau1[[COMPETENCES CRITIQUES ]],\"X\")","v":0},0,0,{"$f":"IF($U58=0, 0, $T58+Données!$Q$4)","v":0},64,{"$f":"COUNTIFS(Tableau1[Age],Y58, Tableau1[METIER EN TENSION],\"x\",Tableau1[METIER EN TENSION],\"X\")","v":0},0,0,{"$f":"IF($Z58=0, 0, $T58+Données!$Q$4)","v":0}]
[null,null,null,null,null,null,null,null,null,null,null,null,null,null,null,null,null,null,null,65,{"$f":"COUNTIFS(Tableau1[Age],T59, Tableau1[[COMPETENCES CRITIQUES ]],\"x\",Tableau1[[COMPETENCES CRITIQUES ]],\"X\")","v":1},66,67,{"$f":"IF($U59=0, 0, $T59+Données!$Q$4)","v":70},65,{"$f":"COUNTIFS(Tableau1[Age],Y59, Tableau1[METIER EN TENSION],\"x\",Tableau1[METIER EN TENSION],\"X\")","v":0},0,0,{"$f":"IF($Z59=0, 0, $T59+Données!$Q$4)","v":0}]
[null,null,null,null,null,null,null,null,null,null,null,null,null,null,null,null,null,null,null,66,{"$f":"COUNTIFS(Tableau1[Age],T60, Tableau1[[COMPETENCES CRITIQUES ]],\"x\",Tableau1[[COMPETENCES CRITIQUES ]],\"X\")","v":1},{"$f":"IF($U60=0, 0, T60+1)","v":67},68,{"$f":"IF($U60=0, 0, $T60+Données!$Q$4)","v":71},66,{"$f":"COUNTIFS(Tableau1[Age],Y60, Tableau1[METIER EN TENSION],\"x\",Tableau1[METIER EN TENSION],\"X\")","v":0},0,0,{"$f":"IF($Z60=0, 0, $T60+Données!$Q$4)","v":0}]
[null,null,null,null,null,null,null,null,null,null,null,null,null,null,null,null,null,null,null,67,{"$f":"COUNTIFS(Tableau1[Age],T61, Tableau1[[COMPETENCES CRITIQUES ]],\"x\",Tableau1[[COMPETENCES CRITIQUES ]],\"X\")","v":0},0,0,{"$f":"IF($U61=0, 0, $T61+Données!$Q$4)","v":0},67,{"$f":"COUNTIFS(Tableau1[Age],Y61, Tableau1[METIER EN TENSION],\"x\",Tableau1[METIER EN TENSION],\"X\")","v":0},0,0,{"$f":"IF($Z61=0, 0, $T61+Données!$Q$4)","v":0}]
[null,null,null,null,null,null,null,null,null,null,null,null,null,null,null,null,null,null,null,68,{"$f":"COUNTIFS(Tableau1[Age],T62, Tableau1[[COMPETENCES CRITIQUES ]],\"x\",Tableau1[[COMPETENCES CRITIQUES ]],\"X\")","v":0},0,0,{"$f":"IF($U62=0, 0, $T62+Données!$Q$4)","v":0},68,{"$f":"COUNTIFS(Tableau1[Age],Y62, Tableau1[METIER EN TENSION],\"x\",Tableau1[METIER EN TENSION],\"X\")","v":0},0,0,{"$f":"IF($Z62=0, 0, $T62+Données!$Q$4)","v":0}]
[null,null,null,null,null,null,null,null,null,null,null,null,null,null,null,null,null,null,null,69,{"$f":"COUNTIFS(Tableau1[Age],T63, Tableau1[[COMPETENCES CRITIQUES ]],\"x\",Tableau1[[COMPETENCES CRITIQUES ]],\"X\")","v":0},0,0,{"$f":"IF($U63=0, 0, $T63+Données!$Q$4)","v":0},69,{"$f":"COUNTIFS(Tableau1[Age],Y63, Tableau1[METIER EN TENSION],\"x\",Tableau1[METIER EN TENSION],\"X\")","v":0},0,0,{"$f":"IF($Z63=0, 0, $T63+Données!$Q$4)","v":0}]
[null,null,null,null,null,null,null,null,null,null,null,null,null,null,null,null,null,null,null,70,{"$f":"COUNTIFS(Tableau1[Age],T64, Tableau1[[COMPETENCES CRITIQUES ]],\"x\",Tableau1[[COMPETENCES CRITIQUES ]],\"X\")","v":0},0,0,{"$f":"IF($U64=0, 0, $T64+Données!$Q$4)","v":0},70,{"$f":"COUNTIFS(Tableau1[Age],Y64, Tableau1[METIER EN TENSION],\"x\",Tableau1[METIER EN TENSION],\"X\")","v":0},0,0,{"$f":"IF($Z64=0, 0, $T64+Données!$Q$4)","v":0}]
[null,null,null,null,null,null,null,null,null,null,null,null,null,null,null,null,null,null,null,71,{"$f":"COUNTIFS(Tableau1[Age],T65, Tableau1[[COMPETENCES CRITIQUES ]],\"x\",Tableau1[[COMPETENCES CRITIQUES ]],\"X\")","v":0},0,0,{"$f":"IF($U65=0, 0, $T65+Données!$Q$4)","v":0},71,{"$f":"COUNTIFS(Tableau1[Age],Y65, Tableau1[METIER EN TENSION],\"x\",Tableau1[METIER EN TENSION],\"X\")","v":0},0,0,{"$f":"IF($Z65=0, 0, $T65+Données!$Q$4)","v":0}]
[null,null,null,null,null,null,null,null,null,null,null,null,null,null,null,null,null,null,null,72,{"$f":"COUNTIFS(Tableau1[Age],T66, Tableau1[[COMPETENCES CRITIQUES ]],\"x\",Tableau1[[COMPETENCES CRITIQUES ]],\"X\")","v":0},0,0,{"$f":"IF($U66=0, 0, $T66+Données!$Q$4)","v":0},72,{"$f":"COUNTIFS(Tableau1[Age],Y66, Tableau1[METIER EN TENSION],\"x\",Tableau1[METIER EN TENSION],\"X\")","v":0},0,0,{"$f":"IF($Z66=0, 0, $T66+Données!$Q$4)","v":0}]
[null,null,null,null,null,null,null,null,null,null,null,null,null,null,null,null,null,null,null,73,{"$f":"COUNTIFS(Tableau1[Age],T67, Tableau1[[COMPETENCES CRITIQUES ]],\"x\",Tableau1[[COMPETENCES CRITIQUES ]],\"X\")","v":0},{"$f":"IF($U67=0, 0, T67+1)","v":0},0,{"$f":"IF($U67=0, 0, $T67+Données!$Q$4)","v":0},73,{"$f":"COUNTIFS(Tableau1[Age],Y67, Tableau1[METIER EN TENSION],\"x\",Tableau1[METIER EN TENSION],\"X\")","v":0},0,0,{"$f":"IF($Z67=0, 0, $T67+Données!$Q$4)","v":0}]
[null,null,null,null,null,null,null,null,null,null,null,null,null,null,null,null,null,null,null,74,{"$f":"COUNTIFS(Tableau1[Age],T68, Tableau1[[COMPETENCES CRITIQUES ]],\"x\",Tableau1[[COMPETENCES CRITIQUES ]],\"X\")","v":0},0,0,{"$f":"IF($U68=0, 0, $T68+Données!$Q$4)","v":0},74,{"$f":"COUNTIFS(Tableau1[Age],Y68, Tableau1[METIER EN TENSION],\"x\",Tableau1[METIER EN TENSION],\"X\")","v":0},0,0,{"$f":"IF($Z68=0, 0, $T68+Données!$Q$4)","v":0}]
[null,null,null,null,null,null,null,null,null,null,null,null,null,null,null,null,null,null,null,75,{"$f":"COUNTIFS(Tableau1[Age],T69, Tableau1[[COMPETENCES CRITIQUES ]],\"x\",Tableau1[[COMPETENCES CRITIQUES ]],\"X\")","v":0},0,0,{"$f":"IF($U69=0, 0, $T69+Données!$Q$4)","v":0},75,{"$f":"COUNTIFS(Tableau1[Age],Y69, Tableau1[METIER EN TENSION],\"x\",Tableau1[METIER EN TENSION],\"X\")","v":0},0,0,{"$f":"IF($Z69=0, 0, $T69+Données!$Q$4)","v":0}]

{"sheet":"Population Modification CT","index":7,"n_rows":41,"n_cols":6,"rows_kept":41,"cut":false,"hidden":false,"merged":[]}
[]
[]
[]
[]
[]
[]
[]
[]
[]
[]
[]
[]
[]
[]
[]
[]
[]
[]
[]
[]
[]
[]
[]
["METIER","(Tous)",null,null,"METIER","(Tous)"]
[]
["Étiquettes de lignes","Nombre de MODIFICATION RECENTES DES CONDITIONS DE TRAVAIL  (Au cours des 2 dernières années)",null,null,"Étiquettes de lignes","Nombre de MODIFICATION RECENTES DES CONDITIONS DE TRAVAIL  (Au cours des 2 dernières années)"]
[35,0,null,null,7,0]
[39,0,null,null,10,0]
[40,0,null,null,14,1]
[45,0,null,null,15,0]
[46,0,null,null,17,0]
[47,1,null,null,20,0]
[50,0,null,null,22,0]
[52,0,null,null,23,0]
[53,0,null,null,24,0]
[55,0,null,null,25,0]
[60,0,null,null,27,0]
[63,0,null,null,35,0]
[65,0,null,null,45,0]
[66,0,null,null,"Total général",1]
["Total général",1]

{"sheet":"Population et santé - AT ARRET","index":8,"n_rows":41,"n_cols":14,"rows_kept":41,"cut":false,"hidden":false,"merged":[]}
[]
[]
[]
[]
[]
[]
[]
[]
[]
[]
[]
[]
[]
[]
[]
[]
[]
[]
[]
[]
[]
[]
[]
["METIER","(Tous)",null,null,"METIER","(Tous)",null,null,"METIER","(Tous)",null,null,"METIER","(Tous)"]
[]
["Étiquettes de lignes","Nombre de ACCIDENT DE TRAVAIL DANS L'ANNEE ",null,null,"Étiquettes de lignes","Nombre de ARRET DE TRAVAIL DANS L'ANNEE",null,null,"Étiquettes de lignes","Nombre de ACCIDENT DE TRAVAIL DANS L'ANNEE ",null,null,"Étiquettes de lignes","Nombre de ARRET DE TRAVAIL DANS L'ANNEE"]
[35,0,null,null,35,0,null,null,7,0,null,null,7,0]
[39,0,null,null,39,0,null,null,10,0,null,null,10,0]
[40,0,null,null,40,0,null,null,14,0,null,null,14,0]
[45,0,null,null,45,0,null,null,15,1,null,null,15,0]
[46,1,null,null,46,0,null,null,17,0,null,null,17,0]
[47,0,null,null,47,0,null,null,20,0,null,null,20,0]
[50,0,null,null,50,0,null,null,22,0,null,null,22,0]
[52,0,null,null,52,0,null,null,23,1,null,null,23,0]
[53,0,null,null,53,0,null,null,24,0,null,null,24,0]
[55,0,null,null,55,0,null,null,25,0,null,null,25,0]
[60,0,null,null,60,1,null,null,27,0,null,null,27,0]
[63,1,null,null,63,0,null,null,35,0,null,null,35,1]
[65,0,null,null,65,0,null,null,"(vide)",0,null,null,"(vide)",0]
[66,0,null,null,66,0,null,null,"Total général",2,null,null,"Total général",1]
["Total général",2,null,null,"Total général",1]

{"sheet":"Population et santé  BOETH ALD","index":9,"n_rows":41,"n_cols":14,"rows_kept":41,"cut":false,"hidden":false,"merged":[]}
[]
[]
[]
[]
[]
[]
[]
[]
[]
[]
[]
[]
[]
[]
[]
[]
[]
[]
[]
[]
[]
[]
[]
["METIER","(Tous)",null,null,"METIER","(Tous)",null,null,"METIER","(Tous)",null,null,"METIER","(Tous)"]
[]
["Étiquettes de lignes","Nombre de BOETH connus de l'entrerpise",null,null,"Étiquettes de lignes","Nombre de ALD connues de l'employeur",null,null,"Étiquettes de lignes","Nombre de BOETH connus de l'entrerpise",null,null,"Étiquettes de lignes","Nombre de ALD connues de l'employeur"]
[35,0,null,null,7,0,null,null,7,0,null,null,7,0]
[39,0,null,null,10,0,null,null,10,0,null,null,10,0]
[40,0,null,null,14,1,null,null,14,0,null,null,14,1]
[45,0,null,null,15,0,null,null,15,0,null,null,15,0]
[46,0,null,null,17,0,null,null,17,0,null,null,17,0]
[47,0,null,null,20,0,null,null,20,0,null,null,20,0]
[50,0,null,null,22,0,null,null,22,0,null,null,22,0]
[52,0,null,null,23,0,null,null,23,0,null,null,23,0]
[53,0,null,null,24,0,null,null,24,0,null,null,24,0]
[55,0,null,null,25,0,null,null,25,0,null,null,25,0]
[60,0,null,null,27,0,null,null,27,0,null,null,27,0]
[63,0,null,null,35,0,null,null,35,1,null,null,35,0]
[65,0,null,null,45,0,null,null,"(vide)",0,null,null,"(vide)",0]
[66,1,null,null,"Total général",1,null,null,"Total général",1,null,null,"Total général",1]
["Total général",1]

{"sheet":"Population Aménagement poste","index":10,"n_rows":68,"n_cols":7,"rows_kept":68,"cut":false,"hidden":false,"merged":[]}
[]
[]
[]
[]
[]
[]
[]
[]
[]
[]
[]
[]
[]
[]
[]
[]
[]
[]
[]
[]
[]
[]
[]
["METIER","(Tous)",null,null,"METIER","(Tous)"]
[]
["Étiquettes de lignes","Nombre de PROPOSITIONS D'AMENAGEMENT DE POSTE",null,null,"Étiquettes de lignes","Nombre de PROPOSITIONS D'AMENAGEMENT DE POSTE"]
[35,0,null,null,7,0]
[39,0,null,null,10,0]
[40,0,null,null,14,1]
[45,0,null,null,15,0]
[46,0,null,null,17,0]
[47,1,null,null,20,0]
[50,0,null,null,22,0]
[52,0,null,null,23,1]
[53,0,null,null,24,0]
[55,0,null,null,25,0]
[60,1,null,null,27,0]
[63,1,null,null,35,2]
[65,0,null,null,"(vide)",0]
[66,1,null,null,"Total général",4]
["Total général",4]
[]
[]
[]
[]
[]
[]
[]
[]
[]
["METIER","(Tous)",null,null,"METIER","(Tous)"]
[]
["Étiquettes de lignes","Nombre de PROPOSITIONS D'AMENAGEMENT DE POSTE","Nombre de BOETH connus de l'entrerpise",null,"Étiquettes de lignes","Nombre de PROPOSITIONS D'AMENAGEMENT DE POSTE","Nombre de ALD connues de l'employeur"]
[35,0,0,null,35,0,0]
[39,0,0,null,39,0,0]
[40,0,0,null,40,0,0]
[45,0,0,null,45,0,0]
[46,0,0,null,46,0,0]
[47,1,0,null,47,1,1]
[50,0,0,null,50,0,0]
[52,0,0,null,52,0,0]
[53,0,0,null,53,0,0]
[55,0,0,null,55,0,0]
[60,1,0,null,60,1,0]
[63,1,0,null,63,1,0]
[65,0,0,null,65,0,0]
[66,1,1,null,66,1,0]
["Total général",4,1,null,"Total général",4,1]